{"text_format":"1","workbook":"xlsx","n_sheets":4,"sheets":["Списки УОП","ЖУВР","ИДР","ИКРР"],"not_rendered":{"charts":0,"images":0,"macros":1,"external_links":1,"defined_names":3,"comments":0,"pivot_tables":0},"unopened":[],"bounds":{"document_bytes":16777216,"sheet_cells":100000,"rows_first":2000,"rows_last":500,"rows_between":2000,"halvings":0,"cell_chars":16384,"cell_head_chars":4096},"cells_cut":0,"cells_raw":0,"read":"whole","date_system":"1900"}

{"sheet":"Списки УОП","index":0,"n_rows":302,"n_cols":8,"rows_kept":302,"cut":false,"hidden":false,"merged":[[2,0,2,7]]}
[null,"выкл ","подстветку","вкл"]
[]
["общий список детей"]
["№ ","группа","код","возраст","пол","фамилия","имя","код нарушения"]
[1,10,{"$f":"CONCATENATE(LEFT(F5),LEFT(G5))","v":"ЖИ"},{"$f":"VLOOKUP(список_детей[[#This Row],[группа]],[1]!груп_воз[#Data],2,0)","v":{"$error":"#REF!"}},"д","Жукова","Ирина","ТНР"]
[2,10,"КЛ",{"$f":"VLOOKUP(список_детей[[#This Row],[группа]],[1]!груп_воз[#Data],2,0)","v":{"$error":"#REF!"}},"д","Карявина","Любовь","ТНР"]
[3,10,"ББ",{"$f":"VLOOKUP(список_детей[[#This Row],[группа]],[1]!груп_воз[#Data],2,0)","v":{"$error":"#REF!"}},"м","Бабанов","Бронислав","ТНР"]
[4,10,"БХ",{"$f":"VLOOKUP(список_детей[[#This Row],[группа]],[1]!груп_воз[#Data],2,0)","v":{"$error":"#REF!"}},"м","Быстров","Харитон","ТНР"]
[5,10,"ЮЧ",{"$f":"VLOOKUP(список_детей[[#This Row],[группа]],[1]!груп_воз[#Data],2,0)","v":{"$error":"#REF!"}},"м","Юганцев","Чеслав","ТНР"]
[6,10,"СЕ",{"$f":"VLOOKUP(список_детей[[#This Row],[группа]],[1]!груп_воз[#Data],2,0)","v":{"$error":"#REF!"}},"д","Савинкова","Елизавета","ТНР"]
[7,10,"БА",{"$f":"VLOOKUP(список_детей[[#This Row],[группа]],[1]!груп_воз[#Data],2,0)","v":{"$error":"#REF!"}},"д","Баранова","Агафья","ТНР"]
[8,10,"КЗ",{"$f":"VLOOKUP(список_детей[[#This Row],[группа]],[1]!груп_воз[#Data],2,0)","v":{"$error":"#REF!"}},"д","Качусова","Злата","ТНР"]
[9,10,"ИХ",{"$f":"VLOOKUP(список_детей[[#This Row],[группа]],[1]!груп_воз[#Data],2,0)","v":{"$error":"#REF!"}},"д","Ильюшина","Христина","ТНР"]
[10,10,"ЯК",{"$f":"VLOOKUP(список_детей[[#This Row],[группа]],[1]!груп_воз[#Data],2,0)","v":{"$error":"#REF!"}},"м","Явленский","Капитон","ТНР"]
[11,10,"ЯБ",{"$f":"VLOOKUP(список_детей[[#This Row],[группа]],[1]!груп_воз[#Data],2,0)","v":{"$error":"#REF!"}},"м","Ягнышев","Бронислав","ТНР"]
[12,10,"ЕТ",{"$f":"VLOOKUP(список_детей[[#This Row],[группа]],[1]!груп_воз[#Data],2,0)","v":{"$error":"#REF!"}},"м","Енин","Тарас","ТНР"]
[13,10,"ЯП",{"$f":"VLOOKUP(список_детей[[#This Row],[группа]],[1]!груп_воз[#Data],2,0)","v":{"$error":"#REF!"}},"д","Яшвили","Пелагея","ТНР"]
[14,15,"КЕ",{"$f":"VLOOKUP(список_детей[[#This Row],[группа]],[1]!груп_воз[#Data],2,0)","v":{"$error":"#REF!"}},"м","Кошельков","Евдоким","УО"]
[15,15,"ЧП",{"$f":"VLOOKUP(список_детей[[#This Row],[группа]],[1]!груп_воз[#Data],2,0)","v":{"$error":"#REF!"}},"д","Чуканова","Пелагея","УО"]
[16,15,"МР",{"$f":"VLOOKUP(список_детей[[#This Row],[группа]],[1]!груп_воз[#Data],2,0)","v":{"$error":"#REF!"}},"д","Манина","Рената","УО"]
[17,15,"ЛР",{"$f":"VLOOKUP(список_детей[[#This Row],[группа]],[1]!груп_воз[#Data],2,0)","v":{"$error":"#REF!"}},"д","Лукина","Рада","УО"]
[18,15,"ША",{"$f":"VLOOKUP(список_детей[[#This Row],[группа]],[1]!груп_воз[#Data],2,0)","v":{"$error":"#REF!"}},"м","Шамов","Артем","УО"]
[19,15,"КМ",{"$f":"VLOOKUP(список_детей[[#This Row],[группа]],[1]!груп_воз[#Data],2,0)","v":{"$error":"#REF!"}},"д","Колесова","Марфа","УО"]
[20,15,"ЖЕ",{"$f":"VLOOKUP(список_детей[[#This Row],[группа]],[1]!груп_воз[#Data],2,0)","v":{"$error":"#REF!"}},"м","Жаглин","Евстигней","УО"]
[21,15,"ИК",{"$f":"VLOOKUP(список_детей[[#This Row],[группа]],[1]!груп_воз[#Data],2,0)","v":{"$error":"#REF!"}},"д","Игошева","Ксения","ОДА"]
[22,13,"ФБ",{"$f":"VLOOKUP(список_детей[[#This Row],[группа]],[1]!груп_воз[#Data],2,0)","v":{"$error":"#REF!"}},"м","Филатов","Борис","ОДА"]
[23,13,"БУ",{"$f":"VLOOKUP(список_детей[[#This Row],[группа]],[1]!груп_воз[#Data],2,0)","v":{"$error":"#REF!"}},"д","Барышева","Ульяна","ОДА"]
[24,13,"БЕ",{"$f":"VLOOKUP(список_детей[[#This Row],[группа]],[1]!груп_воз[#Data],2,0)","v":{"$error":"#REF!"}},"д","Базанова","Елизавета","ОДА"]
[25,13,"АЭ",{"$f":"VLOOKUP(список_детей[[#This Row],[группа]],[1]!груп_воз[#Data],2,0)","v":{"$error":"#REF!"}},"д","Ануфриева","Эвелина","ОДА"]
[26,13,"БС",{"$f":"VLOOKUP(список_детей[[#This Row],[группа]],[1]!груп_воз[#Data],2,0)","v":{"$error":"#REF!"}},"м","Барановский","Сергей","ЗПР"]
[27,5,"БВ",{"$f":"VLOOKUP(список_детей[[#This Row],[группа]],[1]!груп_воз[#Data],2,0)","v":{"$error":"#REF!"}},"м","Берлунов","Владлен","ЗПР"]
[28,5,"НВ",{"$f":"VLOOKUP(список_детей[[#This Row],[группа]],[1]!груп_воз[#Data],2,0)","v":{"$error":"#REF!"}},"д","Натарова","Варвара","ЗПР"]
[29,5,"ЗВ",{"$f":"VLOOKUP(список_детей[[#This Row],[группа]],[1]!груп_воз[#Data],2,0)","v":{"$error":"#REF!"}},"д","Зимина","Владислава","ЗПР"]
[30,5,"КА",{"$f":"VLOOKUP(список_детей[[#This Row],[группа]],[1]!груп_воз[#Data],2,0)","v":{"$error":"#REF!"}},"м","Кусков","Аскольд","ЗПР"]
[31,5,"КН",{"$f":"VLOOKUP(список_детей[[#This Row],[группа]],[1]!груп_воз[#Data],2,0)","v":{"$error":"#REF!"}},"м","Краснопёров","Никифор","ЗПР"]
[32,5,"ЖН",{"$f":"VLOOKUP(список_детей[[#This Row],[группа]],[1]!груп_воз[#Data],2,0)","v":{"$error":"#REF!"}},"д","Жернакова","Наталья","ЗПР"]
[33,null,""]
[34,null,""]
[35,null,""]
[36,null,""]
[37,null,""]
[38,null,""]
[39,null,""]
[40,null,""]
[41,null,""]
[42,null,""]
[43,null,""]
[44,null,""]
[45,null,""]
[46,null,""]
[47,null,""]
[48,null,""]
[49,null,""]
[50,null,""]
[51,null,""]
[52,null,""]
[53,null,""]
[54,null,""]
[55,null,""]
[56,null,""]
[57,null,""]
[58,null,""]
[59,null,""]
[60,null,""]
[61,null,""]
[62,null,""]
[63,null,""]
[64,null,""]
[65,null,{"$f":"CONCATENATE(LEFT(F69),LEFT(G69))","v":""}]
[66,null,""]
[67,null,""]
[68,null,""]
[69,null,""]
[70,null,""]
[71,null,""]
[72,null,""]
[73,null,""]
[74,null,""]
[75,null,""]
[76,null,""]
[77,null,""]
[78,null,""]
[79,null,""]
[80,null,""]
[81,null,""]
[82,null,""]
[83,null,""]
[84,null,""]
[85,null,""]
[86,null,""]
[87,null,""]
[88,null,""]
[89,null,""]
[90,null,""]
[91,null,""]
[92,null,""]
[93,null,""]
[94,null,""]
[95,null,""]
[96,null,""]
[97,null,""]
[98,null,""]
[99,null,""]
[100,null,""]
[101,null,""]
[102,null,""]
[103,null,""]
[104,null,""]
[105,null,""]
[106,null,""]
[107,null,""]
[108,null,""]
[109,null,""]
[110,null,""]
[111,null,""]
[112,null,""]
[113,null,""]
[114,null,""]
[115,null,""]
[116,null,""]
[117,null,""]
[118,null,""]
[119,null,""]
[120,null,""]
[121,null,""]
[122,null,""]
[123,null,""]
[124,null,""]
[125,null,""]
[126,null,""]
[127,null,""]
[128,null,""]
[129,null,{"$f":"CONCATENATE(LEFT(F133),LEFT(G133))","v":""}]
[130,null,""]
[131,null,""]
[132,null,""]
[133,null,""]
[134,null,""]
[135,null,""]
[136,null,""]
[137,null,""]
[138,null,""]
[139,null,""]
[140,null,""]
[141,null,""]
[142,null,""]
[143,null,""]
[144,null,""]
[145,null,""]
[146,null,""]
[147,null,""]
[148,null,""]
[149,null,""]
[150,null,""]
[151,null,""]
[152,null,""]
[153,null,""]
[154,null,""]
[155,null,""]
[156,null,""]
[157,null,""]
[158,null,""]
[159,null,""]
[160,null,""]
[161,null,""]
[162,null,""]
[163,null,""]
[164,null,""]
[165,null,""]
[166,null,""]
[167,null,""]
[168,null,""]
[169,null,""]
[170,null,""]
[171,null,""]
[172,null,""]
[173,null,""]
[174,null,""]
[175,null,""]
[176,null,""]
[177,null,""]
[178,null,""]
[179,null,""]
[180,null,""]
[181,null,""]
[182,null,""]
[183,null,""]
[184,null,""]
[185,null,""]
[186,null,""]
[187,null,""]
[188,null,""]
[189,null,""]
[190,null,""]
[191,null,""]
[192,null,""]
[193,null,{"$f":"CONCATENATE(LEFT(F197),LEFT(G197))","v":""}]
[194,null,""]
[195,null,""]
[196,null,""]
[197,null,""]
[198,null,""]
[199,null,""]
[200,null,""]
[201,null,""]
[202,null,""]
[203,null,""]
[204,null,""]
[205,null,""]
[206,null,""]
[207,null,""]
[208,null,""]
[209,null,""]
[210,null,""]
[211,null,""]
[212,null,""]
[213,null,""]
[214,null,""]
[215,null,""]
[216,null,""]
[217,null,""]
[218,null,""]
[219,null,""]
[220,null,""]
[221,null,""]
[222,null,""]
[223,null,""]
[224,null,""]
[225,null,""]
[226,null,""]
[227,null,""]
[228,null,""]
[229,null,""]
[230,null,""]
[231,null,""]
[232,null,""]
[233,null,""]
[234,null,""]
[235,null,""]
[236,null,""]
[237,null,""]
[238,null,""]
[239,null,""]
[240,null,""]
[241,null,""]
[242,null,""]
[243,null,""]
[244,null,""]
[245,null,""]
[246,null,""]
[247,null,""]
[248,null,""]
[249,null,""]
[250,null,""]
[251,null,""]
[252,null,""]
[253,null,""]
[254,null,""]
[255,null,""]
[256,null,""]
[257,null,{"$f":"CONCATENATE(LEFT(F261),LEFT(G261))","v":""}]
[258,null,""]
[259,null,""]
[260,null,""]
[261,null,""]
[262,null,""]
[263,null,""]
[264,null,""]
[265,null,""]
[266,null,""]
[267,null,""]
[268,null,""]
[269,null,""]
[270,null,""]
[271,null,""]
[272,null,""]
[273,null,""]
[274,null,""]
[275,null,""]
[276,null,""]
[277,null,""]
[278,null,""]
[279,null,""]
[280,null,""]
[281,null,""]
[282,null,""]
[283,null,""]
[284,null,""]
[285,null,""]
[286,null,""]
[287,null,""]
[288,null,""]
[289,null,""]
[290,null,""]
[291,null,""]
[292,null,""]
[293,null,""]
[294,null,""]
[295,null,""]
[296,null,""]
[297,null,""]
[298,null,""]

{"sheet":"ЖУВР","index":1,"n_rows":36,"n_cols":23,"rows_kept":36,"cut":false,"hidden":false,"merged":[[0,1,0,17]]}
[null,"ЖУРНАЛ УЧЁТА ВИДОВ РАБОТЫ"]
[null,"№ пп","месяц","группа","номер ребенка/группы","Код ребенка","Возраст","Первичное обследование","Вторичное обследовние","Групповая диагностика","Индивидуальное занятие","Групповая КРР\n/ (тренинг)","Индивидуальная консультация","Консультация для родителей\n(собрание)","Консультация для специалистов","Участие\\проведение консилиума","Проведение\\посещение занятий","Другие виды работ (в т.ч. семинары и групповые консультации)"]
[null,1,null,{"$f":"VLOOKUP(E3,[1]!список_детей[#Data],2,1)","v":10},1,{"$f":"VLOOKUP(E3,[1]!список_детей[#Data],3,1)","v":"ЖИ"},{"$f":"VLOOKUP(E3,[1]!список_детей[#Data],4,1)","v":"5-6 лет"},{"$f":"INDEX([1]!ИДР[[#All],[месяц]:[Код участника]],MATCH(ЖУВР[[#This Row],[номер ребенка/группы]],[1]!ИДР[[#All],[номер участника]]),2)","v":"2020-09-02"},null,{"$f":"INDEX([1]!ГДР[#All],MATCH(D3,[1]!ГДР[[#All],[ Группа]],0),2)","v":"2020-10-01"},null,null,null,null,null,null,null,null,null,{"$f":"IF(INDEX([1]ИДР!$D:$D,MATCH(E3,[1]!ИДР[[#All],[номер участника]],0))=1,\"+\",\"\")","v":""},null,"подстветка","выкл"]
[null,2,{"$f":"TEXT(#REF!,\"МММ\")","v":{"$error":"#REF!"}},{"$f":"VLOOKUP(E4,[1]!список_детей[#Data],2,1)","v":10},2,{"$f":"VLOOKUP(E4,[1]!список_детей[#Data],3,1)","v":"КЛ"},{"$f":"VLOOKUP(E4,[1]!список_детей[#Data],4,1)","v":"5-6 лет"},{"$f":"INDEX([1]!ИДР[[#All],[месяц]:[Код участника]],MATCH(ЖУВР[[#This Row],[номер ребенка/группы]],[1]!ИДР[[#All],[номер участника]]),2)","v":"2020-09-02"},{"$f":"IF(INDEX([1]ИДР!$D:$D,MATCH(E4,[1]!ИДР[[#All],[номер участника]],0))=2,\"+\",\"\")","v":"+"},{"$f":"INDEX([1]!ГДР[#All],MATCH(D4,[1]!ГДР[[#All],[ Группа]],0),2)","v":"2020-10-01"},null,null,null,null,null,null,null,null,null,{"$f":"IF([1]!ГДР[[#This Row],[Дата проведения]],INDEX([1]!ГДР[[#All],[ Группа]],MATCH([1]!ГДР[[#This Row],[ Группа]],[1]!ГДР[[#All],[ Группа]],0)),\"\")","v":10}]
[null,3,{"$f":"TEXT(#REF!,\"МММ\")","v":{"$error":"#REF!"}},{"$f":"VLOOKUP(E5,[1]!список_детей[#Data],2,1)","v":10},3,{"$f":"VLOOKUP(E5,[1]!список_детей[#Data],3,1)","v":"ББ"},{"$f":"VLOOKUP(E5,[1]!список_детей[#Data],4,1)","v":"5-6 лет"},{"$f":"INDEX([1]!ИДР[[#All],[месяц]:[Код участника]],MATCH(ЖУВР[[#This Row],[номер ребенка/группы]],[1]!ИДР[[#All],[номер участника]]),2)","v":"2020-09-03"},{"$f":"IF(INDEX([1]ИДР!$D:$D,MATCH(E5,[1]!ИДР[[#All],[номер участника]],0))=2,\"+\",\"\")","v":"+"},{"$f":"INDEX([1]!ГДР[#All],MATCH(D5,[1]!ГДР[[#All],[ Группа]],0),2)","v":"2020-10-01"}]
[null,4,{"$f":"TEXT(#REF!,\"МММ\")","v":{"$error":"#REF!"}},{"$f":"VLOOKUP(E6,[1]!список_детей[#Data],2,1)","v":10},4,{"$f":"VLOOKUP(E6,[1]!список_детей[#Data],3,1)","v":"БХ"},{"$f":"VLOOKUP(E6,[1]!список_детей[#Data],4,1)","v":"5-6 лет"},{"$f":"INDEX([1]!ИДР[[#All],[месяц]:[Код участника]],MATCH(ЖУВР[[#This Row],[номер ребенка/группы]],[1]!ИДР[[#All],[номер участника]]),2)","v":"2020-09-04"},null,{"$f":"INDEX([1]!ГДР[#All],MATCH(D6,[1]!ГДР[[#All],[ Группа]],0),2)","v":"2020-10-01"}]
[null,5,{"$f":"TEXT(#REF!,\"МММ\")","v":{"$error":"#REF!"}},{"$f":"VLOOKUP(E7,[1]!список_детей[#Data],2,1)","v":10},5,{"$f":"VLOOKUP(E7,[1]!список_детей[#Data],3,1)","v":"ЮЧ"},{"$f":"VLOOKUP(E7,[1]!список_детей[#Data],4,1)","v":"5-6 лет"},{"$f":"INDEX([1]!ИДР[[#All],[месяц]:[Код участника]],MATCH(ЖУВР[[#This Row],[номер ребенка/группы]],[1]!ИДР[[#All],[номер участника]]),2)","v":"2020-09-05"},null,{"$f":"INDEX([1]!ГДР[#All],MATCH(D7,[1]!ГДР[[#All],[ Группа]],0),2)","v":"2020-10-01"},null,null,null,null,null,null,null,null,null,"ИНДЕКС(ИДР[[#Все];[месяц]:[Код участника]];ПОИСКПОЗ([@[номер ребенка/группы]];ИДР[[#Все];[номер участника]]);2)"]
[null,6,{"$f":"TEXT(#REF!,\"МММ\")","v":{"$error":"#REF!"}},{"$f":"VLOOKUP(E8,[1]!список_детей[#Data],2,1)","v":10},6,{"$f":"VLOOKUP(E8,[1]!список_детей[#Data],3,1)","v":"СЕ"},{"$f":"VLOOKUP(E8,[1]!список_детей[#Data],4,1)","v":"5-6 лет"},{"$f":"INDEX([1]!ИДР[[#All],[месяц]:[Код участника]],MATCH(ЖУВР[[#This Row],[номер ребенка/группы]],[1]!ИДР[[#All],[номер участника]]),2)","v":"2020-09-06"},{"$f":"IF(INDEX([1]ИДР!$D:$D,MATCH(E8,[1]!ИДР[[#All],[номер участника]],0))=2,\"+\",\"\")","v":""},{"$f":"INDEX([1]!ГДР[#All],MATCH(D8,[1]!ГДР[[#All],[ Группа]],0),2)","v":"2020-10-01"}]
[null,7,{"$f":"TEXT(#REF!,\"МММ\")","v":{"$error":"#REF!"}},{"$f":"VLOOKUP(E9,[1]!список_детей[#Data],2,1)","v":10},7,{"$f":"VLOOKUP(E9,[1]!список_детей[#Data],3,1)","v":"БА"},{"$f":"VLOOKUP(E9,[1]!список_детей[#Data],4,1)","v":"5-6 лет"},{"$f":"INDEX([1]!ИДР[[#All],[месяц]:[Код участника]],MATCH(ЖУВР[[#This Row],[номер ребенка/группы]],[1]!ИДР[[#All],[номер участника]]),2)","v":"2020-09-07"},{"$f":"IF(INDEX([1]ИДР!$D:$D,MATCH(E9,[1]!ИДР[[#All],[номер участника]],0))=2,\"+\",\"\")","v":""},{"$f":"INDEX([1]!ГДР[#All],MATCH(D9,[1]!ГДР[[#All],[ Группа]],0),2)","v":"2020-10-01"}]
[null,8,{"$f":"TEXT(#REF!,\"МММ\")","v":{"$error":"#REF!"}},{"$f":"VLOOKUP(E10,[1]!список_детей[#Data],2,1)","v":10},8,{"$f":"VLOOKUP(E10,[1]!список_детей[#Data],3,1)","v":"КЗ"},{"$f":"VLOOKUP(E10,[1]!список_детей[#Data],4,1)","v":"5-6 лет"},{"$f":"INDEX([1]!ИДР[[#All],[месяц]:[Код участника]],MATCH(ЖУВР[[#This Row],[номер ребенка/группы]],[1]!ИДР[[#All],[номер участника]]),2)","v":"2020-09-08"},{"$f":"IF(INDEX([1]ИДР!$D:$D,MATCH(E10,[1]!ИДР[[#All],[номер участника]],0))=2,\"+\",\"\")","v":""},{"$f":"INDEX([1]!ГДР[#All],MATCH(D10,[1]!ГДР[[#All],[ Группа]],0),2)","v":"2020-10-01"}]
[null,9,{"$f":"TEXT(#REF!,\"МММ\")","v":{"$error":"#REF!"}},{"$f":"VLOOKUP(E11,[1]!список_детей[#Data],2,1)","v":10},9,{"$f":"VLOOKUP(E11,[1]!список_детей[#Data],3,1)","v":"ИХ"},{"$f":"VLOOKUP(E11,[1]!список_детей[#Data],4,1)","v":"5-6 лет"},{"$f":"INDEX([1]!ИДР[[#All],[месяц]:[Код участника]],MATCH(ЖУВР[[#This Row],[номер ребенка/группы]],[1]!ИДР[[#All],[номер участника]]),2)","v":"2020-09-09"},{"$f":"IF(INDEX([1]ИДР!$D:$D,MATCH(E11,[1]!ИДР[[#All],[номер участника]],0))=2,\"+\",\"\")","v":""},{"$f":"INDEX([1]!ГДР[#All],MATCH(D11,[1]!ГДР[[#All],[ Группа]],0),2)","v":"2020-10-01"}]
[null,10,{"$f":"TEXT(#REF!,\"МММ\")","v":{"$error":"#REF!"}},{"$f":"VLOOKUP(E12,[1]!список_детей[#Data],2,1)","v":10},10,{"$f":"VLOOKUP(E12,[1]!список_детей[#Data],3,1)","v":"ЯК"},{"$f":"VLOOKUP(E12,[1]!список_детей[#Data],4,1)","v":"5-6 лет"},{"$f":"INDEX([1]!ИДР[[#All],[месяц]:[Код участника]],MATCH(ЖУВР[[#This Row],[номер ребенка/группы]],[1]!ИДР[[#All],[номер участника]]),2)","v":"2020-09-10"},{"$f":"IF(INDEX([1]ИДР!$D:$D,MATCH(E12,[1]!ИДР[[#All],[номер участника]],0))=2,\"+\",\"\")","v":""},{"$f":"INDEX([1]!ГДР[#All],MATCH(D12,[1]!ГДР[[#All],[ Группа]],0),2)","v":"2020-10-01"}]
[null,11,{"$f":"TEXT(#REF!,\"МММ\")","v":{"$error":"#REF!"}},{"$f":"VLOOKUP(E13,[1]!список_детей[#Data],2,1)","v":10},11,{"$f":"VLOOKUP(E13,[1]!список_детей[#Data],3,1)","v":"ЯБ"},{"$f":"VLOOKUP(E13,[1]!список_детей[#Data],4,1)","v":"5-6 лет"},{"$f":"INDEX([1]!ИДР[[#All],[месяц]:[Код участника]],MATCH(ЖУВР[[#This Row],[номер ребенка/группы]],[1]!ИДР[[#All],[номер участника]]),2)","v":"2020-09-11"},{"$f":"IF(INDEX([1]ИДР!$D:$D,MATCH(E13,[1]!ИДР[[#All],[номер участника]],0))=2,\"+\",\"\")","v":""},{"$f":"INDEX([1]!ГДР[#All],MATCH(D13,[1]!ГДР[[#All],[ Группа]],0),2)","v":"2020-10-01"}]
[null,12,{"$f":"TEXT(#REF!,\"МММ\")","v":{"$error":"#REF!"}},{"$f":"VLOOKUP(E14,[1]!список_детей[#Data],2,1)","v":10},12,{"$f":"VLOOKUP(E14,[1]!список_детей[#Data],3,1)","v":"ЕТ"},{"$f":"VLOOKUP(E14,[1]!список_детей[#Data],4,1)","v":"5-6 лет"},{"$f":"INDEX([1]!ИДР[[#All],[месяц]:[Код участника]],MATCH(ЖУВР[[#This Row],[номер ребенка/группы]],[1]!ИДР[[#All],[номер участника]]),2)","v":"2020-09-12"},{"$f":"IF(INDEX([1]ИДР!$D:$D,MATCH(E14,[1]!ИДР[[#All],[номер участника]],0))=2,\"+\",\"\")","v":""},{"$f":"INDEX([1]!ГДР[#All],MATCH(D14,[1]!ГДР[[#All],[ Группа]],0),2)","v":"2020-10-01"}]
[null,13,{"$f":"TEXT(#REF!,\"МММ\")","v":{"$error":"#REF!"}},{"$f":"VLOOKUP(E15,[1]!список_детей[#Data],2,1)","v":10},13,{"$f":"VLOOKUP(E15,[1]!список_детей[#Data],3,1)","v":"ЯП"},{"$f":"VLOOKUP(E15,[1]!список_детей[#Data],4,1)","v":"5-6 лет"},{"$f":"INDEX([1]!ИДР[[#All],[месяц]:[Код участника]],MATCH(ЖУВР[[#This Row],[номер ребенка/группы]],[1]!ИДР[[#All],[номер участника]]),2)","v":"2020-09-13"},{"$f":"IF(INDEX([1]ИДР!$D:$D,MATCH(E15,[1]!ИДР[[#All],[номер участника]],0))=2,\"+\",\"\")","v":""},{"$f":"INDEX([1]!ГДР[#All],MATCH(D15,[1]!ГДР[[#All],[ Группа]],0),2)","v":"2020-10-01"}]
[null,14,{"$f":"TEXT(#REF!,\"МММ\")","v":{"$error":"#REF!"}},{"$f":"VLOOKUP(E16,[1]!список_детей[#Data],2,1)","v":{"$error":"#N/A"}},null,{"$f":"VLOOKUP(E16,[1]!список_детей[#Data],3,1)","v":{"$error":"#N/A"}},{"$f":"VLOOKUP(E16,[1]!список_детей[#Data],4,1)","v":{"$error":"#N/A"}},{"$f":"INDEX([1]!ИДР[[#All],[месяц]:[Код участника]],MATCH(ЖУВР[[#This Row],[номер ребенка/группы]],[1]!ИДР[[#All],[номер участника]]),2)","v":{"$error":"#N/A"}},{"$f":"IF(INDEX([1]ИДР!$D:$D,MATCH(E16,[1]!ИДР[[#All],[номер участника]],0))=2,\"+\",\"\")","v":{"$error":"#N/A"}},{"$f":"INDEX([1]!ГДР[#All],MATCH(D16,[1]!ГДР[[#All],[ Группа]],0),2)","v":{"$error":"#N/A"}}]
[null,15,{"$f":"TEXT(#REF!,\"МММ\")","v":{"$error":"#REF!"}},{"$f":"VLOOKUP(E17,[1]!список_детей[#Data],2,1)","v":{"$error":"#N/A"}},null,{"$f":"VLOOKUP(E17,[1]!список_детей[#Data],3,1)","v":{"$error":"#N/A"}},{"$f":"VLOOKUP(E17,[1]!список_детей[#Data],4,1)","v":{"$error":"#N/A"}},{"$f":"INDEX([1]!ИДР[[#All],[месяц]:[Код участника]],MATCH(ЖУВР[[#This Row],[номер ребенка/группы]],[1]!ИДР[[#All],[номер участника]]),2)","v":{"$error":"#N/A"}},{"$f":"IF(INDEX([1]ИДР!$D:$D,MATCH(E17,[1]!ИДР[[#All],[номер участника]],0))=2,\"+\",\"\")","v":{"$error":"#N/A"}},{"$f":"INDEX([1]!ГДР[#All],MATCH(D17,[1]!ГДР[[#All],[ Группа]],0),2)","v":{"$error":"#N/A"}}]
[null,16,{"$f":"TEXT(#REF!,\"МММ\")","v":{"$error":"#REF!"}},{"$f":"VLOOKUP(E18,[1]!список_детей[#Data],2,1)","v":{"$error":"#N/A"}},null,{"$f":"VLOOKUP(E18,[1]!список_детей[#Data],3,1)","v":{"$error":"#N/A"}},{"$f":"VLOOKUP(E18,[1]!список_детей[#Data],4,1)","v":{"$error":"#N/A"}},{"$f":"INDEX([1]!ИДР[[#All],[месяц]:[Код участника]],MATCH(ЖУВР[[#This Row],[номер ребенка/группы]],[1]!ИДР[[#All],[номер участника]]),2)","v":{"$error":"#N/A"}},{"$f":"IF(INDEX([1]ИДР!$D:$D,MATCH(E18,[1]!ИДР[[#All],[номер участника]],0))=2,\"+\",\"\")","v":{"$error":"#N/A"}},{"$f":"INDEX([1]!ГДР[#All],MATCH(D18,[1]!ГДР[[#All],[ Группа]],0),2)","v":{"$error":"#N/A"}}]
[null,17,{"$f":"TEXT(#REF!,\"МММ\")","v":{"$error":"#REF!"}},{"$f":"VLOOKUP(E19,[1]!список_детей[#Data],2,1)","v":{"$error":"#N/A"}},null,{"$f":"VLOOKUP(E19,[1]!список_детей[#Data],3,1)","v":{"$error":"#N/A"}},{"$f":"VLOOKUP(E19,[1]!список_детей[#Data],4,1)","v":{"$error":"#N/A"}},{"$f":"INDEX([1]!ИДР[[#All],[месяц]:[Код участника]],MATCH(ЖУВР[[#This Row],[номер ребенка/группы]],[1]!ИДР[[#All],[номер участника]]),2)","v":{"$error":"#N/A"}},{"$f":"IF(INDEX([1]ИДР!$D:$D,MATCH(E19,[1]!ИДР[[#All],[номер участника]],0))=2,\"+\",\"\")","v":{"$error":"#N/A"}},{"$f":"INDEX([1]!ГДР[#All],MATCH(D19,[1]!ГДР[[#All],[ Группа]],0),2)","v":{"$error":"#N/A"}}]
[null,18,{"$f":"TEXT(#REF!,\"МММ\")","v":{"$error":"#REF!"}},{"$f":"VLOOKUP(E20,[1]!список_детей[#Data],2,1)","v":{"$error":"#N/A"}},null,{"$f":"VLOOKUP(E20,[1]!список_детей[#Data],3,1)","v":{"$error":"#N/A"}},{"$f":"VLOOKUP(E20,[1]!список_детей[#Data],4,1)","v":{"$error":"#N/A"}},{"$f":"INDEX([1]!ИДР[[#All],[месяц]:[Код участника]],MATCH(ЖУВР[[#This Row],[номер ребенка/группы]],[1]!ИДР[[#All],[номер участника]]),2)","v":{"$error":"#N/A"}},{"$f":"IF(INDEX([1]ИДР!$D:$D,MATCH(E20,[1]!ИДР[[#All],[номер участника]],0))=2,\"+\",\"\")","v":{"$error":"#N/A"}},{"$f":"INDEX([1]!ГДР[#All],MATCH(D20,[1]!ГДР[[#All],[ Группа]],0),2)","v":{"$error":"#N/A"}}]
[null,19,{"$f":"TEXT(#REF!,\"МММ\")","v":{"$error":"#REF!"}},{"$f":"VLOOKUP(E21,[1]!список_детей[#Data],2,1)","v":{"$error":"#N/A"}},null,{"$f":"VLOOKUP(E21,[1]!список_детей[#Data],3,1)","v":{"$error":"#N/A"}},{"$f":"VLOOKUP(E21,[1]!список_детей[#Data],4,1)","v":{"$error":"#N/A"}},{"$f":"INDEX([1]!ИДР[[#All],[месяц]:[Код участника]],MATCH(ЖУВР[[#This Row],[номер ребенка/группы]],[1]!ИДР[[#All],[номер участника]]),2)","v":{"$error":"#N/A"}},{"$f":"IF(INDEX([1]ИДР!$D:$D,MATCH(E21,[1]!ИДР[[#All],[номер участника]],0))=2,\"+\",\"\")","v":{"$error":"#N/A"}},{"$f":"INDEX([1]!ГДР[#All],MATCH(D21,[1]!ГДР[[#All],[ Группа]],0),2)","v":{"$error":"#N/A"}}]
[null,20,{"$f":"TEXT(#REF!,\"МММ\")","v":{"$error":"#REF!"}},{"$f":"VLOOKUP(E22,[1]!список_детей[#Data],2,1)","v":{"$error":"#N/A"}},null,{"$f":"VLOOKUP(E22,[1]!список_детей[#Data],3,1)","v":{"$error":"#N/A"}},{"$f":"VLOOKUP(E22,[1]!список_детей[#Data],4,1)","v":{"$error":"#N/A"}},{"$f":"INDEX([1]!ИДР[[#All],[месяц]:[Код участника]],MATCH(ЖУВР[[#This Row],[номер ребенка/группы]],[1]!ИДР[[#All],[номер участника]]),2)","v":{"$error":"#N/A"}},{"$f":"IF(INDEX([1]ИДР!$D:$D,MATCH(E22,[1]!ИДР[[#All],[номер участника]],0))=2,\"+\",\"\")","v":{"$error":"#N/A"}},{"$f":"INDEX([1]!ГДР[#All],MATCH(D22,[1]!ГДР[[#All],[ Группа]],0),2)","v":{"$error":"#N/A"}}]
[null,21,{"$f":"TEXT(#REF!,\"МММ\")","v":{"$error":"#REF!"}},{"$f":"VLOOKUP(E23,[1]!список_детей[#Data],2,1)","v":{"$error":"#N/A"}},null,{"$f":"VLOOKUP(E23,[1]!список_детей[#Data],3,1)","v":{"$error":"#N/A"}},{"$f":"VLOOKUP(E23,[1]!список_детей[#Data],4,1)","v":{"$error":"#N/A"}},{"$f":"INDEX([1]!ИДР[[#All],[месяц]:[Код участника]],MATCH(ЖУВР[[#This Row],[номер ребенка/группы]],[1]!ИДР[[#All],[номер участника]]),2)","v":{"$error":"#N/A"}},{"$f":"IF(INDEX([1]ИДР!$D:$D,MATCH(E23,[1]!ИДР[[#All],[номер участника]],0))=2,\"+\",\"\")","v":{"$error":"#N/A"}},{"$f":"INDEX([1]!ГДР[#All],MATCH(D23,[1]!ГДР[[#All],[ Группа]],0),2)","v":{"$error":"#N/A"}}]
[null,22,{"$f":"TEXT(#REF!,\"МММ\")","v":{"$error":"#REF!"}},{"$f":"VLOOKUP(E24,[1]!список_детей[#Data],2,1)","v":{"$error":"#N/A"}},null,{"$f":"VLOOKUP(E24,[1]!список_детей[#Data],3,1)","v":{"$error":"#N/A"}},{"$f":"VLOOKUP(E24,[1]!список_детей[#Data],4,1)","v":{"$error":"#N/A"}},{"$f":"INDEX([1]!ИДР[[#All],[месяц]:[Код участника]],MATCH(ЖУВР[[#This Row],[номер ребенка/группы]],[1]!ИДР[[#All],[номер участника]]),2)","v":{"$error":"#N/A"}},{"$f":"IF(INDEX([1]ИДР!$D:$D,MATCH(E24,[1]!ИДР[[#All],[номер участника]],0))=2,\"+\",\"\")","v":{"$error":"#N/A"}},{"$f":"INDEX([1]!ГДР[#All],MATCH(D24,[1]!ГДР[[#All],[ Группа]],0),2)","v":{"$error":"#N/A"}}]
[null,23,{"$f":"TEXT(#REF!,\"МММ\")","v":{"$error":"#REF!"}},{"$f":"VLOOKUP(E25,[1]!список_детей[#Data],2,1)","v":{"$error":"#N/A"}},null,{"$f":"VLOOKUP(E25,[1]!список_детей[#Data],3,1)","v":{"$error":"#N/A"}},{"$f":"VLOOKUP(E25,[1]!список_детей[#Data],4,1)","v":{"$error":"#N/A"}},{"$f":"INDEX([1]!ИДР[[#All],[месяц]:[Код участника]],MATCH(ЖУВР[[#This Row],[номер ребенка/группы]],[1]!ИДР[[#All],[номер участника]]),2)","v":{"$error":"#N/A"}},{"$f":"IF(INDEX([1]ИДР!$D:$D,MATCH(E25,[1]!ИДР[[#All],[номер участника]],0))=2,\"+\",\"\")","v":{"$error":"#N/A"}},{"$f":"INDEX([1]!ГДР[#All],MATCH(D25,[1]!ГДР[[#All],[ Группа]],0),2)","v":{"$error":"#N/A"}}]
[null,24,{"$f":"TEXT(#REF!,\"МММ\")","v":{"$error":"#REF!"}},{"$f":"VLOOKUP(E26,[1]!список_детей[#Data],2,1)","v":{"$error":"#N/A"}},null,{"$f":"VLOOKUP(E26,[1]!список_детей[#Data],3,1)","v":{"$error":"#N/A"}},{"$f":"VLOOKUP(E26,[1]!список_детей[#Data],4,1)","v":{"$error":"#N/A"}},{"$f":"INDEX([1]!ИДР[[#All],[месяц]:[Код участника]],MATCH(ЖУВР[[#This Row],[номер ребенка/группы]],[1]!ИДР[[#All],[номер участника]]),2)","v":{"$error":"#N/A"}},{"$f":"IF(INDEX([1]ИДР!$D:$D,MATCH(E26,[1]!ИДР[[#All],[номер участника]],0))=2,\"+\",\"\")","v":{"$error":"#N/A"}},{"$f":"INDEX([1]!ГДР[#All],MATCH(D26,[1]!ГДР[[#All],[ Группа]],0),2)","v":{"$error":"#N/A"}}]
[null,25,{"$f":"TEXT(#REF!,\"МММ\")","v":{"$error":"#REF!"}},{"$f":"VLOOKUP(E27,[1]!список_детей[#Data],2,1)","v":{"$error":"#N/A"}},null,{"$f":"VLOOKUP(E27,[1]!список_детей[#Data],3,1)","v":{"$error":"#N/A"}},{"$f":"VLOOKUP(E27,[1]!список_детей[#Data],4,1)","v":{"$error":"#N/A"}},{"$f":"INDEX([1]!ИДР[[#All],[месяц]:[Код участника]],MATCH(ЖУВР[[#This Row],[номер ребенка/группы]],[1]!ИДР[[#All],[номер участника]]),2)","v":{"$error":"#N/A"}},{"$f":"IF(INDEX([1]ИДР!$D:$D,MATCH(E27,[1]!ИДР[[#All],[номер участника]],0))=2,\"+\",\"\")","v":{"$error":"#N/A"}},{"$f":"INDEX([1]!ГДР[#All],MATCH(D27,[1]!ГДР[[#All],[ Группа]],0),2)","v":{"$error":"#N/A"}}]
[null,26,{"$f":"TEXT(#REF!,\"МММ\")","v":{"$error":"#REF!"}},{"$f":"VLOOKUP(E28,[1]!список_детей[#Data],2,1)","v":{"$error":"#N/A"}},null,{"$f":"VLOOKUP(E28,[1]!список_детей[#Data],3,1)","v":{"$error":"#N/A"}},{"$f":"VLOOKUP(E28,[1]!список_детей[#Data],4,1)","v":{"$error":"#N/A"}},{"$f":"INDEX([1]!ИДР[[#All],[месяц]:[Код участника]],MATCH(ЖУВР[[#This Row],[номер ребенка/группы]],[1]!ИДР[[#All],[номер участника]]),2)","v":{"$error":"#N/A"}},{"$f":"IF(INDEX([1]ИДР!$D:$D,MATCH(E28,[1]!ИДР[[#All],[номер участника]],0))=2,\"+\",\"\")","v":{"$error":"#N/A"}},{"$f":"INDEX([1]!ГДР[#All],MATCH(D28,[1]!ГДР[[#All],[ Группа]],0),2)","v":{"$error":"#N/A"}}]
[null,27,{"$f":"TEXT(#REF!,\"МММ\")","v":{"$error":"#REF!"}},{"$f":"VLOOKUP(E29,[1]!список_детей[#Data],2,1)","v":{"$error":"#N/A"}},null,{"$f":"VLOOKUP(E29,[1]!список_детей[#Data],3,1)","v":{"$error":"#N/A"}},{"$f":"VLOOKUP(E29,[1]!список_детей[#Data],4,1)","v":{"$error":"#N/A"}},{"$f":"INDEX([1]!ИДР[[#All],[месяц]:[Код участника]],MATCH(ЖУВР[[#This Row],[номер ребенка/группы]],[1]!ИДР[[#All],[номер участника]]),2)","v":{"$error":"#N/A"}},{"$f":"IF(INDEX([1]ИДР!$D:$D,MATCH(E29,[1]!ИДР[[#All],[номер участника]],0))=2,\"+\",\"\")","v":{"$error":"#N/A"}},{"$f":"INDEX([1]!ГДР[#All],MATCH(D29,[1]!ГДР[[#All],[ Группа]],0),2)","v":{"$error":"#N/A"}}]
[null,28,{"$f":"TEXT(#REF!,\"МММ\")","v":{"$error":"#REF!"}},{"$f":"VLOOKUP(E30,[1]!список_детей[#Data],2,1)","v":{"$error":"#N/A"}},null,{"$f":"VLOOKUP(E30,[1]!список_детей[#Data],3,1)","v":{"$error":"#N/A"}},{"$f":"VLOOKUP(E30,[1]!список_детей[#Data],4,1)","v":{"$error":"#N/A"}},{"$f":"INDEX([1]!ИДР[[#All],[месяц]:[Код участника]],MATCH(ЖУВР[[#This Row],[номер ребенка/группы]],[1]!ИДР[[#All],[номер участника]]),2)","v":{"$error":"#N/A"}},{"$f":"IF(INDEX([1]ИДР!$D:$D,MATCH(E30,[1]!ИДР[[#All],[номер участника]],0))=2,\"+\",\"\")","v":{"$error":"#N/A"}},{"$f":"INDEX([1]!ГДР[#All],MATCH(D30,[1]!ГДР[[#All],[ Группа]],0),2)","v":{"$error":"#N/A"}}]
[null,29,{"$f":"TEXT(#REF!,\"МММ\")","v":{"$error":"#REF!"}},{"$f":"VLOOKUP(E31,[1]!список_детей[#Data],2,1)","v":{"$error":"#N/A"}},null,{"$f":"VLOOKUP(E31,[1]!список_детей[#Data],3,1)","v":{"$error":"#N/A"}},{"$f":"VLOOKUP(E31,[1]!список_детей[#Data],4,1)","v":{"$error":"#N/A"}},{"$f":"INDEX([1]!ИДР[[#All],[месяц]:[Код участника]],MATCH(ЖУВР[[#This Row],[номер ребенка/группы]],[1]!ИДР[[#All],[номер участника]]),2)","v":{"$error":"#N/A"}},{"$f":"IF(INDEX([1]ИДР!$D:$D,MATCH(E31,[1]!ИДР[[#All],[номер участника]],0))=2,\"+\",\"\")","v":{"$error":"#N/A"}},{"$f":"INDEX([1]!ГДР[#All],MATCH(D31,[1]!ГДР[[#All],[ Группа]],0),2)","v":{"$error":"#N/A"}}]
[null,30,{"$f":"TEXT(#REF!,\"МММ\")","v":{"$error":"#REF!"}},{"$f":"VLOOKUP(E32,[1]!список_детей[#Data],2,1)","v":{"$error":"#N/A"}},null,{"$f":"VLOOKUP(E32,[1]!список_детей[#Data],3,1)","v":{"$error":"#N/A"}},{"$f":"VLOOKUP(E32,[1]!список_детей[#Data],4,1)","v":{"$error":"#N/A"}},{"$f":"INDEX([1]!ИДР[[#All],[месяц]:[Код участника]],MATCH(ЖУВР[[#This Row],[номер ребенка/группы]],[1]!ИДР[[#All],[номер участника]]),2)","v":{"$error":"#N/A"}},{"$f":"IF(INDEX([1]ИДР!$D:$D,MATCH(E32,[1]!ИДР[[#All],[номер участника]],0))=2,\"+\",\"\")","v":{"$error":"#N/A"}},{"$f":"INDEX([1]!ГДР[#All],MATCH(D32,[1]!ГДР[[#All],[ Группа]],0),2)","v":{"$error":"#N/A"}}]
[null,31,{"$f":"TEXT(#REF!,\"МММ\")","v":{"$error":"#REF!"}},{"$f":"VLOOKUP(E33,[1]!список_детей[#Data],2,1)","v":{"$error":"#N/A"}},null,{"$f":"VLOOKUP(E33,[1]!список_детей[#Data],3,1)","v":{"$error":"#N/A"}},{"$f":"VLOOKUP(E33,[1]!список_детей[#Data],4,1)","v":{"$error":"#N/A"}},{"$f":"INDEX([1]!ИДР[[#All],[месяц]:[Код участника]],MATCH(ЖУВР[[#This Row],[номер ребенка/группы]],[1]!ИДР[[#All],[номер участника]]),2)","v":{"$error":"#N/A"}},{"$f":"IF(INDEX([1]ИДР!$D:$D,MATCH(E33,[1]!ИДР[[#All],[номер участника]],0))=2,\"+\",\"\")","v":{"$error":"#N/A"}},{"$f":"INDEX([1]!ГДР[#All],MATCH(D33,[1]!ГДР[[#All],[ Группа]],0),2)","v":{"$error":"#N/A"}}]
[null,32,{"$f":"TEXT(#REF!,\"МММ\")","v":{"$error":"#REF!"}},{"$f":"VLOOKUP(E34,[1]!список_детей[#Data],2,1)","v":{"$error":"#N/A"}},null,{"$f":"VLOOKUP(E34,[1]!список_детей[#Data],3,1)","v":{"$error":"#N/A"}},{"$f":"VLOOKUP(E34,[1]!список_детей[#Data],4,1)","v":{"$error":"#N/A"}},{"$f":"INDEX([1]!ИДР[[#All],[месяц]:[Код участника]],MATCH(ЖУВР[[#This Row],[номер ребенка/группы]],[1]!ИДР[[#All],[номер участника]]),2)","v":{"$error":"#N/A"}},{"$f":"IF(INDEX([1]ИДР!$D:$D,MATCH(E34,[1]!ИДР[[#All],[номер участника]],0))=2,\"+\",\"\")","v":{"$error":"#N/A"}},{"$f":"INDEX([1]!ГДР[#All],MATCH(D34,[1]!ГДР[[#All],[ Группа]],0),2)","v":{"$error":"#N/A"}}]
[null,33,{"$f":"TEXT(#REF!,\"МММ\")","v":{"$error":"#REF!"}},"родители",null,{"$f":"VLOOKUP(E35,[1]!список_детей[#Data],3,1)","v":{"$error":"#N/A"}},{"$f":"VLOOKUP(E35,[1]!список_детей[#Data],4,1)","v":{"$error":"#N/A"}},{"$f":"INDEX([1]!ИДР[[#All],[месяц]:[Код участника]],MATCH(ЖУВР[[#This Row],[номер ребенка/группы]],[1]!ИДР[[#All],[номер участника]]),2)","v":{"$error":"#N/A"}},{"$f":"IF(INDEX([1]ИДР!$D:$D,MATCH(E35,[1]!ИДР[[#All],[номер участника]],0))=2,\"+\",\"\")","v":{"$error":"#N/A"}},{"$f":"INDEX([1]!ГДР[#All],MATCH(D35,[1]!ГДР[[#All],[ Группа]],0),2)","v":"2020-10-31"}]
[null,34,{"$f":"TEXT(#REF!,\"МММ\")","v":{"$error":"#REF!"}},"специалисты",null,{"$f":"VLOOKUP(E36,[1]!список_детей[#Data],3,1)","v":{"$error":"#N/A"}},{"$f":"VLOOKUP(E36,[1]!список_детей[#Data],4,1)","v":{"$error":"#N/A"}},{"$f":"INDEX([1]!ИДР[[#All],[месяц]:[Код участника]],MATCH(ЖУВР[[#This Row],[номер ребенка/группы]],[1]!ИДР[[#All],[номер участника]]),2)","v":{"$error":"#N/A"}},{"$f":"IF(INDEX([1]ИДР!$D:$D,MATCH(E36,[1]!ИДР[[#All],[номер участника]],0))=2,\"+\",\"\")","v":{"$error":"#N/A"}},{"$f":"INDEX([1]!ГДР[#All],MATCH(D36,[1]!ГДР[[#All],[ Группа]],0),2)","v":"2020-11-01"}]

{"sheet":"ИДР","index":2,"n_rows":298,"n_cols":23,"rows_kept":298,"cut":false,"hidden":false,"merged":[[0,1,0,10]]}
[]
[null,"месяц","Дата проведения","Вид обследования","номер участника","Код участника","возраст","пол","Группа","Код обращения","Используемые методики",null,"сентябрь","подсчет по месяцам","Кол-во по коду","подсчет по годам","Кол-во детей","подсчет по полу","Кол-во по полу","Вид обследования","Кол-во по виду"]
[null,{"$f":"TEXT(C3,\"ММММ\")","v":"Сентябрь"},"2020-09-02",2,1,{"$f":"VLOOKUP(E3,[1]!список_детей[#Data],3,1)","v":{"$error":"#REF!"}},{"$f":"VLOOKUP(E3,[1]!список_детей[#Data],4,1)","v":{"$error":"#REF!"}},{"$f":"VLOOKUP(E3,[1]!список_детей[#Data],5,1)","v":{"$error":"#REF!"}},{"$f":"VLOOKUP(E3,[1]!список_детей[#Data],2,1)","v":{"$error":"#REF!"}},"ИО",{"$f":"VLOOKUP(J3,[1]!СИДМ[#Data],3,0)","v":"Психолого-педагогическая диагностика нарушений развития детей раннего и дошкольного возраста"},null,null,"ООП",{"$f":"COUNTIFS(ИДР[месяц],$M$2,ИДР[Код обращения],N3)","v":3},"1-2 года",{"$f":"COUNTIFS(ИДР[месяц],$M$2,ИДР[возраст],P3)","v":0},"д",{"$f":"COUNTIF(ИДР[пол],R3)","v":17},1,{"$f":"COUNTIFS(ИДР[месяц],M2,ИДР[Вид обследования],T3)","v":15},null,{"$f":"INDEX(ИДР[[#All],[месяц]:[Код участника]],MATCH(ИДР[[#This Row],[номер участника]],ИДР[[#All],[номер участника]]),2)","v":"2020-09-02"}]
[null,{"$f":"TEXT(C4,\"ММММ\")","v":"Сентябрь"},"2020-09-02",2,2,{"$f":"VLOOKUP(E4,[1]!список_детей[#Data],3,1)","v":"КЛ"},{"$f":"VLOOKUP(E4,[1]!список_детей[#Data],4,1)","v":"5-6 лет"},{"$f":"VLOOKUP(E4,[1]!список_детей[#Data],5,1)","v":"д"},{"$f":"VLOOKUP(E4,[1]!список_детей[#Data],2,1)","v":10},"РР",{"$f":"VLOOKUP(J4,[1]!СИДМ[#Data],3,0)","v":0},null,null,"В",{"$f":"COUNTIFS(ИДР[месяц],$M$2,ИДР[Код обращения],N4)","v":25},"2-3 года",{"$f":"COUNTIFS(ИДР[месяц],$M$2,ИДР[возраст],P4)","v":0},"м",{"$f":"COUNTIF(ИДР[пол],R4)","v":14},2,{"$f":"COUNTIFS(ИДР[[#Data],[#Totals],[месяц]],Таблица8[[#Headers],[сентябрь]],ИДР[[#Data],[#Totals],[Вид обследования]],Таблица8[[#This Row],[Вид обследования]])","v":37},null,{"$f":"INDEX(ИДР[[#All],[месяц]:[Код участника]],MATCH(ИДР[[#This Row],[номер участника]],ИДР[[#All],[номер участника]]),2)","v":"2020-09-02"}]
[null,"Сентябрь","2020-09-03",2,3,{"$f":"VLOOKUP(E5,[1]!список_детей[#Data],3,1)","v":"ББ"},{"$f":"VLOOKUP(E5,[1]!список_детей[#Data],4,1)","v":"5-6 лет"},{"$f":"VLOOKUP(E5,[1]!список_детей[#Data],5,1)","v":"м"},{"$f":"VLOOKUP(E5,[1]!список_детей[#Data],2,1)","v":10},"П",{"$f":"VLOOKUP(J5,[1]!СИДМ[#Data],3,0)","v":"Диагностика эмоционально-личностной сферы детей дошкольного и младшего школьного возраста. Анкеты, опросники. Тесты, методики. Карты наблюдения."},null,null,"П",{"$f":"COUNTIFS(ИДР[месяц],$M$2,ИДР[Код обращения],N5)","v":5},"3-4 года",{"$f":"COUNTIFS(ИДР[месяц],$M$2,ИДР[возраст],P5)","v":4},null,null,null,null,null,{"$f":"INDEX(ИДР[[#All],[месяц]:[Код участника]],MATCH(ИДР[[#This Row],[номер участника]],ИДР[[#All],[номер участника]]),2)","v":"2020-09-03"}]
[null,"Сентябрь","2020-09-04",2,4,{"$f":"VLOOKUP(E6,[1]!список_детей[#Data],3,1)","v":"БХ"},{"$f":"VLOOKUP(E6,[1]!список_детей[#Data],4,1)","v":"5-6 лет"},{"$f":"VLOOKUP(E6,[1]!список_детей[#Data],5,1)","v":"м"},{"$f":"VLOOKUP(E6,[1]!список_детей[#Data],2,1)","v":10},"П",{"$f":"VLOOKUP(J6,[1]!СИДМ[#Data],3,0)","v":"Диагностика эмоционально-личностной сферы детей дошкольного и младшего школьного возраста. Анкеты, опросники. Тесты, методики. Карты наблюдения."},null,null,"ЭП",{"$f":"COUNTIFS(ИДР[месяц],$M$2,ИДР[Код обращения],N6)","v":5},"4-5 лет",{"$f":"COUNTIFS(ИДР[месяц],$M$2,ИДР[возраст],P6)","v":0},null,null,null,null,null,{"$f":"INDEX(ИДР[[#All],[месяц]:[Код участника]],MATCH(ИДР[[#This Row],[номер участника]],ИДР[[#All],[номер участника]]),2)","v":"2020-09-04"}]
[null,"Сентябрь","2020-09-05",1,5,{"$f":"VLOOKUP(E7,[1]!список_детей[#Data],3,1)","v":"ЮЧ"},{"$f":"VLOOKUP(E7,[1]!список_детей[#Data],4,1)","v":"5-6 лет"},{"$f":"VLOOKUP(E7,[1]!список_детей[#Data],5,1)","v":"м"},{"$f":"VLOOKUP(E7,[1]!список_детей[#Data],2,1)","v":10},"ЭП",{"$f":"VLOOKUP(J7,[1]!СИДМ[#Data],3,0)","v":"Диагностика эмоционально-личностной сферы детей дошкольного и младшего школьного возраста. Анкеты, опросники. Тесты, методики. Карты наблюдения."},null,null,"ИО",{"$f":"COUNTIFS(ИДР[месяц],$M$2,ИДР[Код обращения],N7)","v":6},"5-6 лет",{"$f":"COUNTIFS(ИДР[месяц],$M$2,ИДР[возраст],P7)","v":12},null,null,null,null,null,{"$f":"IF(INDEX([1]ИДР!$D$3:$D$1048576,MATCH(E3,ИДР[[#All],[номер участника]],0))=2,\"+\",\"\")","v":"+"}]
[null,"Сентябрь","2020-09-06",1,6,{"$f":"VLOOKUP(E8,[1]!список_детей[#Data],3,1)","v":"СЕ"},{"$f":"VLOOKUP(E8,[1]!список_детей[#Data],4,1)","v":"5-6 лет"},{"$f":"VLOOKUP(E8,[1]!список_детей[#Data],5,1)","v":"д"},{"$f":"VLOOKUP(E8,[1]!список_детей[#Data],2,1)","v":10},"ЭП",{"$f":"VLOOKUP(J8,[1]!СИДМ[#Data],3,0)","v":"Диагностика эмоционально-личностной сферы детей дошкольного и младшего школьного возраста. Анкеты, опросники. Тесты, методики. Карты наблюдения."},null,null,"РР",{"$f":"COUNTIFS(ИДР[месяц],$M$2,ИДР[Код обращения],N8)","v":3},"6-7 лет",{"$f":"COUNTIFS(ИДР[месяц],$M$2,ИДР[возраст],P8)","v":13}]
[null,"Сентябрь","2020-09-07",1,7,{"$f":"VLOOKUP(E9,[1]!список_детей[#Data],3,1)","v":"БА"},{"$f":"VLOOKUP(E9,[1]!список_детей[#Data],4,1)","v":"5-6 лет"},{"$f":"VLOOKUP(E9,[1]!список_детей[#Data],5,1)","v":"д"},{"$f":"VLOOKUP(E9,[1]!список_детей[#Data],2,1)","v":10},"ООМ",{"$f":"VLOOKUP(J9,[1]!СИДМ[#Data],3,0)","v":"Психолого-педагогическая диагностика нарушений развития детей раннего и дошкольного возраста"},null,null,"ООМ",{"$f":"COUNTIFS(ИДР[месяц],$M$2,ИДР[Код обращения],N9)","v":4}]
[null,"Сентябрь","2020-09-08",1,8,{"$f":"VLOOKUP(E10,[1]!список_детей[#Data],3,1)","v":"КЗ"},{"$f":"VLOOKUP(E10,[1]!список_детей[#Data],4,1)","v":"5-6 лет"},{"$f":"VLOOKUP(E10,[1]!список_детей[#Data],5,1)","v":"д"},{"$f":"VLOOKUP(E10,[1]!список_детей[#Data],2,1)","v":10},"ООМ",{"$f":"VLOOKUP(J10,[1]!СИДМ[#Data],3,0)","v":"Психолого-педагогическая диагностика нарушений развития детей раннего и дошкольного возраста"},null,null,"УАР",{"$f":"COUNTIFS(ИДР[месяц],$M$2,ИДР[Код обращения],N10)","v":0}]
[null,"Сентябрь","2020-09-09",1,9,{"$f":"VLOOKUP(E11,[1]!список_детей[#Data],3,1)","v":"ИХ"},{"$f":"VLOOKUP(E11,[1]!список_детей[#Data],4,1)","v":"5-6 лет"},{"$f":"VLOOKUP(E11,[1]!список_детей[#Data],5,1)","v":"д"},{"$f":"VLOOKUP(E11,[1]!список_детей[#Data],2,1)","v":10},"ГШ",{"$f":"VLOOKUP(J11,[1]!СИДМ[#Data],3,0)","v":"Психологическая диагностика готовности к обучению детей 5-7 лет."},null,null,"ГШ",{"$f":"COUNTIFS(ИДР[месяц],$M$2,ИДР[Код обращения],N11)","v":1}]
[null,"Сентябрь","2020-09-10",1,10,{"$f":"VLOOKUP(E12,[1]!список_детей[#Data],3,1)","v":"ЯК"},{"$f":"VLOOKUP(E12,[1]!список_детей[#Data],4,1)","v":"5-6 лет"},{"$f":"VLOOKUP(E12,[1]!список_детей[#Data],5,1)","v":"м"},{"$f":"VLOOKUP(E12,[1]!список_детей[#Data],2,1)","v":10},"ООП",{"$f":"VLOOKUP(J12,[1]!СИДМ[#Data],3,0)","v":"Как провести оценку индивидуального развития детей от 2 до 7 лет в рамках педагогической диагностики. Методика и диагностический инструментарий"},null,null,"Итог",{"$f":"SUM(O3:O11)","v":52}]
[null,"Сентябрь","2020-09-11",1,11,{"$f":"VLOOKUP(E13,[1]!список_детей[#Data],3,1)","v":"ЯБ"},{"$f":"VLOOKUP(E13,[1]!список_детей[#Data],4,1)","v":"5-6 лет"},{"$f":"VLOOKUP(E13,[1]!список_детей[#Data],5,1)","v":"м"},{"$f":"VLOOKUP(E13,[1]!список_детей[#Data],2,1)","v":10},"В",{"$f":"VLOOKUP(J13,[1]!СИДМ[#Data],3,0)","v":"Методики социально-педагогической диагностики семьи и консультирования родителей по психолого-педагогическим проблемам"}]
[null,"Сентябрь","2020-09-12",1,12,{"$f":"VLOOKUP(E14,[1]!список_детей[#Data],3,1)","v":"ЕТ"},{"$f":"VLOOKUP(E14,[1]!список_детей[#Data],4,1)","v":"5-6 лет"},{"$f":"VLOOKUP(E14,[1]!список_детей[#Data],5,1)","v":"м"},{"$f":"VLOOKUP(E14,[1]!список_детей[#Data],2,1)","v":10},"П",{"$f":"VLOOKUP(J14,[1]!СИДМ[#Data],3,0)","v":"Диагностика эмоционально-личностной сферы детей дошкольного и младшего школьного возраста. Анкеты, опросники. Тесты, методики. Карты наблюдения."}]
[null,"Сентябрь","2020-09-13",1,13,{"$f":"VLOOKUP(E15,[1]!список_детей[#Data],3,1)","v":"ЯП"},{"$f":"VLOOKUP(E15,[1]!список_детей[#Data],4,1)","v":"5-6 лет"},{"$f":"VLOOKUP(E15,[1]!список_детей[#Data],5,1)","v":"д"},{"$f":"VLOOKUP(E15,[1]!список_детей[#Data],2,1)","v":10},"ЭП",{"$f":"VLOOKUP(J15,[1]!СИДМ[#Data],3,0)","v":"Диагностика эмоционально-личностной сферы детей дошкольного и младшего школьного возраста. Анкеты, опросники. Тесты, методики. Карты наблюдения."}]
[null,"Сентябрь","2020-09-14",1,14,{"$f":"VLOOKUP(E16,[1]!список_детей[#Data],3,1)","v":"КЕ"},{"$f":"VLOOKUP(E16,[1]!список_детей[#Data],4,1)","v":"6-7 лет"},{"$f":"VLOOKUP(E16,[1]!список_детей[#Data],5,1)","v":"м"},{"$f":"VLOOKUP(E16,[1]!список_детей[#Data],2,1)","v":15},"ИО",{"$f":"VLOOKUP(J16,[1]!СИДМ[#Data],3,0)","v":"Психолого-педагогическая диагностика нарушений развития детей раннего и дошкольного возраста"}]
[null,"Сентябрь","2020-09-15",1,15,{"$f":"VLOOKUP(E17,[1]!список_детей[#Data],3,1)","v":"ЧП"},{"$f":"VLOOKUP(E17,[1]!список_детей[#Data],4,1)","v":"6-7 лет"},{"$f":"VLOOKUP(E17,[1]!список_детей[#Data],5,1)","v":"д"},{"$f":"VLOOKUP(E17,[1]!список_детей[#Data],2,1)","v":15},"РР",{"$f":"VLOOKUP(J17,[1]!СИДМ[#Data],3,0)","v":0}]
[null,"Сентябрь","2020-09-16",1,16,{"$f":"VLOOKUP(E18,[1]!список_детей[#Data],3,1)","v":"МР"},{"$f":"VLOOKUP(E18,[1]!список_детей[#Data],4,1)","v":"6-7 лет"},{"$f":"VLOOKUP(E18,[1]!список_детей[#Data],5,1)","v":"д"},{"$f":"VLOOKUP(E18,[1]!список_детей[#Data],2,1)","v":15},"ООМ",{"$f":"VLOOKUP(J18,[1]!СИДМ[#Data],3,0)","v":"Психолого-педагогическая диагностика нарушений развития детей раннего и дошкольного возраста"}]
[null,"Сентябрь","2020-09-17",1,17,{"$f":"VLOOKUP(E19,[1]!список_детей[#Data],3,1)","v":"ЛР"},{"$f":"VLOOKUP(E19,[1]!список_детей[#Data],4,1)","v":"6-7 лет"},{"$f":"VLOOKUP(E19,[1]!список_детей[#Data],5,1)","v":"д"},{"$f":"VLOOKUP(E19,[1]!список_детей[#Data],2,1)","v":15},"ООП",{"$f":"VLOOKUP(J19,[1]!СИДМ[#Data],3,0)","v":"Как провести оценку индивидуального развития детей от 2 до 7 лет в рамках педагогической диагностики. Методика и диагностический инструментарий"}]
[null,"Сентябрь","2020-09-18",1,18,{"$f":"VLOOKUP(E20,[1]!список_детей[#Data],3,1)","v":"ША"},{"$f":"VLOOKUP(E20,[1]!список_детей[#Data],4,1)","v":"6-7 лет"},{"$f":"VLOOKUP(E20,[1]!список_детей[#Data],5,1)","v":"м"},{"$f":"VLOOKUP(E20,[1]!список_детей[#Data],2,1)","v":15},"В",{"$f":"VLOOKUP(J20,[1]!СИДМ[#Data],3,0)","v":"Методики социально-педагогической диагностики семьи и консультирования родителей по психолого-педагогическим проблемам"}]
[null,"Сентябрь","2020-09-19",1,19,{"$f":"VLOOKUP(E21,[1]!список_детей[#Data],3,1)","v":"КМ"},{"$f":"VLOOKUP(E21,[1]!список_детей[#Data],4,1)","v":"6-7 лет"},{"$f":"VLOOKUP(E21,[1]!список_детей[#Data],5,1)","v":"д"},{"$f":"VLOOKUP(E21,[1]!список_детей[#Data],2,1)","v":15},"П",{"$f":"VLOOKUP(J21,[1]!СИДМ[#Data],3,0)","v":"Диагностика эмоционально-личностной сферы детей дошкольного и младшего школьного возраста. Анкеты, опросники. Тесты, методики. Карты наблюдения."}]
[null,"Сентябрь","2020-09-20",2,20,{"$f":"VLOOKUP(E22,[1]!список_детей[#Data],3,1)","v":"ЖЕ"},{"$f":"VLOOKUP(E22,[1]!список_детей[#Data],4,1)","v":"6-7 лет"},{"$f":"VLOOKUP(E22,[1]!список_детей[#Data],5,1)","v":"м"},{"$f":"VLOOKUP(E22,[1]!список_детей[#Data],2,1)","v":15},"ЭП",{"$f":"VLOOKUP(J22,[1]!СИДМ[#Data],3,0)","v":"Диагностика эмоционально-личностной сферы детей дошкольного и младшего школьного возраста. Анкеты, опросники. Тесты, методики. Карты наблюдения."}]
[null,"Сентябрь","2020-09-21",2,21,{"$f":"VLOOKUP(E23,[1]!список_детей[#Data],3,1)","v":"ИК"},{"$f":"VLOOKUP(E23,[1]!список_детей[#Data],4,1)","v":"6-7 лет"},{"$f":"VLOOKUP(E23,[1]!список_детей[#Data],5,1)","v":"д"},{"$f":"VLOOKUP(E23,[1]!список_детей[#Data],2,1)","v":15},"ИО",{"$f":"VLOOKUP(J23,[1]!СИДМ[#Data],3,0)","v":"Психолого-педагогическая диагностика нарушений развития детей раннего и дошкольного возраста"}]
[null,"Сентябрь","2020-09-22",2,22,{"$f":"VLOOKUP(E24,[1]!список_детей[#Data],3,1)","v":"ФБ"},{"$f":"VLOOKUP(E24,[1]!список_детей[#Data],4,1)","v":"6-7 лет"},{"$f":"VLOOKUP(E24,[1]!список_детей[#Data],5,1)","v":"м"},{"$f":"VLOOKUP(E24,[1]!список_детей[#Data],2,1)","v":13},"РР",{"$f":"VLOOKUP(J24,[1]!СИДМ[#Data],3,0)","v":0}]
[null,"Сентябрь","2020-09-23",2,23,{"$f":"VLOOKUP(E25,[1]!список_детей[#Data],3,1)","v":"БУ"},{"$f":"VLOOKUP(E25,[1]!список_детей[#Data],4,1)","v":"6-7 лет"},{"$f":"VLOOKUP(E25,[1]!список_детей[#Data],5,1)","v":"д"},{"$f":"VLOOKUP(E25,[1]!список_детей[#Data],2,1)","v":13},"ООМ",{"$f":"VLOOKUP(J25,[1]!СИДМ[#Data],3,0)","v":"Психолого-педагогическая диагностика нарушений развития детей раннего и дошкольного возраста"}]
[null,"Сентябрь","2020-09-24",2,24,{"$f":"VLOOKUP(E26,[1]!список_детей[#Data],3,1)","v":"БЕ"},{"$f":"VLOOKUP(E26,[1]!список_детей[#Data],4,1)","v":"6-7 лет"},{"$f":"VLOOKUP(E26,[1]!список_детей[#Data],5,1)","v":"д"},{"$f":"VLOOKUP(E26,[1]!список_детей[#Data],2,1)","v":13},"ООП",{"$f":"VLOOKUP(J26,[1]!СИДМ[#Data],3,0)","v":"Как провести оценку индивидуального развития детей от 2 до 7 лет в рамках педагогической диагностики. Методика и диагностический инструментарий"}]
[null,"Сентябрь","2020-09-25",2,25,{"$f":"VLOOKUP(E27,[1]!список_детей[#Data],3,1)","v":"АЭ"},{"$f":"VLOOKUP(E27,[1]!список_детей[#Data],4,1)","v":"6-7 лет"},{"$f":"VLOOKUP(E27,[1]!список_детей[#Data],5,1)","v":"д"},{"$f":"VLOOKUP(E27,[1]!список_детей[#Data],2,1)","v":13},"В",{"$f":"VLOOKUP(J27,[1]!СИДМ[#Data],3,0)","v":"Методики социально-педагогической диагностики семьи и консультирования родителей по психолого-педагогическим проблемам"}]
[null,"Сентябрь","2020-09-26",2,26,{"$f":"VLOOKUP(E28,[1]!список_детей[#Data],3,1)","v":"БС"},{"$f":"VLOOKUP(E28,[1]!список_детей[#Data],4,1)","v":"6-7 лет"},{"$f":"VLOOKUP(E28,[1]!список_детей[#Data],5,1)","v":"м"},{"$f":"VLOOKUP(E28,[1]!список_детей[#Data],2,1)","v":13},"П",{"$f":"VLOOKUP(J28,[1]!СИДМ[#Data],3,0)","v":"Диагностика эмоционально-личностной сферы детей дошкольного и младшего школьного возраста. Анкеты, опросники. Тесты, методики. Карты наблюдения."}]
[null,"Сентябрь","2020-09-27",2,27,{"$f":"VLOOKUP(E29,[1]!список_детей[#Data],3,1)","v":"БВ"},{"$f":"VLOOKUP(E29,[1]!список_детей[#Data],4,1)","v":"3-4 года"},{"$f":"VLOOKUP(E29,[1]!список_детей[#Data],5,1)","v":"м"},{"$f":"VLOOKUP(E29,[1]!список_детей[#Data],2,1)","v":5},"ЭП",{"$f":"VLOOKUP(J29,[1]!СИДМ[#Data],3,0)","v":"Диагностика эмоционально-личностной сферы детей дошкольного и младшего школьного возраста. Анкеты, опросники. Тесты, методики. Карты наблюдения."}]
[null,"Сентябрь","2020-09-28",2,28,{"$f":"VLOOKUP(E30,[1]!список_детей[#Data],3,1)","v":"НВ"},{"$f":"VLOOKUP(E30,[1]!список_детей[#Data],4,1)","v":"3-4 года"},{"$f":"VLOOKUP(E30,[1]!список_детей[#Data],5,1)","v":"д"},{"$f":"VLOOKUP(E30,[1]!список_детей[#Data],2,1)","v":5},"ИО",{"$f":"VLOOKUP(J30,[1]!СИДМ[#Data],3,0)","v":"Психолого-педагогическая диагностика нарушений развития детей раннего и дошкольного возраста"}]
[null,"Сентябрь","2020-09-29",2,29,{"$f":"VLOOKUP(E31,[1]!список_детей[#Data],3,1)","v":"ЗВ"},{"$f":"VLOOKUP(E31,[1]!список_детей[#Data],4,1)","v":"3-4 года"},{"$f":"VLOOKUP(E31,[1]!список_детей[#Data],5,1)","v":"д"},{"$f":"VLOOKUP(E31,[1]!список_детей[#Data],2,1)","v":5},"ИО",{"$f":"VLOOKUP(J31,[1]!СИДМ[#Data],3,0)","v":"Психолого-педагогическая диагностика нарушений развития детей раннего и дошкольного возраста"}]
[null,"Сентябрь","2020-09-30",2,30,{"$f":"VLOOKUP(E32,[1]!список_детей[#Data],3,1)","v":"КА"},{"$f":"VLOOKUP(E32,[1]!список_детей[#Data],4,1)","v":"3-4 года"},{"$f":"VLOOKUP(E32,[1]!список_детей[#Data],5,1)","v":"м"},{"$f":"VLOOKUP(E32,[1]!список_детей[#Data],2,1)","v":5},"ИО",{"$f":"VLOOKUP(J32,[1]!СИДМ[#Data],3,0)","v":"Психолого-педагогическая диагностика нарушений развития детей раннего и дошкольного возраста"}]
[null,"Октябрь","2020-10-01",2,31,{"$f":"VLOOKUP(E33,[1]!список_детей[#Data],3,1)","v":"КН"},{"$f":"VLOOKUP(E33,[1]!список_детей[#Data],4,1)","v":"3-4 года"},{"$f":"VLOOKUP(E33,[1]!список_детей[#Data],5,1)","v":"м"},{"$f":"VLOOKUP(E33,[1]!список_детей[#Data],2,1)","v":5},"ИО",{"$f":"VLOOKUP(J33,[1]!СИДМ[#Data],3,0)","v":"Психолого-педагогическая диагностика нарушений развития детей раннего и дошкольного возраста"}]
[null,"Октябрь","2020-10-02",2,32,{"$f":"VLOOKUP(E34,[1]!список_детей[#Data],3,1)","v":"ЖН"},{"$f":"VLOOKUP(E34,[1]!список_детей[#Data],4,1)","v":"3-4 года"},{"$f":"VLOOKUP(E34,[1]!список_детей[#Data],5,1)","v":"д"},{"$f":"VLOOKUP(E34,[1]!список_детей[#Data],2,1)","v":5},"В",{"$f":"VLOOKUP(J34,[1]!СИДМ[#Data],3,0)","v":"Методики социально-педагогической диагностики семьи и консультирования родителей по психолого-педагогическим проблемам"}]
[null,"Октябрь","2020-10-03",2,null,{"$f":"VLOOKUP(E35,[1]!список_детей[#Data],3,1)","v":{"$error":"#N/A"}},{"$f":"VLOOKUP(E35,[1]!список_детей[#Data],4,1)","v":{"$error":"#N/A"}},{"$f":"VLOOKUP(E35,[1]!список_детей[#Data],5,1)","v":{"$error":"#N/A"}},{"$f":"VLOOKUP(E35,[1]!список_детей[#Data],2,1)","v":{"$error":"#N/A"}},"В",{"$f":"VLOOKUP(J35,[1]!СИДМ[#Data],3,0)","v":"Методики социально-педагогической диагностики семьи и консультирования родителей по психолого-педагогическим проблемам"}]
[null,"Октябрь","2020-10-04",2,null,{"$f":"VLOOKUP(E36,[1]!список_детей[#Data],3,1)","v":{"$error":"#N/A"}},{"$f":"VLOOKUP(E36,[1]!список_детей[#Data],4,1)","v":{"$error":"#N/A"}},{"$f":"VLOOKUP(E36,[1]!список_детей[#Data],5,1)","v":{"$error":"#N/A"}},{"$f":"VLOOKUP(E36,[1]!список_детей[#Data],2,1)","v":{"$error":"#N/A"}},"В",{"$f":"VLOOKUP(J36,[1]!СИДМ[#Data],3,0)","v":"Методики социально-педагогической диагностики семьи и консультирования родителей по психолого-педагогическим проблемам"}]
[null,"Октябрь","2020-10-05",2,null,{"$f":"VLOOKUP(E37,[1]!список_детей[#Data],3,1)","v":{"$error":"#N/A"}},{"$f":"VLOOKUP(E37,[1]!список_детей[#Data],4,1)","v":{"$error":"#N/A"}},{"$f":"VLOOKUP(E37,[1]!список_детей[#Data],5,1)","v":{"$error":"#N/A"}},{"$f":"VLOOKUP(E37,[1]!список_детей[#Data],2,1)","v":{"$error":"#N/A"}},"В",{"$f":"VLOOKUP(J37,[1]!СИДМ[#Data],3,0)","v":"Методики социально-педагогической диагностики семьи и консультирования родителей по психолого-педагогическим проблемам"}]
[null,"Октябрь","2020-10-06",2,null,{"$f":"VLOOKUP(E38,[1]!список_детей[#Data],3,1)","v":{"$error":"#N/A"}},{"$f":"VLOOKUP(E38,[1]!список_детей[#Data],4,1)","v":{"$error":"#N/A"}},{"$f":"VLOOKUP(E38,[1]!список_детей[#Data],5,1)","v":{"$error":"#N/A"}},{"$f":"VLOOKUP(E38,[1]!список_детей[#Data],2,1)","v":{"$error":"#N/A"}},"В",{"$f":"VLOOKUP(J38,[1]!СИДМ[#Data],3,0)","v":"Методики социально-педагогической диагностики семьи и консультирования родителей по психолого-педагогическим проблемам"}]
[null,"Октябрь","2020-10-07",2,null,{"$f":"VLOOKUP(E39,[1]!список_детей[#Data],3,1)","v":{"$error":"#N/A"}},{"$f":"VLOOKUP(E39,[1]!список_детей[#Data],4,1)","v":{"$error":"#N/A"}},{"$f":"VLOOKUP(E39,[1]!список_детей[#Data],5,1)","v":{"$error":"#N/A"}},{"$f":"VLOOKUP(E39,[1]!список_детей[#Data],2,1)","v":{"$error":"#N/A"}},"В",{"$f":"VLOOKUP(J39,[1]!СИДМ[#Data],3,0)","v":"Методики социально-педагогической диагностики семьи и консультирования родителей по психолого-педагогическим проблемам"}]
[null,"Декабрь","2020-12-10",2,null,{"$f":"VLOOKUP(E40,[1]!список_детей[#Data],3,1)","v":{"$error":"#N/A"}},{"$f":"VLOOKUP(E40,[1]!список_детей[#Data],4,1)","v":{"$error":"#N/A"}},{"$f":"VLOOKUP(E40,[1]!список_детей[#Data],5,1)","v":{"$error":"#N/A"}},{"$f":"VLOOKUP(E40,[1]!список_детей[#Data],2,1)","v":{"$error":"#N/A"}},"В",{"$f":"VLOOKUP(J40,[1]!СИДМ[#Data],3,0)","v":"Методики социально-педагогической диагностики семьи и консультирования родителей по психолого-педагогическим проблемам"}]
[null,"Декабрь","2020-12-11",2,null,{"$f":"VLOOKUP(E41,[1]!список_детей[#Data],3,1)","v":{"$error":"#N/A"}},{"$f":"VLOOKUP(E41,[1]!список_детей[#Data],4,1)","v":{"$error":"#N/A"}},{"$f":"VLOOKUP(E41,[1]!список_детей[#Data],5,1)","v":{"$error":"#N/A"}},{"$f":"VLOOKUP(E41,[1]!список_детей[#Data],2,1)","v":{"$error":"#N/A"}},"В",{"$f":"VLOOKUP(J41,[1]!СИДМ[#Data],3,0)","v":"Методики социально-педагогической диагностики семьи и консультирования родителей по психолого-педагогическим проблемам"}]
[null,"Декабрь","2020-12-14",2,null,{"$f":"VLOOKUP(E42,[1]!список_детей[#Data],3,1)","v":{"$error":"#N/A"}},{"$f":"VLOOKUP(E42,[1]!список_детей[#Data],4,1)","v":{"$error":"#N/A"}},{"$f":"VLOOKUP(E42,[1]!список_детей[#Data],5,1)","v":{"$error":"#N/A"}},{"$f":"VLOOKUP(E42,[1]!список_детей[#Data],2,1)","v":{"$error":"#N/A"}},"В",{"$f":"VLOOKUP(J42,[1]!СИДМ[#Data],3,0)","v":"Методики социально-педагогической диагностики семьи и консультирования родителей по психолого-педагогическим проблемам"}]
[null,"Декабрь","2020-12-15",2,null,{"$f":"VLOOKUP(E43,[1]!список_детей[#Data],3,1)","v":{"$error":"#N/A"}},{"$f":"VLOOKUP(E43,[1]!список_детей[#Data],4,1)","v":{"$error":"#N/A"}},{"$f":"VLOOKUP(E43,[1]!список_детей[#Data],5,1)","v":{"$error":"#N/A"}},{"$f":"VLOOKUP(E43,[1]!список_детей[#Data],2,1)","v":{"$error":"#N/A"}},"В",{"$f":"VLOOKUP(J43,[1]!СИДМ[#Data],3,0)","v":"Методики социально-педагогической диагностики семьи и консультирования родителей по психолого-педагогическим проблемам"}]
[null,"Декабрь","2020-12-16",2,42,{"$f":"VLOOKUP(E44,[1]!список_детей[#Data],3,1)","v":""},{"$f":"VLOOKUP(E44,[1]!список_детей[#Data],4,1)","v":0},{"$f":"VLOOKUP(E44,[1]!список_детей[#Data],5,1)","v":0},{"$f":"VLOOKUP(E44,[1]!список_детей[#Data],2,1)","v":0},"В",{"$f":"VLOOKUP(J44,[1]!СИДМ[#Data],3,0)","v":"Методики социально-педагогической диагностики семьи и консультирования родителей по психолого-педагогическим проблемам"}]
[null,"Декабрь","2020-12-17",2,43,{"$f":"VLOOKUP(E45,[1]!список_детей[#Data],3,1)","v":""},{"$f":"VLOOKUP(E45,[1]!список_детей[#Data],4,1)","v":0},{"$f":"VLOOKUP(E45,[1]!список_детей[#Data],5,1)","v":0},{"$f":"VLOOKUP(E45,[1]!список_детей[#Data],2,1)","v":0},"В",{"$f":"VLOOKUP(J45,[1]!СИДМ[#Data],3,0)","v":"Методики социально-педагогической диагностики семьи и консультирования родителей по психолого-педагогическим проблемам"}]
[null,"Декабрь","2020-12-18",2,44,{"$f":"VLOOKUP(E46,[1]!список_детей[#Data],3,1)","v":""},{"$f":"VLOOKUP(E46,[1]!список_детей[#Data],4,1)","v":0},{"$f":"VLOOKUP(E46,[1]!список_детей[#Data],5,1)","v":0},{"$f":"VLOOKUP(E46,[1]!список_детей[#Data],2,1)","v":0},"В",{"$f":"VLOOKUP(J46,[1]!СИДМ[#Data],3,0)","v":"Методики социально-педагогической диагностики семьи и консультирования родителей по психолого-педагогическим проблемам"}]
[null,"Декабрь","2020-12-21",2,45,{"$f":"VLOOKUP(E47,[1]!список_детей[#Data],3,1)","v":""},{"$f":"VLOOKUP(E47,[1]!список_детей[#Data],4,1)","v":0},{"$f":"VLOOKUP(E47,[1]!список_детей[#Data],5,1)","v":0},{"$f":"VLOOKUP(E47,[1]!список_детей[#Data],2,1)","v":0},"В",{"$f":"VLOOKUP(J47,[1]!СИДМ[#Data],3,0)","v":"Методики социально-педагогической диагностики семьи и консультирования родителей по психолого-педагогическим проблемам"}]
[null,"Декабрь","2020-12-22",2,46,{"$f":"VLOOKUP(E48,[1]!список_детей[#Data],3,1)","v":""},{"$f":"VLOOKUP(E48,[1]!список_детей[#Data],4,1)","v":0},{"$f":"VLOOKUP(E48,[1]!список_детей[#Data],5,1)","v":0},{"$f":"VLOOKUP(E48,[1]!список_детей[#Data],2,1)","v":0},"В",{"$f":"VLOOKUP(J48,[1]!СИДМ[#Data],3,0)","v":"Методики социально-педагогической диагностики семьи и консультирования родителей по психолого-педагогическим проблемам"}]
[null,"Декабрь","2020-12-23",2,47,{"$f":"VLOOKUP(E49,[1]!список_детей[#Data],3,1)","v":""},{"$f":"VLOOKUP(E49,[1]!список_детей[#Data],4,1)","v":0},{"$f":"VLOOKUP(E49,[1]!список_детей[#Data],5,1)","v":0},{"$f":"VLOOKUP(E49,[1]!список_детей[#Data],2,1)","v":0},"В",{"$f":"VLOOKUP(J49,[1]!СИДМ[#Data],3,0)","v":"Методики социально-педагогической диагностики семьи и консультирования родителей по психолого-педагогическим проблемам"}]
[null,"Декабрь","2020-12-24",2,48,{"$f":"VLOOKUP(E50,[1]!список_детей[#Data],3,1)","v":""},{"$f":"VLOOKUP(E50,[1]!список_детей[#Data],4,1)","v":0},{"$f":"VLOOKUP(E50,[1]!список_детей[#Data],5,1)","v":0},{"$f":"VLOOKUP(E50,[1]!список_детей[#Data],2,1)","v":0},"В",{"$f":"VLOOKUP(J50,[1]!СИДМ[#Data],3,0)","v":"Методики социально-педагогической диагностики семьи и консультирования родителей по психолого-педагогическим проблемам"}]
[null,"Декабрь","2020-12-25",2,49,{"$f":"VLOOKUP(E51,[1]!список_детей[#Data],3,1)","v":""},{"$f":"VLOOKUP(E51,[1]!список_детей[#Data],4,1)","v":0},{"$f":"VLOOKUP(E51,[1]!список_детей[#Data],5,1)","v":0},{"$f":"VLOOKUP(E51,[1]!список_детей[#Data],2,1)","v":0},"В",{"$f":"VLOOKUP(J51,[1]!СИДМ[#Data],3,0)","v":"Методики социально-педагогической диагностики семьи и консультирования родителей по психолого-педагогическим проблемам"}]
[null,"Декабрь","2020-12-28",2,50,{"$f":"VLOOKUP(E52,[1]!список_детей[#Data],3,1)","v":""},{"$f":"VLOOKUP(E52,[1]!список_детей[#Data],4,1)","v":0},{"$f":"VLOOKUP(E52,[1]!список_детей[#Data],5,1)","v":0},{"$f":"VLOOKUP(E52,[1]!список_детей[#Data],2,1)","v":0},"В",{"$f":"VLOOKUP(J52,[1]!СИДМ[#Data],3,0)","v":"Методики социально-педагогической диагностики семьи и консультирования родителей по психолого-педагогическим проблемам"}]
[null,"Декабрь","2020-12-29",2,51,{"$f":"VLOOKUP(E53,[1]!список_детей[#Data],3,1)","v":""},{"$f":"VLOOKUP(E53,[1]!список_детей[#Data],4,1)","v":0},{"$f":"VLOOKUP(E53,[1]!список_детей[#Data],5,1)","v":0},{"$f":"VLOOKUP(E53,[1]!список_детей[#Data],2,1)","v":0},"В",{"$f":"VLOOKUP(J53,[1]!СИДМ[#Data],3,0)","v":"Методики социально-педагогической диагностики семьи и консультирования родителей по психолого-педагогическим проблемам"}]
[null,"Декабрь","2020-12-30",2,52,{"$f":"VLOOKUP(E54,[1]!список_детей[#Data],3,1)","v":""},{"$f":"VLOOKUP(E54,[1]!список_детей[#Data],4,1)","v":0},{"$f":"VLOOKUP(E54,[1]!список_детей[#Data],5,1)","v":0},{"$f":"VLOOKUP(E54,[1]!список_детей[#Data],2,1)","v":0},"В",{"$f":"VLOOKUP(J54,[1]!СИДМ[#Data],3,0)","v":"Методики социально-педагогической диагностики семьи и консультирования родителей по психолого-педагогическим проблемам"}]
[null,"Декабрь","2020-12-31",2,53,{"$f":"VLOOKUP(E55,[1]!список_детей[#Data],3,1)","v":""},{"$f":"VLOOKUP(E55,[1]!список_детей[#Data],4,1)","v":0},{"$f":"VLOOKUP(E55,[1]!список_детей[#Data],5,1)","v":0},{"$f":"VLOOKUP(E55,[1]!список_детей[#Data],2,1)","v":0},"В",{"$f":"VLOOKUP(J55,[1]!СИДМ[#Data],3,0)","v":"Методики социально-педагогической диагностики семьи и консультирования родителей по психолого-педагогическим проблемам"}]
[null,"Январь","2021-01-01",2,54,{"$f":"VLOOKUP(E56,[1]!список_детей[#Data],3,1)","v":""},{"$f":"VLOOKUP(E56,[1]!список_детей[#Data],4,1)","v":0},{"$f":"VLOOKUP(E56,[1]!список_детей[#Data],5,1)","v":0},{"$f":"VLOOKUP(E56,[1]!список_детей[#Data],2,1)","v":0},"В",{"$f":"VLOOKUP(J56,[1]!СИДМ[#Data],3,0)","v":"Методики социально-педагогической диагностики семьи и консультирования родителей по психолого-педагогическим проблемам"}]
[null,"Январь","2021-01-04",2,55,{"$f":"VLOOKUP(E57,[1]!список_детей[#Data],3,1)","v":""},{"$f":"VLOOKUP(E57,[1]!список_детей[#Data],4,1)","v":0},{"$f":"VLOOKUP(E57,[1]!список_детей[#Data],5,1)","v":0},{"$f":"VLOOKUP(E57,[1]!список_детей[#Data],2,1)","v":0},"В",{"$f":"VLOOKUP(J57,[1]!СИДМ[#Data],3,0)","v":"Методики социально-педагогической диагностики семьи и консультирования родителей по психолого-педагогическим проблемам"}]
[null,"Январь","2021-01-05",2,56,{"$f":"VLOOKUP(E58,[1]!список_детей[#Data],3,1)","v":""},{"$f":"VLOOKUP(E58,[1]!список_детей[#Data],4,1)","v":0},{"$f":"VLOOKUP(E58,[1]!список_детей[#Data],5,1)","v":0},{"$f":"VLOOKUP(E58,[1]!список_детей[#Data],2,1)","v":0},"В",{"$f":"VLOOKUP(J58,[1]!СИДМ[#Data],3,0)","v":"Методики социально-педагогической диагностики семьи и консультирования родителей по психолого-педагогическим проблемам"}]
[null,"Январь","2021-01-06",2,57,{"$f":"VLOOKUP(E59,[1]!список_детей[#Data],3,1)","v":""},{"$f":"VLOOKUP(E59,[1]!список_детей[#Data],4,1)","v":0},{"$f":"VLOOKUP(E59,[1]!список_детей[#Data],5,1)","v":0},{"$f":"VLOOKUP(E59,[1]!список_детей[#Data],2,1)","v":0},"В",{"$f":"VLOOKUP(J59,[1]!СИДМ[#Data],3,0)","v":"Методики социально-педагогической диагностики семьи и консультирования родителей по психолого-педагогическим проблемам"}]
[null,"Январь","2021-01-07",2,58,{"$f":"VLOOKUP(E60,[1]!список_детей[#Data],3,1)","v":""},{"$f":"VLOOKUP(E60,[1]!список_детей[#Data],4,1)","v":0},{"$f":"VLOOKUP(E60,[1]!список_детей[#Data],5,1)","v":0},{"$f":"VLOOKUP(E60,[1]!список_детей[#Data],2,1)","v":0},"В",{"$f":"VLOOKUP(J60,[1]!СИДМ[#Data],3,0)","v":"Методики социально-педагогической диагностики семьи и консультирования родителей по психолого-педагогическим проблемам"}]
[null,"Январь","2021-01-08",2,59,{"$f":"VLOOKUP(E61,[1]!список_детей[#Data],3,1)","v":""},{"$f":"VLOOKUP(E61,[1]!список_детей[#Data],4,1)","v":0},{"$f":"VLOOKUP(E61,[1]!список_детей[#Data],5,1)","v":0},{"$f":"VLOOKUP(E61,[1]!список_детей[#Data],2,1)","v":0},"В",{"$f":"VLOOKUP(J61,[1]!СИДМ[#Data],3,0)","v":"Методики социально-педагогической диагностики семьи и консультирования родителей по психолого-педагогическим проблемам"}]
[null,"Январь","2021-01-11",2,60,{"$f":"VLOOKUP(E62,[1]!список_детей[#Data],3,1)","v":""},{"$f":"VLOOKUP(E62,[1]!список_детей[#Data],4,1)","v":0},{"$f":"VLOOKUP(E62,[1]!список_детей[#Data],5,1)","v":0},{"$f":"VLOOKUP(E62,[1]!список_детей[#Data],2,1)","v":0},"В",{"$f":"VLOOKUP(J62,[1]!СИДМ[#Data],3,0)","v":"Методики социально-педагогической диагностики семьи и консультирования родителей по психолого-педагогическим проблемам"}]
[null,"Январь","2021-01-12",2,61,{"$f":"VLOOKUP(E63,[1]!список_детей[#Data],3,1)","v":""},{"$f":"VLOOKUP(E63,[1]!список_детей[#Data],4,1)","v":0},{"$f":"VLOOKUP(E63,[1]!список_детей[#Data],5,1)","v":0},{"$f":"VLOOKUP(E63,[1]!список_детей[#Data],2,1)","v":0},"В",{"$f":"VLOOKUP(J63,[1]!СИДМ[#Data],3,0)","v":"Методики социально-педагогической диагностики семьи и консультирования родителей по психолого-педагогическим проблемам"}]
[null,"Январь","2021-01-13",2,62,{"$f":"VLOOKUP(E64,[1]!список_детей[#Data],3,1)","v":""},{"$f":"VLOOKUP(E64,[1]!список_детей[#Data],4,1)","v":0},{"$f":"VLOOKUP(E64,[1]!список_детей[#Data],5,1)","v":0},{"$f":"VLOOKUP(E64,[1]!список_детей[#Data],2,1)","v":0},"В",{"$f":"VLOOKUP(J64,[1]!СИДМ[#Data],3,0)","v":"Методики социально-педагогической диагностики семьи и консультирования родителей по психолого-педагогическим проблемам"}]
[null,"Январь","2021-01-14",2,63,{"$f":"VLOOKUP(E65,[1]!список_детей[#Data],3,1)","v":""},{"$f":"VLOOKUP(E65,[1]!список_детей[#Data],4,1)","v":0},{"$f":"VLOOKUP(E65,[1]!список_детей[#Data],5,1)","v":0},{"$f":"VLOOKUP(E65,[1]!список_детей[#Data],2,1)","v":0},"В",{"$f":"VLOOKUP(J65,[1]!СИДМ[#Data],3,0)","v":"Методики социально-педагогической диагностики семьи и консультирования родителей по психолого-педагогическим проблемам"}]
[null,"Январь","2021-01-15",2,64,{"$f":"VLOOKUP(E66,[1]!список_детей[#Data],3,1)","v":""},{"$f":"VLOOKUP(E66,[1]!список_детей[#Data],4,1)","v":0},{"$f":"VLOOKUP(E66,[1]!список_детей[#Data],5,1)","v":0},{"$f":"VLOOKUP(E66,[1]!список_детей[#Data],2,1)","v":0},"В",{"$f":"VLOOKUP(J66,[1]!СИДМ[#Data],3,0)","v":"Методики социально-педагогической диагностики семьи и консультирования родителей по психолого-педагогическим проблемам"}]
[null,"Январь","2021-01-18",2,65,{"$f":"VLOOKUP(E67,[1]!список_детей[#Data],3,1)","v":""},{"$f":"VLOOKUP(E67,[1]!список_детей[#Data],4,1)","v":0},{"$f":"VLOOKUP(E67,[1]!список_детей[#Data],5,1)","v":0},{"$f":"VLOOKUP(E67,[1]!список_детей[#Data],2,1)","v":0},"В",{"$f":"VLOOKUP(J67,[1]!СИДМ[#Data],3,0)","v":"Методики социально-педагогической диагностики семьи и консультирования родителей по психолого-педагогическим проблемам"}]
[null,{"$f":"TEXT(C68,\"ММММ\")","v":"Январь"},"2021-01-19",2,66,{"$f":"VLOOKUP(E68,[1]!список_детей[#Data],3,1)","v":""},{"$f":"VLOOKUP(E68,[1]!список_детей[#Data],4,1)","v":0},{"$f":"VLOOKUP(E68,[1]!список_детей[#Data],5,1)","v":0},{"$f":"VLOOKUP(E68,[1]!список_детей[#Data],2,1)","v":0},"В",{"$f":"VLOOKUP(J68,[1]!СИДМ[#Data],3,0)","v":"Методики социально-педагогической диагностики семьи и консультирования родителей по психолого-педагогическим проблемам"}]
[null,"Январь","2021-01-20",2,67,{"$f":"VLOOKUP(E69,[1]!список_детей[#Data],3,1)","v":""},{"$f":"VLOOKUP(E69,[1]!список_детей[#Data],4,1)","v":0},{"$f":"VLOOKUP(E69,[1]!список_детей[#Data],5,1)","v":0},{"$f":"VLOOKUP(E69,[1]!список_детей[#Data],2,1)","v":0},"В",{"$f":"VLOOKUP(J69,[1]!СИДМ[#Data],3,0)","v":"Методики социально-педагогической диагностики семьи и консультирования родителей по психолого-педагогическим проблемам"}]
[null,"Январь","2021-01-21",2,68,{"$f":"VLOOKUP(E70,[1]!список_детей[#Data],3,1)","v":""},{"$f":"VLOOKUP(E70,[1]!список_детей[#Data],4,1)","v":0},{"$f":"VLOOKUP(E70,[1]!список_детей[#Data],5,1)","v":0},{"$f":"VLOOKUP(E70,[1]!список_детей[#Data],2,1)","v":0},"В",{"$f":"VLOOKUP(J70,[1]!СИДМ[#Data],3,0)","v":"Методики социально-педагогической диагностики семьи и консультирования родителей по психолого-педагогическим проблемам"}]
[null,"Январь","2021-01-22",2,69,{"$f":"VLOOKUP(E71,[1]!список_детей[#Data],3,1)","v":""},{"$f":"VLOOKUP(E71,[1]!список_детей[#Data],4,1)","v":0},{"$f":"VLOOKUP(E71,[1]!список_детей[#Data],5,1)","v":0},{"$f":"VLOOKUP(E71,[1]!список_детей[#Data],2,1)","v":0},"В",{"$f":"VLOOKUP(J71,[1]!СИДМ[#Data],3,0)","v":"Методики социально-педагогической диагностики семьи и консультирования родителей по психолого-педагогическим проблемам"}]
[null,"Январь","2021-01-25",2,70,{"$f":"VLOOKUP(E72,[1]!список_детей[#Data],3,1)","v":""},{"$f":"VLOOKUP(E72,[1]!список_детей[#Data],4,1)","v":0},{"$f":"VLOOKUP(E72,[1]!список_детей[#Data],5,1)","v":0},{"$f":"VLOOKUP(E72,[1]!список_детей[#Data],2,1)","v":0},"В",{"$f":"VLOOKUP(J72,[1]!СИДМ[#Data],3,0)","v":"Методики социально-педагогической диагностики семьи и консультирования родителей по психолого-педагогическим проблемам"}]
[null,"Январь","2021-01-26",2,71,{"$f":"VLOOKUP(E73,[1]!список_детей[#Data],3,1)","v":""},{"$f":"VLOOKUP(E73,[1]!список_детей[#Data],4,1)","v":0},{"$f":"VLOOKUP(E73,[1]!список_детей[#Data],5,1)","v":0},{"$f":"VLOOKUP(E73,[1]!список_детей[#Data],2,1)","v":0},"В",{"$f":"VLOOKUP(J73,[1]!СИДМ[#Data],3,0)","v":"Методики социально-педагогической диагностики семьи и консультирования родителей по психолого-педагогическим проблемам"}]
[null,"Январь","2021-01-27",2,72,{"$f":"VLOOKUP(E74,[1]!список_детей[#Data],3,1)","v":""},{"$f":"VLOOKUP(E74,[1]!список_детей[#Data],4,1)","v":0},{"$f":"VLOOKUP(E74,[1]!список_детей[#Data],5,1)","v":0},{"$f":"VLOOKUP(E74,[1]!список_детей[#Data],2,1)","v":0},"В",{"$f":"VLOOKUP(J74,[1]!СИДМ[#Data],3,0)","v":"Методики социально-педагогической диагностики семьи и консультирования родителей по психолого-педагогическим проблемам"}]
[null,"Январь","2021-01-28",2,73,{"$f":"VLOOKUP(E75,[1]!список_детей[#Data],3,1)","v":""},{"$f":"VLOOKUP(E75,[1]!список_детей[#Data],4,1)","v":0},{"$f":"VLOOKUP(E75,[1]!список_детей[#Data],5,1)","v":0},{"$f":"VLOOKUP(E75,[1]!список_детей[#Data],2,1)","v":0},"В",{"$f":"VLOOKUP(J75,[1]!СИДМ[#Data],3,0)","v":"Методики социально-педагогической диагностики семьи и консультирования родителей по психолого-педагогическим проблемам"}]
[null,"Январь","2021-01-29",2,74,{"$f":"VLOOKUP(E76,[1]!список_детей[#Data],3,1)","v":""},{"$f":"VLOOKUP(E76,[1]!список_детей[#Data],4,1)","v":0},{"$f":"VLOOKUP(E76,[1]!список_детей[#Data],5,1)","v":0},{"$f":"VLOOKUP(E76,[1]!список_детей[#Data],2,1)","v":0},"В",{"$f":"VLOOKUP(J76,[1]!СИДМ[#Data],3,0)","v":"Методики социально-педагогической диагностики семьи и консультирования родителей по психолого-педагогическим проблемам"}]
[null,"Февраль","2021-02-01",2,75,{"$f":"VLOOKUP(E77,[1]!список_детей[#Data],3,1)","v":""},{"$f":"VLOOKUP(E77,[1]!список_детей[#Data],4,1)","v":0},{"$f":"VLOOKUP(E77,[1]!список_детей[#Data],5,1)","v":0},{"$f":"VLOOKUP(E77,[1]!список_детей[#Data],2,1)","v":0},"В",{"$f":"VLOOKUP(J77,[1]!СИДМ[#Data],3,0)","v":"Методики социально-педагогической диагностики семьи и консультирования родителей по психолого-педагогическим проблемам"}]
[null,"Февраль","2021-02-02",2,76,{"$f":"VLOOKUP(E78,[1]!список_детей[#Data],3,1)","v":""},{"$f":"VLOOKUP(E78,[1]!список_детей[#Data],4,1)","v":0},{"$f":"VLOOKUP(E78,[1]!список_детей[#Data],5,1)","v":0},{"$f":"VLOOKUP(E78,[1]!список_детей[#Data],2,1)","v":0},"В",{"$f":"VLOOKUP(J78,[1]!СИДМ[#Data],3,0)","v":"Методики социально-педагогической диагностики семьи и консультирования родителей по психолого-педагогическим проблемам"}]
[null,"Февраль","2021-02-03",2,77,{"$f":"VLOOKUP(E79,[1]!список_детей[#Data],3,1)","v":""},{"$f":"VLOOKUP(E79,[1]!список_детей[#Data],4,1)","v":0},{"$f":"VLOOKUP(E79,[1]!список_детей[#Data],5,1)","v":0},{"$f":"VLOOKUP(E79,[1]!список_детей[#Data],2,1)","v":0},"В",{"$f":"VLOOKUP(J79,[1]!СИДМ[#Data],3,0)","v":"Методики социально-педагогической диагностики семьи и консультирования родителей по психолого-педагогическим проблемам"}]
[null,"Февраль","2021-02-04",2,78,{"$f":"VLOOKUP(E80,[1]!список_детей[#Data],3,1)","v":""},{"$f":"VLOOKUP(E80,[1]!список_детей[#Data],4,1)","v":0},{"$f":"VLOOKUP(E80,[1]!список_детей[#Data],5,1)","v":0},{"$f":"VLOOKUP(E80,[1]!список_детей[#Data],2,1)","v":0},"В",{"$f":"VLOOKUP(J80,[1]!СИДМ[#Data],3,0)","v":"Методики социально-педагогической диагностики семьи и консультирования родителей по психолого-педагогическим проблемам"}]
[null,"Февраль","2021-02-05",2,79,{"$f":"VLOOKUP(E81,[1]!список_детей[#Data],3,1)","v":""},{"$f":"VLOOKUP(E81,[1]!список_детей[#Data],4,1)","v":0},{"$f":"VLOOKUP(E81,[1]!список_детей[#Data],5,1)","v":0},{"$f":"VLOOKUP(E81,[1]!список_детей[#Data],2,1)","v":0},"В",{"$f":"VLOOKUP(J81,[1]!СИДМ[#Data],3,0)","v":"Методики социально-педагогической диагностики семьи и консультирования родителей по психолого-педагогическим проблемам"}]
[null,"Февраль","2021-02-08",2,80,{"$f":"VLOOKUP(E82,[1]!список_детей[#Data],3,1)","v":""},{"$f":"VLOOKUP(E82,[1]!список_детей[#Data],4,1)","v":0},{"$f":"VLOOKUP(E82,[1]!список_детей[#Data],5,1)","v":0},{"$f":"VLOOKUP(E82,[1]!список_детей[#Data],2,1)","v":0},"В",{"$f":"VLOOKUP(J82,[1]!СИДМ[#Data],3,0)","v":"Методики социально-педагогической диагностики семьи и консультирования родителей по психолого-педагогическим проблемам"}]
[null,"Февраль","2021-02-09",2,81,{"$f":"VLOOKUP(E83,[1]!список_детей[#Data],3,1)","v":""},{"$f":"VLOOKUP(E83,[1]!список_детей[#Data],4,1)","v":0},{"$f":"VLOOKUP(E83,[1]!список_детей[#Data],5,1)","v":0},{"$f":"VLOOKUP(E83,[1]!список_детей[#Data],2,1)","v":0},"В",{"$f":"VLOOKUP(J83,[1]!СИДМ[#Data],3,0)","v":"Методики социально-педагогической диагностики семьи и консультирования родителей по психолого-педагогическим проблемам"}]
[null,"Февраль","2021-02-10",2,82,{"$f":"VLOOKUP(E84,[1]!список_детей[#Data],3,1)","v":""},{"$f":"VLOOKUP(E84,[1]!список_детей[#Data],4,1)","v":0},{"$f":"VLOOKUP(E84,[1]!список_детей[#Data],5,1)","v":0},{"$f":"VLOOKUP(E84,[1]!список_детей[#Data],2,1)","v":0},"В",{"$f":"VLOOKUP(J84,[1]!СИДМ[#Data],3,0)","v":"Методики социально-педагогической диагностики семьи и консультирования родителей по психолого-педагогическим проблемам"}]
[null,"Февраль","2021-02-11",2,83,{"$f":"VLOOKUP(E85,[1]!список_детей[#Data],3,1)","v":""},{"$f":"VLOOKUP(E85,[1]!список_детей[#Data],4,1)","v":0},{"$f":"VLOOKUP(E85,[1]!список_детей[#Data],5,1)","v":0},{"$f":"VLOOKUP(E85,[1]!список_детей[#Data],2,1)","v":0},"В",{"$f":"VLOOKUP(J85,[1]!СИДМ[#Data],3,0)","v":"Методики социально-педагогической диагностики семьи и консультирования родителей по психолого-педагогическим проблемам"}]
[null,"Февраль","2021-02-12",2,84,{"$f":"VLOOKUP(E86,[1]!список_детей[#Data],3,1)","v":""},{"$f":"VLOOKUP(E86,[1]!список_детей[#Data],4,1)","v":0},{"$f":"VLOOKUP(E86,[1]!список_детей[#Data],5,1)","v":0},{"$f":"VLOOKUP(E86,[1]!список_детей[#Data],2,1)","v":0},"В",{"$f":"VLOOKUP(J86,[1]!СИДМ[#Data],3,0)","v":"Методики социально-педагогической диагностики семьи и консультирования родителей по психолого-педагогическим проблемам"}]
[null,"Февраль","2021-02-15",2,85,{"$f":"VLOOKUP(E87,[1]!список_детей[#Data],3,1)","v":""},{"$f":"VLOOKUP(E87,[1]!список_детей[#Data],4,1)","v":0},{"$f":"VLOOKUP(E87,[1]!список_детей[#Data],5,1)","v":0},{"$f":"VLOOKUP(E87,[1]!список_детей[#Data],2,1)","v":0},"В",{"$f":"VLOOKUP(J87,[1]!СИДМ[#Data],3,0)","v":"Методики социально-педагогической диагностики семьи и консультирования родителей по психолого-педагогическим проблемам"}]
[null,"Февраль","2021-02-16",2,86,{"$f":"VLOOKUP(E88,[1]!список_детей[#Data],3,1)","v":""},{"$f":"VLOOKUP(E88,[1]!список_детей[#Data],4,1)","v":0},{"$f":"VLOOKUP(E88,[1]!список_детей[#Data],5,1)","v":0},{"$f":"VLOOKUP(E88,[1]!список_детей[#Data],2,1)","v":0},"В",{"$f":"VLOOKUP(J88,[1]!СИДМ[#Data],3,0)","v":"Методики социально-педагогической диагностики семьи и консультирования родителей по психолого-педагогическим проблемам"}]
[null,"Февраль","2021-02-17",2,87,{"$f":"VLOOKUP(E89,[1]!список_детей[#Data],3,1)","v":""},{"$f":"VLOOKUP(E89,[1]!список_детей[#Data],4,1)","v":0},{"$f":"VLOOKUP(E89,[1]!список_детей[#Data],5,1)","v":0},{"$f":"VLOOKUP(E89,[1]!список_детей[#Data],2,1)","v":0},"В",{"$f":"VLOOKUP(J89,[1]!СИДМ[#Data],3,0)","v":"Методики социально-педагогической диагностики семьи и консультирования родителей по психолого-педагогическим проблемам"}]
[null,"Февраль","2021-02-18",2,88,{"$f":"VLOOKUP(E90,[1]!список_детей[#Data],3,1)","v":""},{"$f":"VLOOKUP(E90,[1]!список_детей[#Data],4,1)","v":0},{"$f":"VLOOKUP(E90,[1]!список_детей[#Data],5,1)","v":0},{"$f":"VLOOKUP(E90,[1]!список_детей[#Data],2,1)","v":0},"В",{"$f":"VLOOKUP(J90,[1]!СИДМ[#Data],3,0)","v":"Методики социально-педагогической диагностики семьи и консультирования родителей по психолого-педагогическим проблемам"}]
[null,"Февраль","2021-02-19",2,89,{"$f":"VLOOKUP(E91,[1]!список_детей[#Data],3,1)","v":""},{"$f":"VLOOKUP(E91,[1]!список_детей[#Data],4,1)","v":0},{"$f":"VLOOKUP(E91,[1]!список_детей[#Data],5,1)","v":0},{"$f":"VLOOKUP(E91,[1]!список_детей[#Data],2,1)","v":0},"В",{"$f":"VLOOKUP(J91,[1]!СИДМ[#Data],3,0)","v":"Методики социально-педагогической диагностики семьи и консультирования родителей по психолого-педагогическим проблемам"}]
[null,"Февраль","2021-02-22",2,90,{"$f":"VLOOKUP(E92,[1]!список_детей[#Data],3,1)","v":""},{"$f":"VLOOKUP(E92,[1]!список_детей[#Data],4,1)","v":0},{"$f":"VLOOKUP(E92,[1]!список_детей[#Data],5,1)","v":0},{"$f":"VLOOKUP(E92,[1]!список_детей[#Data],2,1)","v":0},"В",{"$f":"VLOOKUP(J92,[1]!СИДМ[#Data],3,0)","v":"Методики социально-педагогической диагностики семьи и консультирования родителей по психолого-педагогическим проблемам"}]
[null,"Февраль","2021-02-23",2,91,{"$f":"VLOOKUP(E93,[1]!список_детей[#Data],3,1)","v":""},{"$f":"VLOOKUP(E93,[1]!список_детей[#Data],4,1)","v":0},{"$f":"VLOOKUP(E93,[1]!список_детей[#Data],5,1)","v":0},{"$f":"VLOOKUP(E93,[1]!список_детей[#Data],2,1)","v":0},"В",{"$f":"VLOOKUP(J93,[1]!СИДМ[#Data],3,0)","v":"Методики социально-педагогической диагностики семьи и консультирования родителей по психолого-педагогическим проблемам"}]
[null,"Февраль","2021-02-24",2,92,{"$f":"VLOOKUP(E94,[1]!список_детей[#Data],3,1)","v":""},{"$f":"VLOOKUP(E94,[1]!список_детей[#Data],4,1)","v":0},{"$f":"VLOOKUP(E94,[1]!список_детей[#Data],5,1)","v":0},{"$f":"VLOOKUP(E94,[1]!список_детей[#Data],2,1)","v":0},"В",{"$f":"VLOOKUP(J94,[1]!СИДМ[#Data],3,0)","v":"Методики социально-педагогической диагностики семьи и консультирования родителей по психолого-педагогическим проблемам"}]
[null,"Февраль","2021-02-25",2,93,{"$f":"VLOOKUP(E95,[1]!список_детей[#Data],3,1)","v":""},{"$f":"VLOOKUP(E95,[1]!список_детей[#Data],4,1)","v":0},{"$f":"VLOOKUP(E95,[1]!список_детей[#Data],5,1)","v":0},{"$f":"VLOOKUP(E95,[1]!список_детей[#Data],2,1)","v":0},"В",{"$f":"VLOOKUP(J95,[1]!СИДМ[#Data],3,0)","v":"Методики социально-педагогической диагностики семьи и консультирования родителей по психолого-педагогическим проблемам"}]
[null,"Февраль","2021-02-26",2,94,{"$f":"VLOOKUP(E96,[1]!список_детей[#Data],3,1)","v":""},{"$f":"VLOOKUP(E96,[1]!список_детей[#Data],4,1)","v":0},{"$f":"VLOOKUP(E96,[1]!список_детей[#Data],5,1)","v":0},{"$f":"VLOOKUP(E96,[1]!список_детей[#Data],2,1)","v":0},"В",{"$f":"VLOOKUP(J96,[1]!СИДМ[#Data],3,0)","v":"Методики социально-педагогической диагностики семьи и консультирования родителей по психолого-педагогическим проблемам"}]
[null,"Март","2021-03-01",2,95,{"$f":"VLOOKUP(E97,[1]!список_детей[#Data],3,1)","v":""},{"$f":"VLOOKUP(E97,[1]!список_детей[#Data],4,1)","v":0},{"$f":"VLOOKUP(E97,[1]!список_детей[#Data],5,1)","v":0},{"$f":"VLOOKUP(E97,[1]!список_детей[#Data],2,1)","v":0},"В",{"$f":"VLOOKUP(J97,[1]!СИДМ[#Data],3,0)","v":"Методики социально-педагогической диагностики семьи и консультирования родителей по психолого-педагогическим проблемам"}]
[null,"Март","2021-03-02",2,96,{"$f":"VLOOKUP(E98,[1]!список_детей[#Data],3,1)","v":""},{"$f":"VLOOKUP(E98,[1]!список_детей[#Data],4,1)","v":0},{"$f":"VLOOKUP(E98,[1]!список_детей[#Data],5,1)","v":0},{"$f":"VLOOKUP(E98,[1]!список_детей[#Data],2,1)","v":0},"В",{"$f":"VLOOKUP(J98,[1]!СИДМ[#Data],3,0)","v":"Методики социально-педагогической диагностики семьи и консультирования родителей по психолого-педагогическим проблемам"}]
[null,"Март","2021-03-03",2,97,{"$f":"VLOOKUP(E99,[1]!список_детей[#Data],3,1)","v":""},{"$f":"VLOOKUP(E99,[1]!список_детей[#Data],4,1)","v":0},{"$f":"VLOOKUP(E99,[1]!список_детей[#Data],5,1)","v":0},{"$f":"VLOOKUP(E99,[1]!список_детей[#Data],2,1)","v":0},"В",{"$f":"VLOOKUP(J99,[1]!СИДМ[#Data],3,0)","v":"Методики социально-педагогической диагностики семьи и консультирования родителей по психолого-педагогическим проблемам"}]
[null,"Март","2021-03-04",2,98,{"$f":"VLOOKUP(E100,[1]!список_детей[#Data],3,1)","v":""},{"$f":"VLOOKUP(E100,[1]!список_детей[#Data],4,1)","v":0},{"$f":"VLOOKUP(E100,[1]!список_детей[#Data],5,1)","v":0},{"$f":"VLOOKUP(E100,[1]!список_детей[#Data],2,1)","v":0},"В",{"$f":"VLOOKUP(J100,[1]!СИДМ[#Data],3,0)","v":"Методики социально-педагогической диагностики семьи и консультирования родителей по психолого-педагогическим проблемам"}]
[null,"Март","2021-03-05",2,99,{"$f":"VLOOKUP(E101,[1]!список_детей[#Data],3,1)","v":""},{"$f":"VLOOKUP(E101,[1]!список_детей[#Data],4,1)","v":0},{"$f":"VLOOKUP(E101,[1]!список_детей[#Data],5,1)","v":0},{"$f":"VLOOKUP(E101,[1]!список_детей[#Data],2,1)","v":0},"В",{"$f":"VLOOKUP(J101,[1]!СИДМ[#Data],3,0)","v":"Методики социально-педагогической диагностики семьи и консультирования родителей по психолого-педагогическим проблемам"}]
[null,"Март","2021-03-08",2,100,{"$f":"VLOOKUP(E102,[1]!список_детей[#Data],3,1)","v":""},{"$f":"VLOOKUP(E102,[1]!список_детей[#Data],4,1)","v":0},{"$f":"VLOOKUP(E102,[1]!список_детей[#Data],5,1)","v":0},{"$f":"VLOOKUP(E102,[1]!список_детей[#Data],2,1)","v":0},"В",{"$f":"VLOOKUP(J102,[1]!СИДМ[#Data],3,0)","v":"Методики социально-педагогической диагностики семьи и консультирования родителей по психолого-педагогическим проблемам"}]
[null,"Март","2021-03-09",2,101,{"$f":"VLOOKUP(E103,[1]!список_детей[#Data],3,1)","v":""},{"$f":"VLOOKUP(E103,[1]!список_детей[#Data],4,1)","v":0},{"$f":"VLOOKUP(E103,[1]!список_детей[#Data],5,1)","v":0},{"$f":"VLOOKUP(E103,[1]!список_детей[#Data],2,1)","v":0},"В",{"$f":"VLOOKUP(J103,[1]!СИДМ[#Data],3,0)","v":"Методики социально-педагогической диагностики семьи и консультирования родителей по психолого-педагогическим проблемам"}]
[null,"Март","2021-03-10",2,102,{"$f":"VLOOKUP(E104,[1]!список_детей[#Data],3,1)","v":""},{"$f":"VLOOKUP(E104,[1]!список_детей[#Data],4,1)","v":0},{"$f":"VLOOKUP(E104,[1]!список_детей[#Data],5,1)","v":0},{"$f":"VLOOKUP(E104,[1]!список_детей[#Data],2,1)","v":0},"В",{"$f":"VLOOKUP(J104,[1]!СИДМ[#Data],3,0)","v":"Методики социально-педагогической диагностики семьи и консультирования родителей по психолого-педагогическим проблемам"}]
[null,"Март","2021-03-11",2,103,{"$f":"VLOOKUP(E105,[1]!список_детей[#Data],3,1)","v":""},{"$f":"VLOOKUP(E105,[1]!список_детей[#Data],4,1)","v":0},{"$f":"VLOOKUP(E105,[1]!список_детей[#Data],5,1)","v":0},{"$f":"VLOOKUP(E105,[1]!список_детей[#Data],2,1)","v":0},"В",{"$f":"VLOOKUP(J105,[1]!СИДМ[#Data],3,0)","v":"Методики социально-педагогической диагностики семьи и консультирования родителей по психолого-педагогическим проблемам"}]
[null,"Март","2021-03-12",2,104,{"$f":"VLOOKUP(E106,[1]!список_детей[#Data],3,1)","v":""},{"$f":"VLOOKUP(E106,[1]!список_детей[#Data],4,1)","v":0},{"$f":"VLOOKUP(E106,[1]!список_детей[#Data],5,1)","v":0},{"$f":"VLOOKUP(E106,[1]!список_детей[#Data],2,1)","v":0},"В",{"$f":"VLOOKUP(J106,[1]!СИДМ[#Data],3,0)","v":"Методики социально-педагогической диагностики семьи и консультирования родителей по психолого-педагогическим проблемам"}]
[null,"Март","2021-03-15",2,105,{"$f":"VLOOKUP(E107,[1]!список_детей[#Data],3,1)","v":""},{"$f":"VLOOKUP(E107,[1]!список_детей[#Data],4,1)","v":0},{"$f":"VLOOKUP(E107,[1]!список_детей[#Data],5,1)","v":0},{"$f":"VLOOKUP(E107,[1]!список_детей[#Data],2,1)","v":0},"В",{"$f":"VLOOKUP(J107,[1]!СИДМ[#Data],3,0)","v":"Методики социально-педагогической диагностики семьи и консультирования родителей по психолого-педагогическим проблемам"}]
[null,"Март","2021-03-16",2,106,{"$f":"VLOOKUP(E108,[1]!список_детей[#Data],3,1)","v":""},{"$f":"VLOOKUP(E108,[1]!список_детей[#Data],4,1)","v":0},{"$f":"VLOOKUP(E108,[1]!список_детей[#Data],5,1)","v":0},{"$f":"VLOOKUP(E108,[1]!список_детей[#Data],2,1)","v":0},"В",{"$f":"VLOOKUP(J108,[1]!СИДМ[#Data],3,0)","v":"Методики социально-педагогической диагностики семьи и консультирования родителей по психолого-педагогическим проблемам"}]
[null,"Март","2021-03-17",2,107,{"$f":"VLOOKUP(E109,[1]!список_детей[#Data],3,1)","v":""},{"$f":"VLOOKUP(E109,[1]!список_детей[#Data],4,1)","v":0},{"$f":"VLOOKUP(E109,[1]!список_детей[#Data],5,1)","v":0},{"$f":"VLOOKUP(E109,[1]!список_детей[#Data],2,1)","v":0},"В",{"$f":"VLOOKUP(J109,[1]!СИДМ[#Data],3,0)","v":"Методики социально-педагогической диагностики семьи и консультирования родителей по психолого-педагогическим проблемам"}]
[null,"Март","2021-03-18",2,108,{"$f":"VLOOKUP(E110,[1]!список_детей[#Data],3,1)","v":""},{"$f":"VLOOKUP(E110,[1]!список_детей[#Data],4,1)","v":0},{"$f":"VLOOKUP(E110,[1]!список_детей[#Data],5,1)","v":0},{"$f":"VLOOKUP(E110,[1]!список_детей[#Data],2,1)","v":0},"В",{"$f":"VLOOKUP(J110,[1]!СИДМ[#Data],3,0)","v":"Методики социально-педагогической диагностики семьи и консультирования родителей по психолого-педагогическим проблемам"}]
[null,"Март","2021-03-19",2,109,{"$f":"VLOOKUP(E111,[1]!список_детей[#Data],3,1)","v":""},{"$f":"VLOOKUP(E111,[1]!список_детей[#Data],4,1)","v":0},{"$f":"VLOOKUP(E111,[1]!список_детей[#Data],5,1)","v":0},{"$f":"VLOOKUP(E111,[1]!список_детей[#Data],2,1)","v":0},"В",{"$f":"VLOOKUP(J111,[1]!СИДМ[#Data],3,0)","v":"Методики социально-педагогической диагностики семьи и консультирования родителей по психолого-педагогическим проблемам"}]
[null,"Март","2021-03-22",2,110,{"$f":"VLOOKUP(E112,[1]!список_детей[#Data],3,1)","v":""},{"$f":"VLOOKUP(E112,[1]!список_детей[#Data],4,1)","v":0},{"$f":"VLOOKUP(E112,[1]!список_детей[#Data],5,1)","v":0},{"$f":"VLOOKUP(E112,[1]!список_детей[#Data],2,1)","v":0},"В",{"$f":"VLOOKUP(J112,[1]!СИДМ[#Data],3,0)","v":"Методики социально-педагогической диагностики семьи и консультирования родителей по психолого-педагогическим проблемам"}]
[null,"Март","2021-03-23",2,111,{"$f":"VLOOKUP(E113,[1]!список_детей[#Data],3,1)","v":""},{"$f":"VLOOKUP(E113,[1]!список_детей[#Data],4,1)","v":0},{"$f":"VLOOKUP(E113,[1]!список_детей[#Data],5,1)","v":0},{"$f":"VLOOKUP(E113,[1]!список_детей[#Data],2,1)","v":0},"В",{"$f":"VLOOKUP(J113,[1]!СИДМ[#Data],3,0)","v":"Методики социально-педагогической диагностики семьи и консультирования родителей по психолого-педагогическим проблемам"}]
[null,"Март","2021-03-24",2,112,{"$f":"VLOOKUP(E114,[1]!список_детей[#Data],3,1)","v":""},{"$f":"VLOOKUP(E114,[1]!список_детей[#Data],4,1)","v":0},{"$f":"VLOOKUP(E114,[1]!список_детей[#Data],5,1)","v":0},{"$f":"VLOOKUP(E114,[1]!список_детей[#Data],2,1)","v":0},"В",{"$f":"VLOOKUP(J114,[1]!СИДМ[#Data],3,0)","v":"Методики социально-педагогической диагностики семьи и консультирования родителей по психолого-педагогическим проблемам"}]
[null,"Март","2021-03-25",2,113,{"$f":"VLOOKUP(E115,[1]!список_детей[#Data],3,1)","v":""},{"$f":"VLOOKUP(E115,[1]!список_детей[#Data],4,1)","v":0},{"$f":"VLOOKUP(E115,[1]!список_детей[#Data],5,1)","v":0},{"$f":"VLOOKUP(E115,[1]!список_детей[#Data],2,1)","v":0},"В",{"$f":"VLOOKUP(J115,[1]!СИДМ[#Data],3,0)","v":"Методики социально-педагогической диагностики семьи и консультирования родителей по психолого-педагогическим проблемам"}]
[null,"Март","2021-03-26",2,114,{"$f":"VLOOKUP(E116,[1]!список_детей[#Data],3,1)","v":""},{"$f":"VLOOKUP(E116,[1]!список_детей[#Data],4,1)","v":0},{"$f":"VLOOKUP(E116,[1]!список_детей[#Data],5,1)","v":0},{"$f":"VLOOKUP(E116,[1]!список_детей[#Data],2,1)","v":0},"В",{"$f":"VLOOKUP(J116,[1]!СИДМ[#Data],3,0)","v":"Методики социально-педагогической диагностики семьи и консультирования родителей по психолого-педагогическим проблемам"}]
[null,"Март","2021-03-29",2,115,{"$f":"VLOOKUP(E117,[1]!список_детей[#Data],3,1)","v":""},{"$f":"VLOOKUP(E117,[1]!список_детей[#Data],4,1)","v":0},{"$f":"VLOOKUP(E117,[1]!список_детей[#Data],5,1)","v":0},{"$f":"VLOOKUP(E117,[1]!список_детей[#Data],2,1)","v":0},"В",{"$f":"VLOOKUP(J117,[1]!СИДМ[#Data],3,0)","v":"Методики социально-педагогической диагностики семьи и консультирования родителей по психолого-педагогическим проблемам"}]
[null,"Март","2021-03-30",2,116,{"$f":"VLOOKUP(E118,[1]!список_детей[#Data],3,1)","v":""},{"$f":"VLOOKUP(E118,[1]!список_детей[#Data],4,1)","v":0},{"$f":"VLOOKUP(E118,[1]!список_детей[#Data],5,1)","v":0},{"$f":"VLOOKUP(E118,[1]!список_детей[#Data],2,1)","v":0},"В",{"$f":"VLOOKUP(J118,[1]!СИДМ[#Data],3,0)","v":"Методики социально-педагогической диагностики семьи и консультирования родителей по психолого-педагогическим проблемам"}]
[null,"Март","2021-03-31",2,117,{"$f":"VLOOKUP(E119,[1]!список_детей[#Data],3,1)","v":""},{"$f":"VLOOKUP(E119,[1]!список_детей[#Data],4,1)","v":0},{"$f":"VLOOKUP(E119,[1]!список_детей[#Data],5,1)","v":0},{"$f":"VLOOKUP(E119,[1]!список_детей[#Data],2,1)","v":0},"В",{"$f":"VLOOKUP(J119,[1]!СИДМ[#Data],3,0)","v":"Методики социально-педагогической диагностики семьи и консультирования родителей по психолого-педагогическим проблемам"}]
[null,"Апрель","2021-04-01",2,118,{"$f":"VLOOKUP(E120,[1]!список_детей[#Data],3,1)","v":""},{"$f":"VLOOKUP(E120,[1]!список_детей[#Data],4,1)","v":0},{"$f":"VLOOKUP(E120,[1]!список_детей[#Data],5,1)","v":0},{"$f":"VLOOKUP(E120,[1]!список_детей[#Data],2,1)","v":0},"В",{"$f":"VLOOKUP(J120,[1]!СИДМ[#Data],3,0)","v":"Методики социально-педагогической диагностики семьи и консультирования родителей по психолого-педагогическим проблемам"}]
[null,"Апрель","2021-04-02",2,119,{"$f":"VLOOKUP(E121,[1]!список_детей[#Data],3,1)","v":""},{"$f":"VLOOKUP(E121,[1]!список_детей[#Data],4,1)","v":0},{"$f":"VLOOKUP(E121,[1]!список_детей[#Data],5,1)","v":0},{"$f":"VLOOKUP(E121,[1]!список_детей[#Data],2,1)","v":0},"В",{"$f":"VLOOKUP(J121,[1]!СИДМ[#Data],3,0)","v":"Методики социально-педагогической диагностики семьи и консультирования родителей по психолого-педагогическим проблемам"}]
[null,"Апрель","2021-04-05",2,120,{"$f":"VLOOKUP(E122,[1]!список_детей[#Data],3,1)","v":""},{"$f":"VLOOKUP(E122,[1]!список_детей[#Data],4,1)","v":0},{"$f":"VLOOKUP(E122,[1]!список_детей[#Data],5,1)","v":0},{"$f":"VLOOKUP(E122,[1]!список_детей[#Data],2,1)","v":0},"В",{"$f":"VLOOKUP(J122,[1]!СИДМ[#Data],3,0)","v":"Методики социально-педагогической диагностики семьи и консультирования родителей по психолого-педагогическим проблемам"}]
[null,"Апрель","2021-04-06",2,121,{"$f":"VLOOKUP(E123,[1]!список_детей[#Data],3,1)","v":""},{"$f":"VLOOKUP(E123,[1]!список_детей[#Data],4,1)","v":0},{"$f":"VLOOKUP(E123,[1]!список_детей[#Data],5,1)","v":0},{"$f":"VLOOKUP(E123,[1]!список_детей[#Data],2,1)","v":0},"В",{"$f":"VLOOKUP(J123,[1]!СИДМ[#Data],3,0)","v":"Методики социально-педагогической диагностики семьи и консультирования родителей по психолого-педагогическим проблемам"}]
[null,"Апрель","2021-04-07",2,122,{"$f":"VLOOKUP(E124,[1]!список_детей[#Data],3,1)","v":""},{"$f":"VLOOKUP(E124,[1]!список_детей[#Data],4,1)","v":0},{"$f":"VLOOKUP(E124,[1]!список_детей[#Data],5,1)","v":0},{"$f":"VLOOKUP(E124,[1]!список_детей[#Data],2,1)","v":0},"В",{"$f":"VLOOKUP(J124,[1]!СИДМ[#Data],3,0)","v":"Методики социально-педагогической диагностики семьи и консультирования родителей по психолого-педагогическим проблемам"}]
[null,"Апрель","2021-04-08",2,123,{"$f":"VLOOKUP(E125,[1]!список_детей[#Data],3,1)","v":""},{"$f":"VLOOKUP(E125,[1]!список_детей[#Data],4,1)","v":0},{"$f":"VLOOKUP(E125,[1]!список_детей[#Data],5,1)","v":0},{"$f":"VLOOKUP(E125,[1]!список_детей[#Data],2,1)","v":0},"В",{"$f":"VLOOKUP(J125,[1]!СИДМ[#Data],3,0)","v":"Методики социально-педагогической диагностики семьи и консультирования родителей по психолого-педагогическим проблемам"}]
[null,"Апрель","2021-04-09",2,124,{"$f":"VLOOKUP(E126,[1]!список_детей[#Data],3,1)","v":""},{"$f":"VLOOKUP(E126,[1]!список_детей[#Data],4,1)","v":0},{"$f":"VLOOKUP(E126,[1]!список_детей[#Data],5,1)","v":0},{"$f":"VLOOKUP(E126,[1]!список_детей[#Data],2,1)","v":0},"В",{"$f":"VLOOKUP(J126,[1]!СИДМ[#Data],3,0)","v":"Методики социально-педагогической диагностики семьи и консультирования родителей по психолого-педагогическим проблемам"}]
[null,"Апрель","2021-04-12",2,125,{"$f":"VLOOKUP(E127,[1]!список_детей[#Data],3,1)","v":""},{"$f":"VLOOKUP(E127,[1]!список_детей[#Data],4,1)","v":0},{"$f":"VLOOKUP(E127,[1]!список_детей[#Data],5,1)","v":0},{"$f":"VLOOKUP(E127,[1]!список_детей[#Data],2,1)","v":0},"В",{"$f":"VLOOKUP(J127,[1]!СИДМ[#Data],3,0)","v":"Методики социально-педагогической диагностики семьи и консультирования родителей по психолого-педагогическим проблемам"}]
[null,"Апрель","2021-04-13",2,126,{"$f":"VLOOKUP(E128,[1]!список_детей[#Data],3,1)","v":""},{"$f":"VLOOKUP(E128,[1]!список_детей[#Data],4,1)","v":0},{"$f":"VLOOKUP(E128,[1]!список_детей[#Data],5,1)","v":0},{"$f":"VLOOKUP(E128,[1]!список_детей[#Data],2,1)","v":0},"В",{"$f":"VLOOKUP(J128,[1]!СИДМ[#Data],3,0)","v":"Методики социально-педагогической диагностики семьи и консультирования родителей по психолого-педагогическим проблемам"}]
[null,"Апрель","2021-04-14",2,127,{"$f":"VLOOKUP(E129,[1]!список_детей[#Data],3,1)","v":""},{"$f":"VLOOKUP(E129,[1]!список_детей[#Data],4,1)","v":0},{"$f":"VLOOKUP(E129,[1]!список_детей[#Data],5,1)","v":0},{"$f":"VLOOKUP(E129,[1]!список_детей[#Data],2,1)","v":0},"В",{"$f":"VLOOKUP(J129,[1]!СИДМ[#Data],3,0)","v":"Методики социально-педагогической диагностики семьи и консультирования родителей по психолого-педагогическим проблемам"}]
[null,"Апрель","2021-04-15",2,128,{"$f":"VLOOKUP(E130,[1]!список_детей[#Data],3,1)","v":""},{"$f":"VLOOKUP(E130,[1]!список_детей[#Data],4,1)","v":0},{"$f":"VLOOKUP(E130,[1]!список_детей[#Data],5,1)","v":0},{"$f":"VLOOKUP(E130,[1]!список_детей[#Data],2,1)","v":0},"В",{"$f":"VLOOKUP(J130,[1]!СИДМ[#Data],3,0)","v":"Методики социально-педагогической диагностики семьи и консультирования родителей по психолого-педагогическим проблемам"}]
[null,"Апрель","2021-04-16",2,129,{"$f":"VLOOKUP(E131,[1]!список_детей[#Data],3,1)","v":""},{"$f":"VLOOKUP(E131,[1]!список_детей[#Data],4,1)","v":0},{"$f":"VLOOKUP(E131,[1]!список_детей[#Data],5,1)","v":0},{"$f":"VLOOKUP(E131,[1]!список_детей[#Data],2,1)","v":0},"В",{"$f":"VLOOKUP(J131,[1]!СИДМ[#Data],3,0)","v":"Методики социально-педагогической диагностики семьи и консультирования родителей по психолого-педагогическим проблемам"}]
[null,{"$f":"TEXT(C132,\"ММММ\")","v":"Апрель"},"2021-04-19",2,130,{"$f":"VLOOKUP(E132,[1]!список_детей[#Data],3,1)","v":""},{"$f":"VLOOKUP(E132,[1]!список_детей[#Data],4,1)","v":0},{"$f":"VLOOKUP(E132,[1]!список_детей[#Data],5,1)","v":0},{"$f":"VLOOKUP(E132,[1]!список_детей[#Data],2,1)","v":0},"В",{"$f":"VLOOKUP(J132,[1]!СИДМ[#Data],3,0)","v":"Методики социально-педагогической диагностики семьи и консультирования родителей по психолого-педагогическим проблемам"}]
[null,"Апрель","2021-04-20",2,131,{"$f":"VLOOKUP(E133,[1]!список_детей[#Data],3,1)","v":""},{"$f":"VLOOKUP(E133,[1]!список_детей[#Data],4,1)","v":0},{"$f":"VLOOKUP(E133,[1]!список_детей[#Data],5,1)","v":0},{"$f":"VLOOKUP(E133,[1]!список_детей[#Data],2,1)","v":0},"В",{"$f":"VLOOKUP(J133,[1]!СИДМ[#Data],3,0)","v":"Методики социально-педагогической диагностики семьи и консультирования родителей по психолого-педагогическим проблемам"}]
[null,"Апрель","2021-04-21",2,132,{"$f":"VLOOKUP(E134,[1]!список_детей[#Data],3,1)","v":""},{"$f":"VLOOKUP(E134,[1]!список_детей[#Data],4,1)","v":0},{"$f":"VLOOKUP(E134,[1]!список_детей[#Data],5,1)","v":0},{"$f":"VLOOKUP(E134,[1]!список_детей[#Data],2,1)","v":0},"В",{"$f":"VLOOKUP(J134,[1]!СИДМ[#Data],3,0)","v":"Методики социально-педагогической диагностики семьи и консультирования родителей по психолого-педагогическим проблемам"}]
[null,"Апрель","2021-04-22",2,133,{"$f":"VLOOKUP(E135,[1]!список_детей[#Data],3,1)","v":""},{"$f":"VLOOKUP(E135,[1]!список_детей[#Data],4,1)","v":0},{"$f":"VLOOKUP(E135,[1]!список_детей[#Data],5,1)","v":0},{"$f":"VLOOKUP(E135,[1]!список_детей[#Data],2,1)","v":0},"В",{"$f":"VLOOKUP(J135,[1]!СИДМ[#Data],3,0)","v":"Методики социально-педагогической диагностики семьи и консультирования родителей по психолого-педагогическим проблемам"}]
[null,"Апрель","2021-04-23",2,134,{"$f":"VLOOKUP(E136,[1]!список_детей[#Data],3,1)","v":""},{"$f":"VLOOKUP(E136,[1]!список_детей[#Data],4,1)","v":0},{"$f":"VLOOKUP(E136,[1]!список_детей[#Data],5,1)","v":0},{"$f":"VLOOKUP(E136,[1]!список_детей[#Data],2,1)","v":0},"В",{"$f":"VLOOKUP(J136,[1]!СИДМ[#Data],3,0)","v":"Методики социально-педагогической диагностики семьи и консультирования родителей по психолого-педагогическим проблемам"}]
[null,"Апрель","2021-04-26",2,135,{"$f":"VLOOKUP(E137,[1]!список_детей[#Data],3,1)","v":""},{"$f":"VLOOKUP(E137,[1]!список_детей[#Data],4,1)","v":0},{"$f":"VLOOKUP(E137,[1]!список_детей[#Data],5,1)","v":0},{"$f":"VLOOKUP(E137,[1]!список_детей[#Data],2,1)","v":0},"В",{"$f":"VLOOKUP(J137,[1]!СИДМ[#Data],3,0)","v":"Методики социально-педагогической диагностики семьи и консультирования родителей по психолого-педагогическим проблемам"}]
[null,"Апрель","2021-04-27",2,136,{"$f":"VLOOKUP(E138,[1]!список_детей[#Data],3,1)","v":""},{"$f":"VLOOKUP(E138,[1]!список_детей[#Data],4,1)","v":0},{"$f":"VLOOKUP(E138,[1]!список_детей[#Data],5,1)","v":0},{"$f":"VLOOKUP(E138,[1]!список_детей[#Data],2,1)","v":0},"В",{"$f":"VLOOKUP(J138,[1]!СИДМ[#Data],3,0)","v":"Методики социально-педагогической диагностики семьи и консультирования родителей по психолого-педагогическим проблемам"}]
[null,"Апрель","2021-04-28",2,137,{"$f":"VLOOKUP(E139,[1]!список_детей[#Data],3,1)","v":""},{"$f":"VLOOKUP(E139,[1]!список_детей[#Data],4,1)","v":0},{"$f":"VLOOKUP(E139,[1]!список_детей[#Data],5,1)","v":0},{"$f":"VLOOKUP(E139,[1]!список_детей[#Data],2,1)","v":0},"В",{"$f":"VLOOKUP(J139,[1]!СИДМ[#Data],3,0)","v":"Методики социально-педагогической диагностики семьи и консультирования родителей по психолого-педагогическим проблемам"}]
[null,"Апрель","2021-04-29",2,138,{"$f":"VLOOKUP(E140,[1]!список_детей[#Data],3,1)","v":""},{"$f":"VLOOKUP(E140,[1]!список_детей[#Data],4,1)","v":0},{"$f":"VLOOKUP(E140,[1]!список_детей[#Data],5,1)","v":0},{"$f":"VLOOKUP(E140,[1]!список_детей[#Data],2,1)","v":0},"В",{"$f":"VLOOKUP(J140,[1]!СИДМ[#Data],3,0)","v":"Методики социально-педагогической диагностики семьи и консультирования родителей по психолого-педагогическим проблемам"}]
[null,"Апрель","2021-04-30",2,139,{"$f":"VLOOKUP(E141,[1]!список_детей[#Data],3,1)","v":""},{"$f":"VLOOKUP(E141,[1]!список_детей[#Data],4,1)","v":0},{"$f":"VLOOKUP(E141,[1]!список_детей[#Data],5,1)","v":0},{"$f":"VLOOKUP(E141,[1]!список_детей[#Data],2,1)","v":0},"В",{"$f":"VLOOKUP(J141,[1]!СИДМ[#Data],3,0)","v":"Методики социально-педагогической диагностики семьи и консультирования родителей по психолого-педагогическим проблемам"}]
[null,"Май","2021-05-03",2,140,{"$f":"VLOOKUP(E142,[1]!список_детей[#Data],3,1)","v":""},{"$f":"VLOOKUP(E142,[1]!список_детей[#Data],4,1)","v":0},{"$f":"VLOOKUP(E142,[1]!список_детей[#Data],5,1)","v":0},{"$f":"VLOOKUP(E142,[1]!список_детей[#Data],2,1)","v":0},"В",{"$f":"VLOOKUP(J142,[1]!СИДМ[#Data],3,0)","v":"Методики социально-педагогической диагностики семьи и консультирования родителей по психолого-педагогическим проблемам"}]
[null,"Май","2021-05-04",2,141,{"$f":"VLOOKUP(E143,[1]!список_детей[#Data],3,1)","v":""},{"$f":"VLOOKUP(E143,[1]!список_детей[#Data],4,1)","v":0},{"$f":"VLOOKUP(E143,[1]!список_детей[#Data],5,1)","v":0},{"$f":"VLOOKUP(E143,[1]!список_детей[#Data],2,1)","v":0},"В",{"$f":"VLOOKUP(J143,[1]!СИДМ[#Data],3,0)","v":"Методики социально-педагогической диагностики семьи и консультирования родителей по психолого-педагогическим проблемам"}]
[null,"Май","2021-05-05",2,142,{"$f":"VLOOKUP(E144,[1]!список_детей[#Data],3,1)","v":""},{"$f":"VLOOKUP(E144,[1]!список_детей[#Data],4,1)","v":0},{"$f":"VLOOKUP(E144,[1]!список_детей[#Data],5,1)","v":0},{"$f":"VLOOKUP(E144,[1]!список_детей[#Data],2,1)","v":0},"В",{"$f":"VLOOKUP(J144,[1]!СИДМ[#Data],3,0)","v":"Методики социально-педагогической диагностики семьи и консультирования родителей по психолого-педагогическим проблемам"}]
[null,"Май","2021-05-06",2,143,{"$f":"VLOOKUP(E145,[1]!список_детей[#Data],3,1)","v":""},{"$f":"VLOOKUP(E145,[1]!список_детей[#Data],4,1)","v":0},{"$f":"VLOOKUP(E145,[1]!список_детей[#Data],5,1)","v":0},{"$f":"VLOOKUP(E145,[1]!список_детей[#Data],2,1)","v":0},"В",{"$f":"VLOOKUP(J145,[1]!СИДМ[#Data],3,0)","v":"Методики социально-педагогической диагностики семьи и консультирования родителей по психолого-педагогическим проблемам"}]
[null,"Май","2021-05-07",2,144,{"$f":"VLOOKUP(E146,[1]!список_детей[#Data],3,1)","v":""},{"$f":"VLOOKUP(E146,[1]!список_детей[#Data],4,1)","v":0},{"$f":"VLOOKUP(E146,[1]!список_детей[#Data],5,1)","v":0},{"$f":"VLOOKUP(E146,[1]!список_детей[#Data],2,1)","v":0},"В",{"$f":"VLOOKUP(J146,[1]!СИДМ[#Data],3,0)","v":"Методики социально-педагогической диагностики семьи и консультирования родителей по психолого-педагогическим проблемам"}]
[null,"Май","2021-05-10",2,145,{"$f":"VLOOKUP(E147,[1]!список_детей[#Data],3,1)","v":""},{"$f":"VLOOKUP(E147,[1]!список_детей[#Data],4,1)","v":0},{"$f":"VLOOKUP(E147,[1]!список_детей[#Data],5,1)","v":0},{"$f":"VLOOKUP(E147,[1]!список_детей[#Data],2,1)","v":0},"В",{"$f":"VLOOKUP(J147,[1]!СИДМ[#Data],3,0)","v":"Методики социально-педагогической диагностики семьи и консультирования родителей по психолого-педагогическим проблемам"}]
[null,"Май","2021-05-11",2,146,{"$f":"VLOOKUP(E148,[1]!список_детей[#Data],3,1)","v":""},{"$f":"VLOOKUP(E148,[1]!список_детей[#Data],4,1)","v":0},{"$f":"VLOOKUP(E148,[1]!список_детей[#Data],5,1)","v":0},{"$f":"VLOOKUP(E148,[1]!список_детей[#Data],2,1)","v":0},"В",{"$f":"VLOOKUP(J148,[1]!СИДМ[#Data],3,0)","v":"Методики социально-педагогической диагностики семьи и консультирования родителей по психолого-педагогическим проблемам"}]
[null,"Май","2021-05-12",2,147,{"$f":"VLOOKUP(E149,[1]!список_детей[#Data],3,1)","v":""},{"$f":"VLOOKUP(E149,[1]!список_детей[#Data],4,1)","v":0},{"$f":"VLOOKUP(E149,[1]!список_детей[#Data],5,1)","v":0},{"$f":"VLOOKUP(E149,[1]!список_детей[#Data],2,1)","v":0},"В",{"$f":"VLOOKUP(J149,[1]!СИДМ[#Data],3,0)","v":"Методики социально-педагогической диагностики семьи и консультирования родителей по психолого-педагогическим проблемам"}]
[null,"Май","2021-05-13",2,148,{"$f":"VLOOKUP(E150,[1]!список_детей[#Data],3,1)","v":""},{"$f":"VLOOKUP(E150,[1]!список_детей[#Data],4,1)","v":0},{"$f":"VLOOKUP(E150,[1]!список_детей[#Data],5,1)","v":0},{"$f":"VLOOKUP(E150,[1]!список_детей[#Data],2,1)","v":0},"В",{"$f":"VLOOKUP(J150,[1]!СИДМ[#Data],3,0)","v":"Методики социально-педагогической диагностики семьи и консультирования родителей по психолого-педагогическим проблемам"}]
[null,"Май","2021-05-14",2,149,{"$f":"VLOOKUP(E151,[1]!список_детей[#Data],3,1)","v":""},{"$f":"VLOOKUP(E151,[1]!список_детей[#Data],4,1)","v":0},{"$f":"VLOOKUP(E151,[1]!список_детей[#Data],5,1)","v":0},{"$f":"VLOOKUP(E151,[1]!список_детей[#Data],2,1)","v":0},"В",{"$f":"VLOOKUP(J151,[1]!СИДМ[#Data],3,0)","v":"Методики социально-педагогической диагностики семьи и консультирования родителей по психолого-педагогическим проблемам"}]
[null,"Май","2021-05-17",2,150,{"$f":"VLOOKUP(E152,[1]!список_детей[#Data],3,1)","v":""},{"$f":"VLOOKUP(E152,[1]!список_детей[#Data],4,1)","v":0},{"$f":"VLOOKUP(E152,[1]!список_детей[#Data],5,1)","v":0},{"$f":"VLOOKUP(E152,[1]!список_детей[#Data],2,1)","v":0},"В",{"$f":"VLOOKUP(J152,[1]!СИДМ[#Data],3,0)","v":"Методики социально-педагогической диагностики семьи и консультирования родителей по психолого-педагогическим проблемам"}]
[null,"Май","2021-05-18",2,151,{"$f":"VLOOKUP(E153,[1]!список_детей[#Data],3,1)","v":""},{"$f":"VLOOKUP(E153,[1]!список_детей[#Data],4,1)","v":0},{"$f":"VLOOKUP(E153,[1]!список_детей[#Data],5,1)","v":0},{"$f":"VLOOKUP(E153,[1]!список_детей[#Data],2,1)","v":0},"В",{"$f":"VLOOKUP(J153,[1]!СИДМ[#Data],3,0)","v":"Методики социально-педагогической диагностики семьи и консультирования родителей по психолого-педагогическим проблемам"}]
[null,"Май","2021-05-19",2,152,{"$f":"VLOOKUP(E154,[1]!список_детей[#Data],3,1)","v":""},{"$f":"VLOOKUP(E154,[1]!список_детей[#Data],4,1)","v":0},{"$f":"VLOOKUP(E154,[1]!список_детей[#Data],5,1)","v":0},{"$f":"VLOOKUP(E154,[1]!список_детей[#Data],2,1)","v":0},"В",{"$f":"VLOOKUP(J154,[1]!СИДМ[#Data],3,0)","v":"Методики социально-педагогической диагностики семьи и консультирования родителей по психолого-педагогическим проблемам"}]
[null,"Май","2021-05-20",2,153,{"$f":"VLOOKUP(E155,[1]!список_детей[#Data],3,1)","v":""},{"$f":"VLOOKUP(E155,[1]!список_детей[#Data],4,1)","v":0},{"$f":"VLOOKUP(E155,[1]!список_детей[#Data],5,1)","v":0},{"$f":"VLOOKUP(E155,[1]!список_детей[#Data],2,1)","v":0},"В",{"$f":"VLOOKUP(J155,[1]!СИДМ[#Data],3,0)","v":"Методики социально-педагогической диагностики семьи и консультирования родителей по психолого-педагогическим проблемам"}]
[null,"Май","2021-05-21",2,154,{"$f":"VLOOKUP(E156,[1]!список_детей[#Data],3,1)","v":""},{"$f":"VLOOKUP(E156,[1]!список_детей[#Data],4,1)","v":0},{"$f":"VLOOKUP(E156,[1]!список_детей[#Data],5,1)","v":0},{"$f":"VLOOKUP(E156,[1]!список_детей[#Data],2,1)","v":0},"В",{"$f":"VLOOKUP(J156,[1]!СИДМ[#Data],3,0)","v":"Методики социально-педагогической диагностики семьи и консультирования родителей по психолого-педагогическим проблемам"}]
[null,"Май","2021-05-24",2,155,{"$f":"VLOOKUP(E157,[1]!список_детей[#Data],3,1)","v":""},{"$f":"VLOOKUP(E157,[1]!список_детей[#Data],4,1)","v":0},{"$f":"VLOOKUP(E157,[1]!список_детей[#Data],5,1)","v":0},{"$f":"VLOOKUP(E157,[1]!список_детей[#Data],2,1)","v":0},"В",{"$f":"VLOOKUP(J157,[1]!СИДМ[#Data],3,0)","v":"Методики социально-педагогической диагностики семьи и консультирования родителей по психолого-педагогическим проблемам"}]
[null,"Май","2021-05-25",2,156,{"$f":"VLOOKUP(E158,[1]!список_детей[#Data],3,1)","v":""},{"$f":"VLOOKUP(E158,[1]!список_детей[#Data],4,1)","v":0},{"$f":"VLOOKUP(E158,[1]!список_детей[#Data],5,1)","v":0},{"$f":"VLOOKUP(E158,[1]!список_детей[#Data],2,1)","v":0},"В",{"$f":"VLOOKUP(J158,[1]!СИДМ[#Data],3,0)","v":"Методики социально-педагогической диагностики семьи и консультирования родителей по психолого-педагогическим проблемам"}]
[null,"Май","2021-05-26",2,157,{"$f":"VLOOKUP(E159,[1]!список_детей[#Data],3,1)","v":""},{"$f":"VLOOKUP(E159,[1]!список_детей[#Data],4,1)","v":0},{"$f":"VLOOKUP(E159,[1]!список_детей[#Data],5,1)","v":0},{"$f":"VLOOKUP(E159,[1]!список_детей[#Data],2,1)","v":0},"В",{"$f":"VLOOKUP(J159,[1]!СИДМ[#Data],3,0)","v":"Методики социально-педагогической диагностики семьи и консультирования родителей по психолого-педагогическим проблемам"}]
[null,"Май","2021-05-27",2,158,{"$f":"VLOOKUP(E160,[1]!список_детей[#Data],3,1)","v":""},{"$f":"VLOOKUP(E160,[1]!список_детей[#Data],4,1)","v":0},{"$f":"VLOOKUP(E160,[1]!список_детей[#Data],5,1)","v":0},{"$f":"VLOOKUP(E160,[1]!список_детей[#Data],2,1)","v":0},"В",{"$f":"VLOOKUP(J160,[1]!СИДМ[#Data],3,0)","v":"Методики социально-педагогической диагностики семьи и консультирования родителей по психолого-педагогическим проблемам"}]
[null,"Май","2021-05-28",2,159,{"$f":"VLOOKUP(E161,[1]!список_детей[#Data],3,1)","v":""},{"$f":"VLOOKUP(E161,[1]!список_детей[#Data],4,1)","v":0},{"$f":"VLOOKUP(E161,[1]!список_детей[#Data],5,1)","v":0},{"$f":"VLOOKUP(E161,[1]!список_детей[#Data],2,1)","v":0},"В",{"$f":"VLOOKUP(J161,[1]!СИДМ[#Data],3,0)","v":"Методики социально-педагогической диагностики семьи и консультирования родителей по психолого-педагогическим проблемам"}]
[null,"Май","2021-05-31",2,160,{"$f":"VLOOKUP(E162,[1]!список_детей[#Data],3,1)","v":""},{"$f":"VLOOKUP(E162,[1]!список_детей[#Data],4,1)","v":0},{"$f":"VLOOKUP(E162,[1]!список_детей[#Data],5,1)","v":0},{"$f":"VLOOKUP(E162,[1]!список_детей[#Data],2,1)","v":0},"В",{"$f":"VLOOKUP(J162,[1]!СИДМ[#Data],3,0)","v":"Методики социально-педагогической диагностики семьи и консультирования родителей по психолого-педагогическим проблемам"}]
[null,"Июнь","2021-06-01",2,161,{"$f":"VLOOKUP(E163,[1]!список_детей[#Data],3,1)","v":""},{"$f":"VLOOKUP(E163,[1]!список_детей[#Data],4,1)","v":0},{"$f":"VLOOKUP(E163,[1]!список_детей[#Data],5,1)","v":0},{"$f":"VLOOKUP(E163,[1]!список_детей[#Data],2,1)","v":0},"В",{"$f":"VLOOKUP(J163,[1]!СИДМ[#Data],3,0)","v":"Методики социально-педагогической диагностики семьи и консультирования родителей по психолого-педагогическим проблемам"}]
[null,"Июнь","2021-06-02",2,162,{"$f":"VLOOKUP(E164,[1]!список_детей[#Data],3,1)","v":""},{"$f":"VLOOKUP(E164,[1]!список_детей[#Data],4,1)","v":0},{"$f":"VLOOKUP(E164,[1]!список_детей[#Data],5,1)","v":0},{"$f":"VLOOKUP(E164,[1]!список_детей[#Data],2,1)","v":0},"В",{"$f":"VLOOKUP(J164,[1]!СИДМ[#Data],3,0)","v":"Методики социально-педагогической диагностики семьи и консультирования родителей по психолого-педагогическим проблемам"}]
[null,"Июнь","2021-06-03",2,163,{"$f":"VLOOKUP(E165,[1]!список_детей[#Data],3,1)","v":""},{"$f":"VLOOKUP(E165,[1]!список_детей[#Data],4,1)","v":0},{"$f":"VLOOKUP(E165,[1]!список_детей[#Data],5,1)","v":0},{"$f":"VLOOKUP(E165,[1]!список_детей[#Data],2,1)","v":0},"В",{"$f":"VLOOKUP(J165,[1]!СИДМ[#Data],3,0)","v":"Методики социально-педагогической диагностики семьи и консультирования родителей по психолого-педагогическим проблемам"}]
[null,"Июнь","2021-06-04",2,164,{"$f":"VLOOKUP(E166,[1]!список_детей[#Data],3,1)","v":""},{"$f":"VLOOKUP(E166,[1]!список_детей[#Data],4,1)","v":0},{"$f":"VLOOKUP(E166,[1]!список_детей[#Data],5,1)","v":0},{"$f":"VLOOKUP(E166,[1]!список_детей[#Data],2,1)","v":0},"В",{"$f":"VLOOKUP(J166,[1]!СИДМ[#Data],3,0)","v":"Методики социально-педагогической диагностики семьи и консультирования родителей по психолого-педагогическим проблемам"}]
[null,"Июнь","2021-06-07",2,165,{"$f":"VLOOKUP(E167,[1]!список_детей[#Data],3,1)","v":""},{"$f":"VLOOKUP(E167,[1]!список_детей[#Data],4,1)","v":0},{"$f":"VLOOKUP(E167,[1]!список_детей[#Data],5,1)","v":0},{"$f":"VLOOKUP(E167,[1]!список_детей[#Data],2,1)","v":0},"В",{"$f":"VLOOKUP(J167,[1]!СИДМ[#Data],3,0)","v":"Методики социально-педагогической диагностики семьи и консультирования родителей по психолого-педагогическим проблемам"}]
[null,"Июнь","2021-06-08",2,166,{"$f":"VLOOKUP(E168,[1]!список_детей[#Data],3,1)","v":""},{"$f":"VLOOKUP(E168,[1]!список_детей[#Data],4,1)","v":0},{"$f":"VLOOKUP(E168,[1]!список_детей[#Data],5,1)","v":0},{"$f":"VLOOKUP(E168,[1]!список_детей[#Data],2,1)","v":0},"В",{"$f":"VLOOKUP(J168,[1]!СИДМ[#Data],3,0)","v":"Методики социально-педагогической диагностики семьи и консультирования родителей по психолого-педагогическим проблемам"}]
[null,"Июнь","2021-06-09",2,167,{"$f":"VLOOKUP(E169,[1]!список_детей[#Data],3,1)","v":""},{"$f":"VLOOKUP(E169,[1]!список_детей[#Data],4,1)","v":0},{"$f":"VLOOKUP(E169,[1]!список_детей[#Data],5,1)","v":0},{"$f":"VLOOKUP(E169,[1]!список_детей[#Data],2,1)","v":0},"В",{"$f":"VLOOKUP(J169,[1]!СИДМ[#Data],3,0)","v":"Методики социально-педагогической диагностики семьи и консультирования родителей по психолого-педагогическим проблемам"}]
[null,"Июнь","2021-06-10",2,168,{"$f":"VLOOKUP(E170,[1]!список_детей[#Data],3,1)","v":""},{"$f":"VLOOKUP(E170,[1]!список_детей[#Data],4,1)","v":0},{"$f":"VLOOKUP(E170,[1]!список_детей[#Data],5,1)","v":0},{"$f":"VLOOKUP(E170,[1]!список_детей[#Data],2,1)","v":0},"В",{"$f":"VLOOKUP(J170,[1]!СИДМ[#Data],3,0)","v":"Методики социально-педагогической диагностики семьи и консультирования родителей по психолого-педагогическим проблемам"}]
[null,"Июнь","2021-06-11",2,169,{"$f":"VLOOKUP(E171,[1]!список_детей[#Data],3,1)","v":""},{"$f":"VLOOKUP(E171,[1]!список_детей[#Data],4,1)","v":0},{"$f":"VLOOKUP(E171,[1]!список_детей[#Data],5,1)","v":0},{"$f":"VLOOKUP(E171,[1]!список_детей[#Data],2,1)","v":0},"В",{"$f":"VLOOKUP(J171,[1]!СИДМ[#Data],3,0)","v":"Методики социально-педагогической диагностики семьи и консультирования родителей по психолого-педагогическим проблемам"}]
[null,"Июнь","2021-06-14",2,170,{"$f":"VLOOKUP(E172,[1]!список_детей[#Data],3,1)","v":""},{"$f":"VLOOKUP(E172,[1]!список_детей[#Data],4,1)","v":0},{"$f":"VLOOKUP(E172,[1]!список_детей[#Data],5,1)","v":0},{"$f":"VLOOKUP(E172,[1]!список_детей[#Data],2,1)","v":0},"В",{"$f":"VLOOKUP(J172,[1]!СИДМ[#Data],3,0)","v":"Методики социально-педагогической диагностики семьи и консультирования родителей по психолого-педагогическим проблемам"}]
[null,"Июнь","2021-06-15",2,171,{"$f":"VLOOKUP(E173,[1]!список_детей[#Data],3,1)","v":""},{"$f":"VLOOKUP(E173,[1]!список_детей[#Data],4,1)","v":0},{"$f":"VLOOKUP(E173,[1]!список_детей[#Data],5,1)","v":0},{"$f":"VLOOKUP(E173,[1]!список_детей[#Data],2,1)","v":0},"В",{"$f":"VLOOKUP(J173,[1]!СИДМ[#Data],3,0)","v":"Методики социально-педагогической диагностики семьи и консультирования родителей по психолого-педагогическим проблемам"}]
[null,"Июнь","2021-06-16",2,172,{"$f":"VLOOKUP(E174,[1]!список_детей[#Data],3,1)","v":""},{"$f":"VLOOKUP(E174,[1]!список_детей[#Data],4,1)","v":0},{"$f":"VLOOKUP(E174,[1]!список_детей[#Data],5,1)","v":0},{"$f":"VLOOKUP(E174,[1]!список_детей[#Data],2,1)","v":0},"В",{"$f":"VLOOKUP(J174,[1]!СИДМ[#Data],3,0)","v":"Методики социально-педагогической диагностики семьи и консультирования родителей по психолого-педагогическим проблемам"}]
[null,"Июнь","2021-06-17",2,173,{"$f":"VLOOKUP(E175,[1]!список_детей[#Data],3,1)","v":""},{"$f":"VLOOKUP(E175,[1]!список_детей[#Data],4,1)","v":0},{"$f":"VLOOKUP(E175,[1]!список_детей[#Data],5,1)","v":0},{"$f":"VLOOKUP(E175,[1]!список_детей[#Data],2,1)","v":0},"В",{"$f":"VLOOKUP(J175,[1]!СИДМ[#Data],3,0)","v":"Методики социально-педагогической диагностики семьи и консультирования родителей по психолого-педагогическим проблемам"}]
[null,"Июнь","2021-06-18",2,174,{"$f":"VLOOKUP(E176,[1]!список_детей[#Data],3,1)","v":""},{"$f":"VLOOKUP(E176,[1]!список_детей[#Data],4,1)","v":0},{"$f":"VLOOKUP(E176,[1]!список_детей[#Data],5,1)","v":0},{"$f":"VLOOKUP(E176,[1]!список_детей[#Data],2,1)","v":0},"В",{"$f":"VLOOKUP(J176,[1]!СИДМ[#Data],3,0)","v":"Методики социально-педагогической диагностики семьи и консультирования родителей по психолого-педагогическим проблемам"}]
[null,"Июнь","2021-06-21",2,175,{"$f":"VLOOKUP(E177,[1]!список_детей[#Data],3,1)","v":""},{"$f":"VLOOKUP(E177,[1]!список_детей[#Data],4,1)","v":0},{"$f":"VLOOKUP(E177,[1]!список_детей[#Data],5,1)","v":0},{"$f":"VLOOKUP(E177,[1]!список_детей[#Data],2,1)","v":0},"В",{"$f":"VLOOKUP(J177,[1]!СИДМ[#Data],3,0)","v":"Методики социально-педагогической диагностики семьи и консультирования родителей по психолого-педагогическим проблемам"}]
[null,"Июнь","2021-06-22",2,176,{"$f":"VLOOKUP(E178,[1]!список_детей[#Data],3,1)","v":""},{"$f":"VLOOKUP(E178,[1]!список_детей[#Data],4,1)","v":0},{"$f":"VLOOKUP(E178,[1]!список_детей[#Data],5,1)","v":0},{"$f":"VLOOKUP(E178,[1]!список_детей[#Data],2,1)","v":0},"В",{"$f":"VLOOKUP(J178,[1]!СИДМ[#Data],3,0)","v":"Методики социально-педагогической диагностики семьи и консультирования родителей по психолого-педагогическим проблемам"}]
[null,"Июнь","2021-06-23",2,177,{"$f":"VLOOKUP(E179,[1]!список_детей[#Data],3,1)","v":""},{"$f":"VLOOKUP(E179,[1]!список_детей[#Data],4,1)","v":0},{"$f":"VLOOKUP(E179,[1]!список_детей[#Data],5,1)","v":0},{"$f":"VLOOKUP(E179,[1]!список_детей[#Data],2,1)","v":0},"В",{"$f":"VLOOKUP(J179,[1]!СИДМ[#Data],3,0)","v":"Методики социально-педагогической диагностики семьи и консультирования родителей по психолого-педагогическим проблемам"}]
[null,"Июнь","2021-06-24",2,178,{"$f":"VLOOKUP(E180,[1]!список_детей[#Data],3,1)","v":""},{"$f":"VLOOKUP(E180,[1]!список_детей[#Data],4,1)","v":0},{"$f":"VLOOKUP(E180,[1]!список_детей[#Data],5,1)","v":0},{"$f":"VLOOKUP(E180,[1]!список_детей[#Data],2,1)","v":0},"В",{"$f":"VLOOKUP(J180,[1]!СИДМ[#Data],3,0)","v":"Методики социально-педагогической диагностики семьи и консультирования родителей по психолого-педагогическим проблемам"}]
[null,"Июнь","2021-06-25",2,179,{"$f":"VLOOKUP(E181,[1]!список_детей[#Data],3,1)","v":""},{"$f":"VLOOKUP(E181,[1]!список_детей[#Data],4,1)","v":0},{"$f":"VLOOKUP(E181,[1]!список_детей[#Data],5,1)","v":0},{"$f":"VLOOKUP(E181,[1]!список_детей[#Data],2,1)","v":0},"В",{"$f":"VLOOKUP(J181,[1]!СИДМ[#Data],3,0)","v":"Методики социально-педагогической диагностики семьи и консультирования родителей по психолого-педагогическим проблемам"}]
[null,"Июнь","2021-06-28",2,180,{"$f":"VLOOKUP(E182,[1]!список_детей[#Data],3,1)","v":""},{"$f":"VLOOKUP(E182,[1]!список_детей[#Data],4,1)","v":0},{"$f":"VLOOKUP(E182,[1]!список_детей[#Data],5,1)","v":0},{"$f":"VLOOKUP(E182,[1]!список_детей[#Data],2,1)","v":0},"В",{"$f":"VLOOKUP(J182,[1]!СИДМ[#Data],3,0)","v":"Методики социально-педагогической диагностики семьи и консультирования родителей по психолого-педагогическим проблемам"}]
[null,"Июнь","2021-06-29",2,181,{"$f":"VLOOKUP(E183,[1]!список_детей[#Data],3,1)","v":""},{"$f":"VLOOKUP(E183,[1]!список_детей[#Data],4,1)","v":0},{"$f":"VLOOKUP(E183,[1]!список_детей[#Data],5,1)","v":0},{"$f":"VLOOKUP(E183,[1]!список_детей[#Data],2,1)","v":0},"В",{"$f":"VLOOKUP(J183,[1]!СИДМ[#Data],3,0)","v":"Методики социально-педагогической диагностики семьи и консультирования родителей по психолого-педагогическим проблемам"}]
[null,"Июнь","2021-06-30",2,182,{"$f":"VLOOKUP(E184,[1]!список_детей[#Data],3,1)","v":""},{"$f":"VLOOKUP(E184,[1]!список_детей[#Data],4,1)","v":0},{"$f":"VLOOKUP(E184,[1]!список_детей[#Data],5,1)","v":0},{"$f":"VLOOKUP(E184,[1]!список_детей[#Data],2,1)","v":0},"В",{"$f":"VLOOKUP(J184,[1]!СИДМ[#Data],3,0)","v":"Методики социально-педагогической диагностики семьи и консультирования родителей по психолого-педагогическим проблемам"}]
[null,"Июль","2021-07-01",2,183,{"$f":"VLOOKUP(E185,[1]!список_детей[#Data],3,1)","v":""},{"$f":"VLOOKUP(E185,[1]!список_детей[#Data],4,1)","v":0},{"$f":"VLOOKUP(E185,[1]!список_детей[#Data],5,1)","v":0},{"$f":"VLOOKUP(E185,[1]!список_детей[#Data],2,1)","v":0},"В",{"$f":"VLOOKUP(J185,[1]!СИДМ[#Data],3,0)","v":"Методики социально-педагогической диагностики семьи и консультирования родителей по психолого-педагогическим проблемам"}]
[null,"Июль","2021-07-02",2,184,{"$f":"VLOOKUP(E186,[1]!список_детей[#Data],3,1)","v":""},{"$f":"VLOOKUP(E186,[1]!список_детей[#Data],4,1)","v":0},{"$f":"VLOOKUP(E186,[1]!список_детей[#Data],5,1)","v":0},{"$f":"VLOOKUP(E186,[1]!список_детей[#Data],2,1)","v":0},"В",{"$f":"VLOOKUP(J186,[1]!СИДМ[#Data],3,0)","v":"Методики социально-педагогической диагностики семьи и консультирования родителей по психолого-педагогическим проблемам"}]
[null,"Июль","2021-07-05",2,185,{"$f":"VLOOKUP(E187,[1]!список_детей[#Data],3,1)","v":""},{"$f":"VLOOKUP(E187,[1]!список_детей[#Data],4,1)","v":0},{"$f":"VLOOKUP(E187,[1]!список_детей[#Data],5,1)","v":0},{"$f":"VLOOKUP(E187,[1]!список_детей[#Data],2,1)","v":0},"В",{"$f":"VLOOKUP(J187,[1]!СИДМ[#Data],3,0)","v":"Методики социально-педагогической диагностики семьи и консультирования родителей по психолого-педагогическим проблемам"}]
[null,"Июль","2021-07-06",2,186,{"$f":"VLOOKUP(E188,[1]!список_детей[#Data],3,1)","v":""},{"$f":"VLOOKUP(E188,[1]!список_детей[#Data],4,1)","v":0},{"$f":"VLOOKUP(E188,[1]!список_детей[#Data],5,1)","v":0},{"$f":"VLOOKUP(E188,[1]!список_детей[#Data],2,1)","v":0},"В",{"$f":"VLOOKUP(J188,[1]!СИДМ[#Data],3,0)","v":"Методики социально-педагогической диагностики семьи и консультирования родителей по психолого-педагогическим проблемам"}]
[null,"Июль","2021-07-07",2,187,{"$f":"VLOOKUP(E189,[1]!список_детей[#Data],3,1)","v":""},{"$f":"VLOOKUP(E189,[1]!список_детей[#Data],4,1)","v":0},{"$f":"VLOOKUP(E189,[1]!список_детей[#Data],5,1)","v":0},{"$f":"VLOOKUP(E189,[1]!список_детей[#Data],2,1)","v":0},"В",{"$f":"VLOOKUP(J189,[1]!СИДМ[#Data],3,0)","v":"Методики социально-педагогической диагностики семьи и консультирования родителей по психолого-педагогическим проблемам"}]
[null,"Июль","2021-07-08",2,188,{"$f":"VLOOKUP(E190,[1]!список_детей[#Data],3,1)","v":""},{"$f":"VLOOKUP(E190,[1]!список_детей[#Data],4,1)","v":0},{"$f":"VLOOKUP(E190,[1]!список_детей[#Data],5,1)","v":0},{"$f":"VLOOKUP(E190,[1]!список_детей[#Data],2,1)","v":0},"В",{"$f":"VLOOKUP(J190,[1]!СИДМ[#Data],3,0)","v":"Методики социально-педагогической диагностики семьи и консультирования родителей по психолого-педагогическим проблемам"}]
[null,"Июль","2021-07-09",2,189,{"$f":"VLOOKUP(E191,[1]!список_детей[#Data],3,1)","v":""},{"$f":"VLOOKUP(E191,[1]!список_детей[#Data],4,1)","v":0},{"$f":"VLOOKUP(E191,[1]!список_детей[#Data],5,1)","v":0},{"$f":"VLOOKUP(E191,[1]!список_детей[#Data],2,1)","v":0},"В",{"$f":"VLOOKUP(J191,[1]!СИДМ[#Data],3,0)","v":"Методики социально-педагогической диагностики семьи и консультирования родителей по психолого-педагогическим проблемам"}]
[null,"Июль","2021-07-12",2,190,{"$f":"VLOOKUP(E192,[1]!список_детей[#Data],3,1)","v":""},{"$f":"VLOOKUP(E192,[1]!список_детей[#Data],4,1)","v":0},{"$f":"VLOOKUP(E192,[1]!список_детей[#Data],5,1)","v":0},{"$f":"VLOOKUP(E192,[1]!список_детей[#Data],2,1)","v":0},"В",{"$f":"VLOOKUP(J192,[1]!СИДМ[#Data],3,0)","v":"Методики социально-педагогической диагностики семьи и консультирования родителей по психолого-педагогическим проблемам"}]
[null,"Июль","2021-07-13",2,191,{"$f":"VLOOKUP(E193,[1]!список_детей[#Data],3,1)","v":""},{"$f":"VLOOKUP(E193,[1]!список_детей[#Data],4,1)","v":0},{"$f":"VLOOKUP(E193,[1]!список_детей[#Data],5,1)","v":0},{"$f":"VLOOKUP(E193,[1]!список_детей[#Data],2,1)","v":0},"В",{"$f":"VLOOKUP(J193,[1]!СИДМ[#Data],3,0)","v":"Методики социально-педагогической диагностики семьи и консультирования родителей по психолого-педагогическим проблемам"}]
[null,"Июль","2021-07-14",2,192,{"$f":"VLOOKUP(E194,[1]!список_детей[#Data],3,1)","v":""},{"$f":"VLOOKUP(E194,[1]!список_детей[#Data],4,1)","v":0},{"$f":"VLOOKUP(E194,[1]!список_детей[#Data],5,1)","v":0},{"$f":"VLOOKUP(E194,[1]!список_детей[#Data],2,1)","v":0},"В",{"$f":"VLOOKUP(J194,[1]!СИДМ[#Data],3,0)","v":"Методики социально-педагогической диагностики семьи и консультирования родителей по психолого-педагогическим проблемам"}]
[null,"Июль","2021-07-15",2,193,{"$f":"VLOOKUP(E195,[1]!список_детей[#Data],3,1)","v":""},{"$f":"VLOOKUP(E195,[1]!список_детей[#Data],4,1)","v":0},{"$f":"VLOOKUP(E195,[1]!список_детей[#Data],5,1)","v":0},{"$f":"VLOOKUP(E195,[1]!список_детей[#Data],2,1)","v":0},"В",{"$f":"VLOOKUP(J195,[1]!СИДМ[#Data],3,0)","v":"Методики социально-педагогической диагностики семьи и консультирования родителей по психолого-педагогическим проблемам"}]
[null,{"$f":"TEXT(C196,\"ММММ\")","v":"Июль"},"2021-07-16",2,194,{"$f":"VLOOKUP(E196,[1]!список_детей[#Data],3,1)","v":""},{"$f":"VLOOKUP(E196,[1]!список_детей[#Data],4,1)","v":0},{"$f":"VLOOKUP(E196,[1]!список_детей[#Data],5,1)","v":0},{"$f":"VLOOKUP(E196,[1]!список_детей[#Data],2,1)","v":0},"В",{"$f":"VLOOKUP(J196,[1]!СИДМ[#Data],3,0)","v":"Методики социально-педагогической диагностики семьи и консультирования родителей по психолого-педагогическим проблемам"}]
[null,"Июль","2021-07-19",2,195,{"$f":"VLOOKUP(E197,[1]!список_детей[#Data],3,1)","v":""},{"$f":"VLOOKUP(E197,[1]!список_детей[#Data],4,1)","v":0},{"$f":"VLOOKUP(E197,[1]!список_детей[#Data],5,1)","v":0},{"$f":"VLOOKUP(E197,[1]!список_детей[#Data],2,1)","v":0},"В",{"$f":"VLOOKUP(J197,[1]!СИДМ[#Data],3,0)","v":"Методики социально-педагогической диагностики семьи и консультирования родителей по психолого-педагогическим проблемам"}]
[null,"Июль","2021-07-20",2,196,{"$f":"VLOOKUP(E198,[1]!список_детей[#Data],3,1)","v":""},{"$f":"VLOOKUP(E198,[1]!список_детей[#Data],4,1)","v":0},{"$f":"VLOOKUP(E198,[1]!список_детей[#Data],5,1)","v":0},{"$f":"VLOOKUP(E198,[1]!список_детей[#Data],2,1)","v":0},"В",{"$f":"VLOOKUP(J198,[1]!СИДМ[#Data],3,0)","v":"Методики социально-педагогической диагностики семьи и консультирования родителей по психолого-педагогическим проблемам"}]
[null,"Июль","2021-07-21",2,197,{"$f":"VLOOKUP(E199,[1]!список_детей[#Data],3,1)","v":""},{"$f":"VLOOKUP(E199,[1]!список_детей[#Data],4,1)","v":0},{"$f":"VLOOKUP(E199,[1]!список_детей[#Data],5,1)","v":0},{"$f":"VLOOKUP(E199,[1]!список_детей[#Data],2,1)","v":0},"В",{"$f":"VLOOKUP(J199,[1]!СИДМ[#Data],3,0)","v":"Методики социально-педагогической диагностики семьи и консультирования родителей по психолого-педагогическим проблемам"}]
[null,"Июль","2021-07-22",2,198,{"$f":"VLOOKUP(E200,[1]!список_детей[#Data],3,1)","v":""},{"$f":"VLOOKUP(E200,[1]!список_детей[#Data],4,1)","v":0},{"$f":"VLOOKUP(E200,[1]!список_детей[#Data],5,1)","v":0},{"$f":"VLOOKUP(E200,[1]!список_детей[#Data],2,1)","v":0},"В",{"$f":"VLOOKUP(J200,[1]!СИДМ[#Data],3,0)","v":"Методики социально-педагогической диагностики семьи и консультирования родителей по психолого-педагогическим проблемам"}]
[null,"Июль","2021-07-23",2,199,{"$f":"VLOOKUP(E201,[1]!список_детей[#Data],3,1)","v":""},{"$f":"VLOOKUP(E201,[1]!список_детей[#Data],4,1)","v":0},{"$f":"VLOOKUP(E201,[1]!список_детей[#Data],5,1)","v":0},{"$f":"VLOOKUP(E201,[1]!список_детей[#Data],2,1)","v":0},"В",{"$f":"VLOOKUP(J201,[1]!СИДМ[#Data],3,0)","v":"Методики социально-педагогической диагностики семьи и консультирования родителей по психолого-педагогическим проблемам"}]
[null,"Июль","2021-07-26",2,200,{"$f":"VLOOKUP(E202,[1]!список_детей[#Data],3,1)","v":""},{"$f":"VLOOKUP(E202,[1]!список_детей[#Data],4,1)","v":0},{"$f":"VLOOKUP(E202,[1]!список_детей[#Data],5,1)","v":0},{"$f":"VLOOKUP(E202,[1]!список_детей[#Data],2,1)","v":0},"В",{"$f":"VLOOKUP(J202,[1]!СИДМ[#Data],3,0)","v":"Методики социально-педагогической диагностики семьи и консультирования родителей по психолого-педагогическим проблемам"}]
[null,"Июль","2021-07-27",2,201,{"$f":"VLOOKUP(E203,[1]!список_детей[#Data],3,1)","v":""},{"$f":"VLOOKUP(E203,[1]!список_детей[#Data],4,1)","v":0},{"$f":"VLOOKUP(E203,[1]!список_детей[#Data],5,1)","v":0},{"$f":"VLOOKUP(E203,[1]!список_детей[#Data],2,1)","v":0},"В",{"$f":"VLOOKUP(J203,[1]!СИДМ[#Data],3,0)","v":"Методики социально-педагогической диагностики семьи и консультирования родителей по психолого-педагогическим проблемам"}]
[null,"Июль","2021-07-28",2,202,{"$f":"VLOOKUP(E204,[1]!список_детей[#Data],3,1)","v":""},{"$f":"VLOOKUP(E204,[1]!список_детей[#Data],4,1)","v":0},{"$f":"VLOOKUP(E204,[1]!список_детей[#Data],5,1)","v":0},{"$f":"VLOOKUP(E204,[1]!список_детей[#Data],2,1)","v":0},"В",{"$f":"VLOOKUP(J204,[1]!СИДМ[#Data],3,0)","v":"Методики социально-педагогической диагностики семьи и консультирования родителей по психолого-педагогическим проблемам"}]
[null,"Июль","2021-07-29",2,203,{"$f":"VLOOKUP(E205,[1]!список_детей[#Data],3,1)","v":""},{"$f":"VLOOKUP(E205,[1]!список_детей[#Data],4,1)","v":0},{"$f":"VLOOKUP(E205,[1]!список_детей[#Data],5,1)","v":0},{"$f":"VLOOKUP(E205,[1]!список_детей[#Data],2,1)","v":0},"В",{"$f":"VLOOKUP(J205,[1]!СИДМ[#Data],3,0)","v":"Методики социально-педагогической диагностики семьи и консультирования родителей по психолого-педагогическим проблемам"}]
[null,"Июль","2021-07-30",2,204,{"$f":"VLOOKUP(E206,[1]!список_детей[#Data],3,1)","v":""},{"$f":"VLOOKUP(E206,[1]!список_детей[#Data],4,1)","v":0},{"$f":"VLOOKUP(E206,[1]!список_детей[#Data],5,1)","v":0},{"$f":"VLOOKUP(E206,[1]!список_детей[#Data],2,1)","v":0},"В",{"$f":"VLOOKUP(J206,[1]!СИДМ[#Data],3,0)","v":"Методики социально-педагогической диагностики семьи и консультирования родителей по психолого-педагогическим проблемам"}]
[null,"Август","2021-08-02",2,205,{"$f":"VLOOKUP(E207,[1]!список_детей[#Data],3,1)","v":""},{"$f":"VLOOKUP(E207,[1]!список_детей[#Data],4,1)","v":0},{"$f":"VLOOKUP(E207,[1]!список_детей[#Data],5,1)","v":0},{"$f":"VLOOKUP(E207,[1]!список_детей[#Data],2,1)","v":0},"В",{"$f":"VLOOKUP(J207,[1]!СИДМ[#Data],3,0)","v":"Методики социально-педагогической диагностики семьи и консультирования родителей по психолого-педагогическим проблемам"}]
[null,"Август","2021-08-03",2,206,{"$f":"VLOOKUP(E208,[1]!список_детей[#Data],3,1)","v":""},{"$f":"VLOOKUP(E208,[1]!список_детей[#Data],4,1)","v":0},{"$f":"VLOOKUP(E208,[1]!список_детей[#Data],5,1)","v":0},{"$f":"VLOOKUP(E208,[1]!список_детей[#Data],2,1)","v":0},"В",{"$f":"VLOOKUP(J208,[1]!СИДМ[#Data],3,0)","v":"Методики социально-педагогической диагностики семьи и консультирования родителей по психолого-педагогическим проблемам"}]
[null,"Август","2021-08-04",2,207,{"$f":"VLOOKUP(E209,[1]!список_детей[#Data],3,1)","v":""},{"$f":"VLOOKUP(E209,[1]!список_детей[#Data],4,1)","v":0},{"$f":"VLOOKUP(E209,[1]!список_детей[#Data],5,1)","v":0},{"$f":"VLOOKUP(E209,[1]!список_детей[#Data],2,1)","v":0},"В",{"$f":"VLOOKUP(J209,[1]!СИДМ[#Data],3,0)","v":"Методики социально-педагогической диагностики семьи и консультирования родителей по психолого-педагогическим проблемам"}]
[null,"Август","2021-08-05",2,208,{"$f":"VLOOKUP(E210,[1]!список_детей[#Data],3,1)","v":""},{"$f":"VLOOKUP(E210,[1]!список_детей[#Data],4,1)","v":0},{"$f":"VLOOKUP(E210,[1]!список_детей[#Data],5,1)","v":0},{"$f":"VLOOKUP(E210,[1]!список_детей[#Data],2,1)","v":0},"В",{"$f":"VLOOKUP(J210,[1]!СИДМ[#Data],3,0)","v":"Методики социально-педагогической диагностики семьи и консультирования родителей по психолого-педагогическим проблемам"}]
[null,"Август","2021-08-06",2,209,{"$f":"VLOOKUP(E211,[1]!список_детей[#Data],3,1)","v":""},{"$f":"VLOOKUP(E211,[1]!список_детей[#Data],4,1)","v":0},{"$f":"VLOOKUP(E211,[1]!список_детей[#Data],5,1)","v":0},{"$f":"VLOOKUP(E211,[1]!список_детей[#Data],2,1)","v":0},"В",{"$f":"VLOOKUP(J211,[1]!СИДМ[#Data],3,0)","v":"Методики социально-педагогической диагностики семьи и консультирования родителей по психолого-педагогическим проблемам"}]
[null,"Август","2021-08-09",2,210,{"$f":"VLOOKUP(E212,[1]!список_детей[#Data],3,1)","v":""},{"$f":"VLOOKUP(E212,[1]!список_детей[#Data],4,1)","v":0},{"$f":"VLOOKUP(E212,[1]!список_детей[#Data],5,1)","v":0},{"$f":"VLOOKUP(E212,[1]!список_детей[#Data],2,1)","v":0},"В",{"$f":"VLOOKUP(J212,[1]!СИДМ[#Data],3,0)","v":"Методики социально-педагогической диагностики семьи и консультирования родителей по психолого-педагогическим проблемам"}]
[null,"Август","2021-08-10",2,211,{"$f":"VLOOKUP(E213,[1]!список_детей[#Data],3,1)","v":""},{"$f":"VLOOKUP(E213,[1]!список_детей[#Data],4,1)","v":0},{"$f":"VLOOKUP(E213,[1]!список_детей[#Data],5,1)","v":0},{"$f":"VLOOKUP(E213,[1]!список_детей[#Data],2,1)","v":0},"В",{"$f":"VLOOKUP(J213,[1]!СИДМ[#Data],3,0)","v":"Методики социально-педагогической диагностики семьи и консультирования родителей по психолого-педагогическим проблемам"}]
[null,"Август","2021-08-11",2,212,{"$f":"VLOOKUP(E214,[1]!список_детей[#Data],3,1)","v":""},{"$f":"VLOOKUP(E214,[1]!список_детей[#Data],4,1)","v":0},{"$f":"VLOOKUP(E214,[1]!список_детей[#Data],5,1)","v":0},{"$f":"VLOOKUP(E214,[1]!список_детей[#Data],2,1)","v":0},"В",{"$f":"VLOOKUP(J214,[1]!СИДМ[#Data],3,0)","v":"Методики социально-педагогической диагностики семьи и консультирования родителей по психолого-педагогическим проблемам"}]
[null,"Август","2021-08-12",2,213,{"$f":"VLOOKUP(E215,[1]!список_детей[#Data],3,1)","v":""},{"$f":"VLOOKUP(E215,[1]!список_детей[#Data],4,1)","v":0},{"$f":"VLOOKUP(E215,[1]!список_детей[#Data],5,1)","v":0},{"$f":"VLOOKUP(E215,[1]!список_детей[#Data],2,1)","v":0},"В",{"$f":"VLOOKUP(J215,[1]!СИДМ[#Data],3,0)","v":"Методики социально-педагогической диагностики семьи и консультирования родителей по психолого-педагогическим проблемам"}]
[null,"Август","2021-08-13",2,214,{"$f":"VLOOKUP(E216,[1]!список_детей[#Data],3,1)","v":""},{"$f":"VLOOKUP(E216,[1]!список_детей[#Data],4,1)","v":0},{"$f":"VLOOKUP(E216,[1]!список_детей[#Data],5,1)","v":0},{"$f":"VLOOKUP(E216,[1]!список_детей[#Data],2,1)","v":0},"В",{"$f":"VLOOKUP(J216,[1]!СИДМ[#Data],3,0)","v":"Методики социально-педагогической диагностики семьи и консультирования родителей по психолого-педагогическим проблемам"}]
[null,"Август","2021-08-16",2,215,{"$f":"VLOOKUP(E217,[1]!список_детей[#Data],3,1)","v":""},{"$f":"VLOOKUP(E217,[1]!список_детей[#Data],4,1)","v":0},{"$f":"VLOOKUP(E217,[1]!список_детей[#Data],5,1)","v":0},{"$f":"VLOOKUP(E217,[1]!список_детей[#Data],2,1)","v":0},"В",{"$f":"VLOOKUP(J217,[1]!СИДМ[#Data],3,0)","v":"Методики социально-педагогической диагностики семьи и консультирования родителей по психолого-педагогическим проблемам"}]
[null,"Август","2021-08-17",2,216,{"$f":"VLOOKUP(E218,[1]!список_детей[#Data],3,1)","v":""},{"$f":"VLOOKUP(E218,[1]!список_детей[#Data],4,1)","v":0},{"$f":"VLOOKUP(E218,[1]!список_детей[#Data],5,1)","v":0},{"$f":"VLOOKUP(E218,[1]!список_детей[#Data],2,1)","v":0},"В",{"$f":"VLOOKUP(J218,[1]!СИДМ[#Data],3,0)","v":"Методики социально-педагогической диагностики семьи и консультирования родителей по психолого-педагогическим проблемам"}]
[null,"Август","2021-08-18",2,217,{"$f":"VLOOKUP(E219,[1]!список_детей[#Data],3,1)","v":""},{"$f":"VLOOKUP(E219,[1]!список_детей[#Data],4,1)","v":0},{"$f":"VLOOKUP(E219,[1]!список_детей[#Data],5,1)","v":0},{"$f":"VLOOKUP(E219,[1]!список_детей[#Data],2,1)","v":0},"В",{"$f":"VLOOKUP(J219,[1]!СИДМ[#Data],3,0)","v":"Методики социально-педагогической диагностики семьи и консультирования родителей по психолого-педагогическим проблемам"}]
[null,"Август","2021-08-19",2,218,{"$f":"VLOOKUP(E220,[1]!список_детей[#Data],3,1)","v":""},{"$f":"VLOOKUP(E220,[1]!список_детей[#Data],4,1)","v":0},{"$f":"VLOOKUP(E220,[1]!список_детей[#Data],5,1)","v":0},{"$f":"VLOOKUP(E220,[1]!список_детей[#Data],2,1)","v":0},"В",{"$f":"VLOOKUP(J220,[1]!СИДМ[#Data],3,0)","v":"Методики социально-педагогической диагностики семьи и консультирования родителей по психолого-педагогическим проблемам"}]
[null,"Август","2021-08-20",2,219,{"$f":"VLOOKUP(E221,[1]!список_детей[#Data],3,1)","v":""},{"$f":"VLOOKUP(E221,[1]!список_детей[#Data],4,1)","v":0},{"$f":"VLOOKUP(E221,[1]!список_детей[#Data],5,1)","v":0},{"$f":"VLOOKUP(E221,[1]!список_детей[#Data],2,1)","v":0},"В",{"$f":"VLOOKUP(J221,[1]!СИДМ[#Data],3,0)","v":"Методики социально-педагогической диагностики семьи и консультирования родителей по психолого-педагогическим проблемам"}]
[null,"Август","2021-08-23",2,220,{"$f":"VLOOKUP(E222,[1]!список_детей[#Data],3,1)","v":""},{"$f":"VLOOKUP(E222,[1]!список_детей[#Data],4,1)","v":0},{"$f":"VLOOKUP(E222,[1]!список_детей[#Data],5,1)","v":0},{"$f":"VLOOKUP(E222,[1]!список_детей[#Data],2,1)","v":0},"В",{"$f":"VLOOKUP(J222,[1]!СИДМ[#Data],3,0)","v":"Методики социально-педагогической диагностики семьи и консультирования родителей по психолого-педагогическим проблемам"}]
[null,"Август","2021-08-24",2,221,{"$f":"VLOOKUP(E223,[1]!список_детей[#Data],3,1)","v":""},{"$f":"VLOOKUP(E223,[1]!список_детей[#Data],4,1)","v":0},{"$f":"VLOOKUP(E223,[1]!список_детей[#Data],5,1)","v":0},{"$f":"VLOOKUP(E223,[1]!список_детей[#Data],2,1)","v":0},"В",{"$f":"VLOOKUP(J223,[1]!СИДМ[#Data],3,0)","v":"Методики социально-педагогической диагностики семьи и консультирования родителей по психолого-педагогическим проблемам"}]
[null,"Август","2021-08-25",2,222,{"$f":"VLOOKUP(E224,[1]!список_детей[#Data],3,1)","v":""},{"$f":"VLOOKUP(E224,[1]!список_детей[#Data],4,1)","v":0},{"$f":"VLOOKUP(E224,[1]!список_детей[#Data],5,1)","v":0},{"$f":"VLOOKUP(E224,[1]!список_детей[#Data],2,1)","v":0},"В",{"$f":"VLOOKUP(J224,[1]!СИДМ[#Data],3,0)","v":"Методики социально-педагогической диагностики семьи и консультирования родителей по психолого-педагогическим проблемам"}]
[null,"Август","2021-08-26",2,223,{"$f":"VLOOKUP(E225,[1]!список_детей[#Data],3,1)","v":""},{"$f":"VLOOKUP(E225,[1]!список_детей[#Data],4,1)","v":0},{"$f":"VLOOKUP(E225,[1]!список_детей[#Data],5,1)","v":0},{"$f":"VLOOKUP(E225,[1]!список_детей[#Data],2,1)","v":0},"В",{"$f":"VLOOKUP(J225,[1]!СИДМ[#Data],3,0)","v":"Методики социально-педагогической диагностики семьи и консультирования родителей по психолого-педагогическим проблемам"}]
[null,"Август","2021-08-27",2,224,{"$f":"VLOOKUP(E226,[1]!список_детей[#Data],3,1)","v":""},{"$f":"VLOOKUP(E226,[1]!список_детей[#Data],4,1)","v":0},{"$f":"VLOOKUP(E226,[1]!список_детей[#Data],5,1)","v":0},{"$f":"VLOOKUP(E226,[1]!список_детей[#Data],2,1)","v":0},"В",{"$f":"VLOOKUP(J226,[1]!СИДМ[#Data],3,0)","v":"Методики социально-педагогической диагностики семьи и консультирования родителей по психолого-педагогическим проблемам"}]
[null,"Август","2021-08-30",2,225,{"$f":"VLOOKUP(E227,[1]!список_детей[#Data],3,1)","v":""},{"$f":"VLOOKUP(E227,[1]!список_детей[#Data],4,1)","v":0},{"$f":"VLOOKUP(E227,[1]!список_детей[#Data],5,1)","v":0},{"$f":"VLOOKUP(E227,[1]!список_детей[#Data],2,1)","v":0},"В",{"$f":"VLOOKUP(J227,[1]!СИДМ[#Data],3,0)","v":"Методики социально-педагогической диагностики семьи и консультирования родителей по психолого-педагогическим проблемам"}]
[null,"Август","2021-08-31",2,226,{"$f":"VLOOKUP(E228,[1]!список_детей[#Data],3,1)","v":""},{"$f":"VLOOKUP(E228,[1]!список_детей[#Data],4,1)","v":0},{"$f":"VLOOKUP(E228,[1]!список_детей[#Data],5,1)","v":0},{"$f":"VLOOKUP(E228,[1]!список_детей[#Data],2,1)","v":0},"В",{"$f":"VLOOKUP(J228,[1]!СИДМ[#Data],3,0)","v":"Методики социально-педагогической диагностики семьи и консультирования родителей по психолого-педагогическим проблемам"}]
[null,"Сентябрь","2021-09-01",2,227,{"$f":"VLOOKUP(E229,[1]!список_детей[#Data],3,1)","v":""},{"$f":"VLOOKUP(E229,[1]!список_детей[#Data],4,1)","v":0},{"$f":"VLOOKUP(E229,[1]!список_детей[#Data],5,1)","v":0},{"$f":"VLOOKUP(E229,[1]!список_детей[#Data],2,1)","v":0},"В",{"$f":"VLOOKUP(J229,[1]!СИДМ[#Data],3,0)","v":"Методики социально-педагогической диагностики семьи и консультирования родителей по психолого-педагогическим проблемам"}]
[null,"Сентябрь","2021-09-02",2,228,{"$f":"VLOOKUP(E230,[1]!список_детей[#Data],3,1)","v":""},{"$f":"VLOOKUP(E230,[1]!список_детей[#Data],4,1)","v":0},{"$f":"VLOOKUP(E230,[1]!список_детей[#Data],5,1)","v":0},{"$f":"VLOOKUP(E230,[1]!список_детей[#Data],2,1)","v":0},"В",{"$f":"VLOOKUP(J230,[1]!СИДМ[#Data],3,0)","v":"Методики социально-педагогической диагностики семьи и консультирования родителей по психолого-педагогическим проблемам"}]
[null,"Сентябрь","2021-09-03",2,229,{"$f":"VLOOKUP(E231,[1]!список_детей[#Data],3,1)","v":""},{"$f":"VLOOKUP(E231,[1]!список_детей[#Data],4,1)","v":0},{"$f":"VLOOKUP(E231,[1]!список_детей[#Data],5,1)","v":0},{"$f":"VLOOKUP(E231,[1]!список_детей[#Data],2,1)","v":0},"В",{"$f":"VLOOKUP(J231,[1]!СИДМ[#Data],3,0)","v":"Методики социально-педагогической диагностики семьи и консультирования родителей по психолого-педагогическим проблемам"}]
[null,"Сентябрь","2021-09-06",2,230,{"$f":"VLOOKUP(E232,[1]!список_детей[#Data],3,1)","v":""},{"$f":"VLOOKUP(E232,[1]!список_детей[#Data],4,1)","v":0},{"$f":"VLOOKUP(E232,[1]!список_детей[#Data],5,1)","v":0},{"$f":"VLOOKUP(E232,[1]!список_детей[#Data],2,1)","v":0},"В",{"$f":"VLOOKUP(J232,[1]!СИДМ[#Data],3,0)","v":"Методики социально-педагогической диагностики семьи и консультирования родителей по психолого-педагогическим проблемам"}]
[null,"Сентябрь","2021-09-07",2,231,{"$f":"VLOOKUP(E233,[1]!список_детей[#Data],3,1)","v":""},{"$f":"VLOOKUP(E233,[1]!список_детей[#Data],4,1)","v":0},{"$f":"VLOOKUP(E233,[1]!список_детей[#Data],5,1)","v":0},{"$f":"VLOOKUP(E233,[1]!список_детей[#Data],2,1)","v":0},"В",{"$f":"VLOOKUP(J233,[1]!СИДМ[#Data],3,0)","v":"Методики социально-педагогической диагностики семьи и консультирования родителей по психолого-педагогическим проблемам"}]
[null,"Сентябрь","2021-09-08",2,232,{"$f":"VLOOKUP(E234,[1]!список_детей[#Data],3,1)","v":""},{"$f":"VLOOKUP(E234,[1]!список_детей[#Data],4,1)","v":0},{"$f":"VLOOKUP(E234,[1]!список_детей[#Data],5,1)","v":0},{"$f":"VLOOKUP(E234,[1]!список_детей[#Data],2,1)","v":0},"В",{"$f":"VLOOKUP(J234,[1]!СИДМ[#Data],3,0)","v":"Методики социально-педагогической диагностики семьи и консультирования родителей по психолого-педагогическим проблемам"}]
[null,"Сентябрь","2021-09-09",2,233,{"$f":"VLOOKUP(E235,[1]!список_детей[#Data],3,1)","v":""},{"$f":"VLOOKUP(E235,[1]!список_детей[#Data],4,1)","v":0},{"$f":"VLOOKUP(E235,[1]!список_детей[#Data],5,1)","v":0},{"$f":"VLOOKUP(E235,[1]!список_детей[#Data],2,1)","v":0},"В",{"$f":"VLOOKUP(J235,[1]!СИДМ[#Data],3,0)","v":"Методики социально-педагогической диагностики семьи и консультирования родителей по психолого-педагогическим проблемам"}]
[null,"Сентябрь","2021-09-10",2,234,{"$f":"VLOOKUP(E236,[1]!список_детей[#Data],3,1)","v":""},{"$f":"VLOOKUP(E236,[1]!список_детей[#Data],4,1)","v":0},{"$f":"VLOOKUP(E236,[1]!список_детей[#Data],5,1)","v":0},{"$f":"VLOOKUP(E236,[1]!список_детей[#Data],2,1)","v":0},"В",{"$f":"VLOOKUP(J236,[1]!СИДМ[#Data],3,0)","v":"Методики социально-педагогической диагностики семьи и консультирования родителей по психолого-педагогическим проблемам"}]
[null,"Сентябрь","2021-09-13",2,235,{"$f":"VLOOKUP(E237,[1]!список_детей[#Data],3,1)","v":""},{"$f":"VLOOKUP(E237,[1]!список_детей[#Data],4,1)","v":0},{"$f":"VLOOKUP(E237,[1]!список_детей[#Data],5,1)","v":0},{"$f":"VLOOKUP(E237,[1]!список_детей[#Data],2,1)","v":0},"В",{"$f":"VLOOKUP(J237,[1]!СИДМ[#Data],3,0)","v":"Методики социально-педагогической диагностики семьи и консультирования родителей по психолого-педагогическим проблемам"}]
[null,"Сентябрь","2021-09-14",2,236,{"$f":"VLOOKUP(E238,[1]!список_детей[#Data],3,1)","v":""},{"$f":"VLOOKUP(E238,[1]!список_детей[#Data],4,1)","v":0},{"$f":"VLOOKUP(E238,[1]!список_детей[#Data],5,1)","v":0},{"$f":"VLOOKUP(E238,[1]!список_детей[#Data],2,1)","v":0},"В",{"$f":"VLOOKUP(J238,[1]!СИДМ[#Data],3,0)","v":"Методики социально-педагогической диагностики семьи и консультирования родителей по психолого-педагогическим проблемам"}]
[null,"Сентябрь","2021-09-15",2,237,{"$f":"VLOOKUP(E239,[1]!список_детей[#Data],3,1)","v":""},{"$f":"VLOOKUP(E239,[1]!список_детей[#Data],4,1)","v":0},{"$f":"VLOOKUP(E239,[1]!список_детей[#Data],5,1)","v":0},{"$f":"VLOOKUP(E239,[1]!список_детей[#Data],2,1)","v":0},"В",{"$f":"VLOOKUP(J239,[1]!СИДМ[#Data],3,0)","v":"Методики социально-педагогической диагностики семьи и консультирования родителей по психолого-педагогическим проблемам"}]
[null,"Сентябрь","2021-09-16",2,238,{"$f":"VLOOKUP(E240,[1]!список_детей[#Data],3,1)","v":""},{"$f":"VLOOKUP(E240,[1]!список_детей[#Data],4,1)","v":0},{"$f":"VLOOKUP(E240,[1]!список_детей[#Data],5,1)","v":0},{"$f":"VLOOKUP(E240,[1]!список_детей[#Data],2,1)","v":0},"В",{"$f":"VLOOKUP(J240,[1]!СИДМ[#Data],3,0)","v":"Методики социально-педагогической диагностики семьи и консультирования родителей по психолого-педагогическим проблемам"}]
[null,"Сентябрь","2021-09-17",2,239,{"$f":"VLOOKUP(E241,[1]!список_детей[#Data],3,1)","v":""},{"$f":"VLOOKUP(E241,[1]!список_детей[#Data],4,1)","v":0},{"$f":"VLOOKUP(E241,[1]!список_детей[#Data],5,1)","v":0},{"$f":"VLOOKUP(E241,[1]!список_детей[#Data],2,1)","v":0},"В",{"$f":"VLOOKUP(J241,[1]!СИДМ[#Data],3,0)","v":"Методики социально-педагогической диагностики семьи и консультирования родителей по психолого-педагогическим проблемам"}]
[null,"Сентябрь","2021-09-20",2,240,{"$f":"VLOOKUP(E242,[1]!список_детей[#Data],3,1)","v":""},{"$f":"VLOOKUP(E242,[1]!список_детей[#Data],4,1)","v":0},{"$f":"VLOOKUP(E242,[1]!список_детей[#Data],5,1)","v":0},{"$f":"VLOOKUP(E242,[1]!список_детей[#Data],2,1)","v":0},"В",{"$f":"VLOOKUP(J242,[1]!СИДМ[#Data],3,0)","v":"Методики социально-педагогической диагностики семьи и консультирования родителей по психолого-педагогическим проблемам"}]
[null,"Сентябрь","2021-09-21",2,241,{"$f":"VLOOKUP(E243,[1]!список_детей[#Data],3,1)","v":""},{"$f":"VLOOKUP(E243,[1]!список_детей[#Data],4,1)","v":0},{"$f":"VLOOKUP(E243,[1]!список_детей[#Data],5,1)","v":0},{"$f":"VLOOKUP(E243,[1]!список_детей[#Data],2,1)","v":0},"В",{"$f":"VLOOKUP(J243,[1]!СИДМ[#Data],3,0)","v":"Методики социально-педагогической диагностики семьи и консультирования родителей по психолого-педагогическим проблемам"}]
[null,"Сентябрь","2021-09-22",2,242,{"$f":"VLOOKUP(E244,[1]!список_детей[#Data],3,1)","v":""},{"$f":"VLOOKUP(E244,[1]!список_детей[#Data],4,1)","v":0},{"$f":"VLOOKUP(E244,[1]!список_детей[#Data],5,1)","v":0},{"$f":"VLOOKUP(E244,[1]!список_детей[#Data],2,1)","v":0},"В",{"$f":"VLOOKUP(J244,[1]!СИДМ[#Data],3,0)","v":"Методики социально-педагогической диагностики семьи и консультирования родителей по психолого-педагогическим проблемам"}]
[null,"Сентябрь","2021-09-23",2,243,{"$f":"VLOOKUP(E245,[1]!список_детей[#Data],3,1)","v":""},{"$f":"VLOOKUP(E245,[1]!список_детей[#Data],4,1)","v":0},{"$f":"VLOOKUP(E245,[1]!список_детей[#Data],5,1)","v":0},{"$f":"VLOOKUP(E245,[1]!список_детей[#Data],2,1)","v":0},"В",{"$f":"VLOOKUP(J245,[1]!СИДМ[#Data],3,0)","v":"Методики социально-педагогической диагностики семьи и консультирования родителей по психолого-педагогическим проблемам"}]
[null,"Сентябрь","2021-09-24",2,244,{"$f":"VLOOKUP(E246,[1]!список_детей[#Data],3,1)","v":""},{"$f":"VLOOKUP(E246,[1]!список_детей[#Data],4,1)","v":0},{"$f":"VLOOKUP(E246,[1]!список_детей[#Data],5,1)","v":0},{"$f":"VLOOKUP(E246,[1]!список_детей[#Data],2,1)","v":0},"В",{"$f":"VLOOKUP(J246,[1]!СИДМ[#Data],3,0)","v":"Методики социально-педагогической диагностики семьи и консультирования родителей по психолого-педагогическим проблемам"}]
[null,"Сентябрь","2021-09-27",2,245,{"$f":"VLOOKUP(E247,[1]!список_детей[#Data],3,1)","v":""},{"$f":"VLOOKUP(E247,[1]!список_детей[#Data],4,1)","v":0},{"$f":"VLOOKUP(E247,[1]!список_детей[#Data],5,1)","v":0},{"$f":"VLOOKUP(E247,[1]!список_детей[#Data],2,1)","v":0},"В",{"$f":"VLOOKUP(J247,[1]!СИДМ[#Data],3,0)","v":"Методики социально-педагогической диагностики семьи и консультирования родителей по психолого-педагогическим проблемам"}]
[null,"Сентябрь","2021-09-28",2,246,{"$f":"VLOOKUP(E248,[1]!список_детей[#Data],3,1)","v":""},{"$f":"VLOOKUP(E248,[1]!список_детей[#Data],4,1)","v":0},{"$f":"VLOOKUP(E248,[1]!список_детей[#Data],5,1)","v":0},{"$f":"VLOOKUP(E248,[1]!список_детей[#Data],2,1)","v":0},"В",{"$f":"VLOOKUP(J248,[1]!СИДМ[#Data],3,0)","v":"Методики социально-педагогической диагностики семьи и консультирования родителей по психолого-педагогическим проблемам"}]
[null,"Сентябрь","2021-09-29",2,247,{"$f":"VLOOKUP(E249,[1]!список_детей[#Data],3,1)","v":""},{"$f":"VLOOKUP(E249,[1]!список_детей[#Data],4,1)","v":0},{"$f":"VLOOKUP(E249,[1]!список_детей[#Data],5,1)","v":0},{"$f":"VLOOKUP(E249,[1]!список_детей[#Data],2,1)","v":0},"В",{"$f":"VLOOKUP(J249,[1]!СИДМ[#Data],3,0)","v":"Методики социально-педагогической диагностики семьи и консультирования родителей по психолого-педагогическим проблемам"}]
[null,"Сентябрь","2021-09-30",2,248,{"$f":"VLOOKUP(E250,[1]!список_детей[#Data],3,1)","v":""},{"$f":"VLOOKUP(E250,[1]!список_детей[#Data],4,1)","v":0},{"$f":"VLOOKUP(E250,[1]!список_детей[#Data],5,1)","v":0},{"$f":"VLOOKUP(E250,[1]!список_детей[#Data],2,1)","v":0},"В",{"$f":"VLOOKUP(J250,[1]!СИДМ[#Data],3,0)","v":"Методики социально-педагогической диагностики семьи и консультирования родителей по психолого-педагогическим проблемам"}]
[null,"Октябрь","2021-10-01",2,249,{"$f":"VLOOKUP(E251,[1]!список_детей[#Data],3,1)","v":""},{"$f":"VLOOKUP(E251,[1]!список_детей[#Data],4,1)","v":0},{"$f":"VLOOKUP(E251,[1]!список_детей[#Data],5,1)","v":0},{"$f":"VLOOKUP(E251,[1]!список_детей[#Data],2,1)","v":0},"В",{"$f":"VLOOKUP(J251,[1]!СИДМ[#Data],3,0)","v":"Методики социально-педагогической диагностики семьи и консультирования родителей по психолого-педагогическим проблемам"}]
[null,"Октябрь","2021-10-04",2,250,{"$f":"VLOOKUP(E252,[1]!список_детей[#Data],3,1)","v":""},{"$f":"VLOOKUP(E252,[1]!список_детей[#Data],4,1)","v":0},{"$f":"VLOOKUP(E252,[1]!список_детей[#Data],5,1)","v":0},{"$f":"VLOOKUP(E252,[1]!список_детей[#Data],2,1)","v":0},"В",{"$f":"VLOOKUP(J252,[1]!СИДМ[#Data],3,0)","v":"Методики социально-педагогической диагностики семьи и консультирования родителей по психолого-педагогическим проблемам"}]
[null,"Октябрь","2021-10-05",2,251,{"$f":"VLOOKUP(E253,[1]!список_детей[#Data],3,1)","v":""},{"$f":"VLOOKUP(E253,[1]!список_детей[#Data],4,1)","v":0},{"$f":"VLOOKUP(E253,[1]!список_детей[#Data],5,1)","v":0},{"$f":"VLOOKUP(E253,[1]!список_детей[#Data],2,1)","v":0},"В",{"$f":"VLOOKUP(J253,[1]!СИДМ[#Data],3,0)","v":"Методики социально-педагогической диагностики семьи и консультирования родителей по психолого-педагогическим проблемам"}]
[null,"Октябрь","2021-10-06",2,252,{"$f":"VLOOKUP(E254,[1]!список_детей[#Data],3,1)","v":""},{"$f":"VLOOKUP(E254,[1]!список_детей[#Data],4,1)","v":0},{"$f":"VLOOKUP(E254,[1]!список_детей[#Data],5,1)","v":0},{"$f":"VLOOKUP(E254,[1]!список_детей[#Data],2,1)","v":0},"В",{"$f":"VLOOKUP(J254,[1]!СИДМ[#Data],3,0)","v":"Методики социально-педагогической диагностики семьи и консультирования родителей по психолого-педагогическим проблемам"}]
[null,"Октябрь","2021-10-07",2,253,{"$f":"VLOOKUP(E255,[1]!список_детей[#Data],3,1)","v":""},{"$f":"VLOOKUP(E255,[1]!список_детей[#Data],4,1)","v":0},{"$f":"VLOOKUP(E255,[1]!список_детей[#Data],5,1)","v":0},{"$f":"VLOOKUP(E255,[1]!список_детей[#Data],2,1)","v":0},"В",{"$f":"VLOOKUP(J255,[1]!СИДМ[#Data],3,0)","v":"Методики социально-педагогической диагностики семьи и консультирования родителей по психолого-педагогическим проблемам"}]
[null,"Октябрь","2021-10-08",2,254,{"$f":"VLOOKUP(E256,[1]!список_детей[#Data],3,1)","v":""},{"$f":"VLOOKUP(E256,[1]!список_детей[#Data],4,1)","v":0},{"$f":"VLOOKUP(E256,[1]!список_детей[#Data],5,1)","v":0},{"$f":"VLOOKUP(E256,[1]!список_детей[#Data],2,1)","v":0},"В",{"$f":"VLOOKUP(J256,[1]!СИДМ[#Data],3,0)","v":"Методики социально-педагогической диагностики семьи и консультирования родителей по психолого-педагогическим проблемам"}]
[null,"Октябрь","2021-10-11",2,255,{"$f":"VLOOKUP(E257,[1]!список_детей[#Data],3,1)","v":""},{"$f":"VLOOKUP(E257,[1]!список_детей[#Data],4,1)","v":0},{"$f":"VLOOKUP(E257,[1]!список_детей[#Data],5,1)","v":0},{"$f":"VLOOKUP(E257,[1]!список_детей[#Data],2,1)","v":0},"В",{"$f":"VLOOKUP(J257,[1]!СИДМ[#Data],3,0)","v":"Методики социально-педагогической диагностики семьи и консультирования родителей по психолого-педагогическим проблемам"}]
[null,"Октябрь","2021-10-12",2,256,{"$f":"VLOOKUP(E258,[1]!список_детей[#Data],3,1)","v":""},{"$f":"VLOOKUP(E258,[1]!список_детей[#Data],4,1)","v":0},{"$f":"VLOOKUP(E258,[1]!список_детей[#Data],5,1)","v":0},{"$f":"VLOOKUP(E258,[1]!список_детей[#Data],2,1)","v":0},"В",{"$f":"VLOOKUP(J258,[1]!СИДМ[#Data],3,0)","v":"Методики социально-педагогической диагностики семьи и консультирования родителей по психолого-педагогическим проблемам"}]
[null,"Октябрь","2021-10-13",2,257,{"$f":"VLOOKUP(E259,[1]!список_детей[#Data],3,1)","v":""},{"$f":"VLOOKUP(E259,[1]!список_детей[#Data],4,1)","v":0},{"$f":"VLOOKUP(E259,[1]!список_детей[#Data],5,1)","v":0},{"$f":"VLOOKUP(E259,[1]!список_детей[#Data],2,1)","v":0},"В",{"$f":"VLOOKUP(J259,[1]!СИДМ[#Data],3,0)","v":"Методики социально-педагогической диагностики семьи и консультирования родителей по психолого-педагогическим проблемам"}]
[null,{"$f":"TEXT(C260,\"ММММ\")","v":"Октябрь"},"2021-10-14",2,258,{"$f":"VLOOKUP(E260,[1]!список_детей[#Data],3,1)","v":""},{"$f":"VLOOKUP(E260,[1]!список_детей[#Data],4,1)","v":0},{"$f":"VLOOKUP(E260,[1]!список_детей[#Data],5,1)","v":0},{"$f":"VLOOKUP(E260,[1]!список_детей[#Data],2,1)","v":0},"В",{"$f":"VLOOKUP(J260,[1]!СИДМ[#Data],3,0)","v":"Методики социально-педагогической диагностики семьи и консультирования родителей по психолого-педагогическим проблемам"}]
[null,"Октябрь","2021-10-15",2,259,{"$f":"VLOOKUP(E261,[1]!список_детей[#Data],3,1)","v":""},{"$f":"VLOOKUP(E261,[1]!список_детей[#Data],4,1)","v":0},{"$f":"VLOOKUP(E261,[1]!список_детей[#Data],5,1)","v":0},{"$f":"VLOOKUP(E261,[1]!список_детей[#Data],2,1)","v":0},"В",{"$f":"VLOOKUP(J261,[1]!СИДМ[#Data],3,0)","v":"Методики социально-педагогической диагностики семьи и консультирования родителей по психолого-педагогическим проблемам"}]
[null,"Октябрь","2021-10-18",2,260,{"$f":"VLOOKUP(E262,[1]!список_детей[#Data],3,1)","v":""},{"$f":"VLOOKUP(E262,[1]!список_детей[#Data],4,1)","v":0},{"$f":"VLOOKUP(E262,[1]!список_детей[#Data],5,1)","v":0},{"$f":"VLOOKUP(E262,[1]!список_детей[#Data],2,1)","v":0},"В",{"$f":"VLOOKUP(J262,[1]!СИДМ[#Data],3,0)","v":"Методики социально-педагогической диагностики семьи и консультирования родителей по психолого-педагогическим проблемам"}]
[null,"Октябрь","2021-10-19",2,261,{"$f":"VLOOKUP(E263,[1]!список_детей[#Data],3,1)","v":""},{"$f":"VLOOKUP(E263,[1]!список_детей[#Data],4,1)","v":0},{"$f":"VLOOKUP(E263,[1]!список_детей[#Data],5,1)","v":0},{"$f":"VLOOKUP(E263,[1]!список_детей[#Data],2,1)","v":0},"В",{"$f":"VLOOKUP(J263,[1]!СИДМ[#Data],3,0)","v":"Методики социально-педагогической диагностики семьи и консультирования родителей по психолого-педагогическим проблемам"}]
[null,"Октябрь","2021-10-20",2,262,{"$f":"VLOOKUP(E264,[1]!список_детей[#Data],3,1)","v":""},{"$f":"VLOOKUP(E264,[1]!список_детей[#Data],4,1)","v":0},{"$f":"VLOOKUP(E264,[1]!список_детей[#Data],5,1)","v":0},{"$f":"VLOOKUP(E264,[1]!список_детей[#Data],2,1)","v":0},"В",{"$f":"VLOOKUP(J264,[1]!СИДМ[#Data],3,0)","v":"Методики социально-педагогической диагностики семьи и консультирования родителей по психолого-педагогическим проблемам"}]
[null,"Октябрь","2021-10-21",2,263,{"$f":"VLOOKUP(E265,[1]!список_детей[#Data],3,1)","v":""},{"$f":"VLOOKUP(E265,[1]!список_детей[#Data],4,1)","v":0},{"$f":"VLOOKUP(E265,[1]!список_детей[#Data],5,1)","v":0},{"$f":"VLOOKUP(E265,[1]!список_детей[#Data],2,1)","v":0},"В",{"$f":"VLOOKUP(J265,[1]!СИДМ[#Data],3,0)","v":"Методики социально-педагогической диагностики семьи и консультирования родителей по психолого-педагогическим проблемам"}]
[null,"Октябрь","2021-10-22",2,264,{"$f":"VLOOKUP(E266,[1]!список_детей[#Data],3,1)","v":""},{"$f":"VLOOKUP(E266,[1]!список_детей[#Data],4,1)","v":0},{"$f":"VLOOKUP(E266,[1]!список_детей[#Data],5,1)","v":0},{"$f":"VLOOKUP(E266,[1]!список_детей[#Data],2,1)","v":0},"В",{"$f":"VLOOKUP(J266,[1]!СИДМ[#Data],3,0)","v":"Методики социально-педагогической диагностики семьи и консультирования родителей по психолого-педагогическим проблемам"}]
[null,"Октябрь","2021-10-25",2,265,{"$f":"VLOOKUP(E267,[1]!список_детей[#Data],3,1)","v":""},{"$f":"VLOOKUP(E267,[1]!список_детей[#Data],4,1)","v":0},{"$f":"VLOOKUP(E267,[1]!список_детей[#Data],5,1)","v":0},{"$f":"VLOOKUP(E267,[1]!список_детей[#Data],2,1)","v":0},"В",{"$f":"VLOOKUP(J267,[1]!СИДМ[#Data],3,0)","v":"Методики социально-педагогической диагностики семьи и консультирования родителей по психолого-педагогическим проблемам"}]
[null,"Октябрь","2021-10-26",2,266,{"$f":"VLOOKUP(E268,[1]!список_детей[#Data],3,1)","v":""},{"$f":"VLOOKUP(E268,[1]!список_детей[#Data],4,1)","v":0},{"$f":"VLOOKUP(E268,[1]!список_детей[#Data],5,1)","v":0},{"$f":"VLOOKUP(E268,[1]!список_детей[#Data],2,1)","v":0},"В",{"$f":"VLOOKUP(J268,[1]!СИДМ[#Data],3,0)","v":"Методики социально-педагогической диагностики семьи и консультирования родителей по психолого-педагогическим проблемам"}]
[null,"Октябрь","2021-10-27",2,267,{"$f":"VLOOKUP(E269,[1]!список_детей[#Data],3,1)","v":""},{"$f":"VLOOKUP(E269,[1]!список_детей[#Data],4,1)","v":0},{"$f":"VLOOKUP(E269,[1]!список_детей[#Data],5,1)","v":0},{"$f":"VLOOKUP(E269,[1]!список_детей[#Data],2,1)","v":0},"В",{"$f":"VLOOKUP(J269,[1]!СИДМ[#Data],3,0)","v":"Методики социально-педагогической диагностики семьи и консультирования родителей по психолого-педагогическим проблемам"}]
[null,"Октябрь","2021-10-28",2,268,{"$f":"VLOOKUP(E270,[1]!список_детей[#Data],3,1)","v":""},{"$f":"VLOOKUP(E270,[1]!список_детей[#Data],4,1)","v":0},{"$f":"VLOOKUP(E270,[1]!список_детей[#Data],5,1)","v":0},{"$f":"VLOOKUP(E270,[1]!список_детей[#Data],2,1)","v":0},"В",{"$f":"VLOOKUP(J270,[1]!СИДМ[#Data],3,0)","v":"Методики социально-педагогической диагностики семьи и консультирования родителей по психолого-педагогическим проблемам"}]
[null,"Октябрь","2021-10-29",2,269,{"$f":"VLOOKUP(E271,[1]!список_детей[#Data],3,1)","v":""},{"$f":"VLOOKUP(E271,[1]!список_детей[#Data],4,1)","v":0},{"$f":"VLOOKUP(E271,[1]!список_детей[#Data],5,1)","v":0},{"$f":"VLOOKUP(E271,[1]!список_детей[#Data],2,1)","v":0},"В",{"$f":"VLOOKUP(J271,[1]!СИДМ[#Data],3,0)","v":"Методики социально-педагогической диагностики семьи и консультирования родителей по психолого-педагогическим проблемам"}]
[null,"Ноябрь","2021-11-01",2,270,{"$f":"VLOOKUP(E272,[1]!список_детей[#Data],3,1)","v":""},{"$f":"VLOOKUP(E272,[1]!список_детей[#Data],4,1)","v":0},{"$f":"VLOOKUP(E272,[1]!список_детей[#Data],5,1)","v":0},{"$f":"VLOOKUP(E272,[1]!список_детей[#Data],2,1)","v":0},"В",{"$f":"VLOOKUP(J272,[1]!СИДМ[#Data],3,0)","v":"Методики социально-педагогической диагностики семьи и консультирования родителей по психолого-педагогическим проблемам"}]
[null,"Ноябрь","2021-11-02",2,271,{"$f":"VLOOKUP(E273,[1]!список_детей[#Data],3,1)","v":""},{"$f":"VLOOKUP(E273,[1]!список_детей[#Data],4,1)","v":0},{"$f":"VLOOKUP(E273,[1]!список_детей[#Data],5,1)","v":0},{"$f":"VLOOKUP(E273,[1]!список_детей[#Data],2,1)","v":0},"В",{"$f":"VLOOKUP(J273,[1]!СИДМ[#Data],3,0)","v":"Методики социально-педагогической диагностики семьи и консультирования родителей по психолого-педагогическим проблемам"}]
[null,"Ноябрь","2021-11-03",2,272,{"$f":"VLOOKUP(E274,[1]!список_детей[#Data],3,1)","v":""},{"$f":"VLOOKUP(E274,[1]!список_детей[#Data],4,1)","v":0},{"$f":"VLOOKUP(E274,[1]!список_детей[#Data],5,1)","v":0},{"$f":"VLOOKUP(E274,[1]!список_детей[#Data],2,1)","v":0},"В",{"$f":"VLOOKUP(J274,[1]!СИДМ[#Data],3,0)","v":"Методики социально-педагогической диагностики семьи и консультирования родителей по психолого-педагогическим проблемам"}]
[null,"Ноябрь","2021-11-04",2,273,{"$f":"VLOOKUP(E275,[1]!список_детей[#Data],3,1)","v":""},{"$f":"VLOOKUP(E275,[1]!список_детей[#Data],4,1)","v":0},{"$f":"VLOOKUP(E275,[1]!список_детей[#Data],5,1)","v":0},{"$f":"VLOOKUP(E275,[1]!список_детей[#Data],2,1)","v":0},"В",{"$f":"VLOOKUP(J275,[1]!СИДМ[#Data],3,0)","v":"Методики социально-педагогической диагностики семьи и консультирования родителей по психолого-педагогическим проблемам"}]
[null,"Ноябрь","2021-11-05",2,274,{"$f":"VLOOKUP(E276,[1]!список_детей[#Data],3,1)","v":""},{"$f":"VLOOKUP(E276,[1]!список_детей[#Data],4,1)","v":0},{"$f":"VLOOKUP(E276,[1]!список_детей[#Data],5,1)","v":0},{"$f":"VLOOKUP(E276,[1]!список_детей[#Data],2,1)","v":0},"В",{"$f":"VLOOKUP(J276,[1]!СИДМ[#Data],3,0)","v":"Методики социально-педагогической диагностики семьи и консультирования родителей по психолого-педагогическим проблемам"}]
[null,"Ноябрь","2021-11-08",2,275,{"$f":"VLOOKUP(E277,[1]!список_детей[#Data],3,1)","v":""},{"$f":"VLOOKUP(E277,[1]!список_детей[#Data],4,1)","v":0},{"$f":"VLOOKUP(E277,[1]!список_детей[#Data],5,1)","v":0},{"$f":"VLOOKUP(E277,[1]!список_детей[#Data],2,1)","v":0},"В",{"$f":"VLOOKUP(J277,[1]!СИДМ[#Data],3,0)","v":"Методики социально-педагогической диагностики семьи и консультирования родителей по психолого-педагогическим проблемам"}]
[null,"Ноябрь","2021-11-09",2,276,{"$f":"VLOOKUP(E278,[1]!список_детей[#Data],3,1)","v":""},{"$f":"VLOOKUP(E278,[1]!список_детей[#Data],4,1)","v":0},{"$f":"VLOOKUP(E278,[1]!список_детей[#Data],5,1)","v":0},{"$f":"VLOOKUP(E278,[1]!список_детей[#Data],2,1)","v":0},"В",{"$f":"VLOOKUP(J278,[1]!СИДМ[#Data],3,0)","v":"Методики социально-педагогической диагностики семьи и консультирования родителей по психолого-педагогическим проблемам"}]
[null,"Ноябрь","2021-11-10",2,277,{"$f":"VLOOKUP(E279,[1]!список_детей[#Data],3,1)","v":""},{"$f":"VLOOKUP(E279,[1]!список_детей[#Data],4,1)","v":0},{"$f":"VLOOKUP(E279,[1]!список_детей[#Data],5,1)","v":0},{"$f":"VLOOKUP(E279,[1]!список_детей[#Data],2,1)","v":0},"В",{"$f":"VLOOKUP(J279,[1]!СИДМ[#Data],3,0)","v":"Методики социально-педагогической диагностики семьи и консультирования родителей по психолого-педагогическим проблемам"}]
[null,"Ноябрь","2021-11-11",2,278,{"$f":"VLOOKUP(E280,[1]!список_детей[#Data],3,1)","v":""},{"$f":"VLOOKUP(E280,[1]!список_детей[#Data],4,1)","v":0},{"$f":"VLOOKUP(E280,[1]!список_детей[#Data],5,1)","v":0},{"$f":"VLOOKUP(E280,[1]!список_детей[#Data],2,1)","v":0},"В",{"$f":"VLOOKUP(J280,[1]!СИДМ[#Data],3,0)","v":"Методики социально-педагогической диагностики семьи и консультирования родителей по психолого-педагогическим проблемам"}]
[null,"Ноябрь","2021-11-12",2,279,{"$f":"VLOOKUP(E281,[1]!список_детей[#Data],3,1)","v":""},{"$f":"VLOOKUP(E281,[1]!список_детей[#Data],4,1)","v":0},{"$f":"VLOOKUP(E281,[1]!список_детей[#Data],5,1)","v":0},{"$f":"VLOOKUP(E281,[1]!список_детей[#Data],2,1)","v":0},"В",{"$f":"VLOOKUP(J281,[1]!СИДМ[#Data],3,0)","v":"Методики социально-педагогической диагностики семьи и консультирования родителей по психолого-педагогическим проблемам"}]
[null,"Ноябрь","2021-11-15",2,280,{"$f":"VLOOKUP(E282,[1]!список_детей[#Data],3,1)","v":""},{"$f":"VLOOKUP(E282,[1]!список_детей[#Data],4,1)","v":0},{"$f":"VLOOKUP(E282,[1]!список_детей[#Data],5,1)","v":0},{"$f":"VLOOKUP(E282,[1]!список_детей[#Data],2,1)","v":0},"В",{"$f":"VLOOKUP(J282,[1]!СИДМ[#Data],3,0)","v":"Методики социально-педагогической диагностики семьи и консультирования родителей по психолого-педагогическим проблемам"}]
[null,"Ноябрь","2021-11-16",2,281,{"$f":"VLOOKUP(E283,[1]!список_детей[#Data],3,1)","v":""},{"$f":"VLOOKUP(E283,[1]!список_детей[#Data],4,1)","v":0},{"$f":"VLOOKUP(E283,[1]!список_детей[#Data],5,1)","v":0},{"$f":"VLOOKUP(E283,[1]!список_детей[#Data],2,1)","v":0},"В",{"$f":"VLOOKUP(J283,[1]!СИДМ[#Data],3,0)","v":"Методики социально-педагогической диагностики семьи и консультирования родителей по психолого-педагогическим проблемам"}]
[null,"Ноябрь","2021-11-17",2,282,{"$f":"VLOOKUP(E284,[1]!список_детей[#Data],3,1)","v":""},{"$f":"VLOOKUP(E284,[1]!список_детей[#Data],4,1)","v":0},{"$f":"VLOOKUP(E284,[1]!список_детей[#Data],5,1)","v":0},{"$f":"VLOOKUP(E284,[1]!список_детей[#Data],2,1)","v":0},"В",{"$f":"VLOOKUP(J284,[1]!СИДМ[#Data],3,0)","v":"Методики социально-педагогической диагностики семьи и консультирования родителей по психолого-педагогическим проблемам"}]
[null,"Ноябрь","2021-11-18",2,283,{"$f":"VLOOKUP(E285,[1]!список_детей[#Data],3,1)","v":""},{"$f":"VLOOKUP(E285,[1]!список_детей[#Data],4,1)","v":0},{"$f":"VLOOKUP(E285,[1]!список_детей[#Data],5,1)","v":0},{"$f":"VLOOKUP(E285,[1]!список_детей[#Data],2,1)","v":0},"В",{"$f":"VLOOKUP(J285,[1]!СИДМ[#Data],3,0)","v":"Методики социально-педагогической диагностики семьи и консультирования родителей по психолого-педагогическим проблемам"}]
[null,"Ноябрь","2021-11-19",2,284,{"$f":"VLOOKUP(E286,[1]!список_детей[#Data],3,1)","v":""},{"$f":"VLOOKUP(E286,[1]!список_детей[#Data],4,1)","v":0},{"$f":"VLOOKUP(E286,[1]!список_детей[#Data],5,1)","v":0},{"$f":"VLOOKUP(E286,[1]!список_детей[#Data],2,1)","v":0},"В",{"$f":"VLOOKUP(J286,[1]!СИДМ[#Data],3,0)","v":"Методики социально-педагогической диагностики семьи и консультирования родителей по психолого-педагогическим проблемам"}]
[null,"Ноябрь","2021-11-22",2,285,{"$f":"VLOOKUP(E287,[1]!список_детей[#Data],3,1)","v":""},{"$f":"VLOOKUP(E287,[1]!список_детей[#Data],4,1)","v":0},{"$f":"VLOOKUP(E287,[1]!список_детей[#Data],5,1)","v":0},{"$f":"VLOOKUP(E287,[1]!список_детей[#Data],2,1)","v":0},"В",{"$f":"VLOOKUP(J287,[1]!СИДМ[#Data],3,0)","v":"Методики социально-педагогической диагностики семьи и консультирования родителей по психолого-педагогическим проблемам"}]
[null,"Ноябрь","2021-11-23",2,286,{"$f":"VLOOKUP(E288,[1]!список_детей[#Data],3,1)","v":""},{"$f":"VLOOKUP(E288,[1]!список_детей[#Data],4,1)","v":0},{"$f":"VLOOKUP(E288,[1]!список_детей[#Data],5,1)","v":0},{"$f":"VLOOKUP(E288,[1]!список_детей[#Data],2,1)","v":0},"В",{"$f":"VLOOKUP(J288,[1]!СИДМ[#Data],3,0)","v":"Методики социально-педагогической диагностики семьи и консультирования родителей по психолого-педагогическим проблемам"}]
[null,"Ноябрь","2021-11-24",2,287,{"$f":"VLOOKUP(E289,[1]!список_детей[#Data],3,1)","v":""},{"$f":"VLOOKUP(E289,[1]!список_детей[#Data],4,1)","v":0},{"$f":"VLOOKUP(E289,[1]!список_детей[#Data],5,1)","v":0},{"$f":"VLOOKUP(E289,[1]!список_детей[#Data],2,1)","v":0},"В",{"$f":"VLOOKUP(J289,[1]!СИДМ[#Data],3,0)","v":"Методики социально-педагогической диагностики семьи и консультирования родителей по психолого-педагогическим проблемам"}]
[null,"Ноябрь","2021-11-25",2,288,{"$f":"VLOOKUP(E290,[1]!список_детей[#Data],3,1)","v":""},{"$f":"VLOOKUP(E290,[1]!список_детей[#Data],4,1)","v":0},{"$f":"VLOOKUP(E290,[1]!список_детей[#Data],5,1)","v":0},{"$f":"VLOOKUP(E290,[1]!список_детей[#Data],2,1)","v":0},"В",{"$f":"VLOOKUP(J290,[1]!СИДМ[#Data],3,0)","v":"Методики социально-педагогической диагностики семьи и консультирования родителей по психолого-педагогическим проблемам"}]
[null,"Ноябрь","2021-11-26",2,289,{"$f":"VLOOKUP(E291,[1]!список_детей[#Data],3,1)","v":""},{"$f":"VLOOKUP(E291,[1]!список_детей[#Data],4,1)","v":0},{"$f":"VLOOKUP(E291,[1]!список_детей[#Data],5,1)","v":0},{"$f":"VLOOKUP(E291,[1]!список_детей[#Data],2,1)","v":0},"В",{"$f":"VLOOKUP(J291,[1]!СИДМ[#Data],3,0)","v":"Методики социально-педагогической диагностики семьи и консультирования родителей по психолого-педагогическим проблемам"}]
[null,"Ноябрь","2021-11-29",2,290,{"$f":"VLOOKUP(E292,[1]!список_детей[#Data],3,1)","v":""},{"$f":"VLOOKUP(E292,[1]!список_детей[#Data],4,1)","v":0},{"$f":"VLOOKUP(E292,[1]!список_детей[#Data],5,1)","v":0},{"$f":"VLOOKUP(E292,[1]!список_детей[#Data],2,1)","v":0},"В",{"$f":"VLOOKUP(J292,[1]!СИДМ[#Data],3,0)","v":"Методики социально-педагогической диагностики семьи и консультирования родителей по психолого-педагогическим проблемам"}]
[null,"Ноябрь","2021-11-30",2,291,{"$f":"VLOOKUP(E293,[1]!список_детей[#Data],3,1)","v":""},{"$f":"VLOOKUP(E293,[1]!список_детей[#Data],4,1)","v":0},{"$f":"VLOOKUP(E293,[1]!список_детей[#Data],5,1)","v":0},{"$f":"VLOOKUP(E293,[1]!список_детей[#Data],2,1)","v":0},"В",{"$f":"VLOOKUP(J293,[1]!СИДМ[#Data],3,0)","v":"Методики социально-педагогической диагностики семьи и консультирования родителей по психолого-педагогическим проблемам"}]
[null,"Декабрь","2021-12-01",2,292,{"$f":"VLOOKUP(E294,[1]!список_детей[#Data],3,1)","v":""},{"$f":"VLOOKUP(E294,[1]!список_детей[#Data],4,1)","v":0},{"$f":"VLOOKUP(E294,[1]!список_детей[#Data],5,1)","v":0},{"$f":"VLOOKUP(E294,[1]!список_детей[#Data],2,1)","v":0},"В",{"$f":"VLOOKUP(J294,[1]!СИДМ[#Data],3,0)","v":"Методики социально-педагогической диагностики семьи и консультирования родителей по психолого-педагогическим проблемам"}]
[null,"Декабрь","2021-12-02",2,293,{"$f":"VLOOKUP(E295,[1]!список_детей[#Data],3,1)","v":""},{"$f":"VLOOKUP(E295,[1]!список_детей[#Data],4,1)","v":0},{"$f":"VLOOKUP(E295,[1]!список_детей[#Data],5,1)","v":0},{"$f":"VLOOKUP(E295,[1]!список_детей[#Data],2,1)","v":0},"В",{"$f":"VLOOKUP(J295,[1]!СИДМ[#Data],3,0)","v":"Методики социально-педагогической диагностики семьи и консультирования родителей по психолого-педагогическим проблемам"}]
[null,"Декабрь","2021-12-03",2,294,{"$f":"VLOOKUP(E296,[1]!список_детей[#Data],3,1)","v":""},{"$f":"VLOOKUP(E296,[1]!список_детей[#Data],4,1)","v":0},{"$f":"VLOOKUP(E296,[1]!список_детей[#Data],5,1)","v":0},{"$f":"VLOOKUP(E296,[1]!список_детей[#Data],2,1)","v":0},"В",{"$f":"VLOOKUP(J296,[1]!СИДМ[#Data],3,0)","v":"Методики социально-педагогической диагностики семьи и консультирования родителей по психолого-педагогическим проблемам"}]
[null,"Декабрь","2021-12-06",2,295,{"$f":"VLOOKUP(E297,[1]!список_детей[#Data],3,1)","v":""},{"$f":"VLOOKUP(E297,[1]!список_детей[#Data],4,1)","v":0},{"$f":"VLOOKUP(E297,[1]!список_детей[#Data],5,1)","v":0},{"$f":"VLOOKUP(E297,[1]!список_детей[#Data],2,1)","v":0},"В",{"$f":"VLOOKUP(J297,[1]!СИДМ[#Data],3,0)","v":"Методики социально-педагогической диагностики семьи и консультирования родителей по психолого-педагогическим проблемам"}]
[null,"Итог"]

{"sheet":"ИКРР","index":3,"n_rows":58,"n_cols":39,"rows_kept":58,"cut":false,"hidden":false,"merged":[[25,1,25,5],[1,6,1,25],[13,33,13,34],[14,33,14,34],[15,33,15,34],[16,33,16,34],[24,1,24,5]]}
["Индивидуальная коррекционно-развивающая работа",null,null,null,null,null,null,null,null,null,null,null,null,null,null,null,null,null,null,null,null,null,null,null,null,null,null,null,null,null,null,null,null,null,"подстветка","вкл"]
[null,null,null,null,null,null,"Даты проведения занятий"]
[null,null,null,null,null,null,{"$f":"TEXT(G4,\"ДДД\")","v":"Чт"},"Пт","Пн","Вт","Ср","Чт","Пт","Пн","Вт","Ср","Чт","Пт","Пн","Вт","Ср","Чт","Пт","Пн","Вт","Ср"]
["номер","Код ребенка","пол","возраст","группа","Программа\n","2020-10-01","2020-10-02","2020-10-05","2020-10-06","2020-10-07","2020-10-08","2020-10-09","2020-10-12","2020-10-13","2020-10-14","2020-10-15","2020-10-16","2020-10-19","2020-10-20","2020-10-21","2020-10-22","2020-10-23","2020-10-26","2020-10-27","2020-10-28","дни посещения","дни отсутствия (н)","дни отсутствия (у)","отработка",null,{"$f":"[1]!Таблица8[[#Headers],[сентябрь]]","v":"сентябрь"},"Возраст","подсчет по годам","КОЛ-ВО ЗАНЯТИЙ","по нарушению","кол-во"]
[1,{"$f":"VLOOKUP(A5,[1]!список_детей[#Data],3,1)","v":"ЖИ"},{"$f":"VLOOKUP(A5,[1]!список_детей[#Data],5,1)","v":"д"},{"$f":"VLOOKUP(A5,[1]!список_детей[#Data],4,1)","v":"5-6 лет"},{"$f":"VLOOKUP(A5,[1]!список_детей[#Data],2,1)","v":10},{"$f":"VLOOKUP(A5,[1]!индвид[#Data],6,1)","v":"АОП ТНР"},null,"п","п",null,null,null,"п","у",null,null,null,"н","п",null,null,null,"п","н",null,"о",{"$f":"IF($D$5:$D$24=\"1-2 года\",COUNTIF(G5:Z5,$AG$14),IF($D$5:$D$24=\"2-3 года\",COUNTIF(G5:Z5,$AG$14),IF($D$5:$D$24=\"3-4 года\",COUNTIF(G5:Z5,AG14),IF($D$5:$D$24=\"4-5 лет\",COUNTIF(G5:Z5,AG14),IF($D$5:$D$24=\"5-6 лет\",COUNTIF(G5:Z5,AG14),IF($D$5:$D$24=\"6-7 лет\",COUNTIF(G5:Z5,AG14)))))))","v":5},{"$f":"IF($D$5:$D$24=\"1-2 года\",COUNTIF(G5:Z5,$AG$15),IF($D$5:$D$24=\"2-3 года\",COUNTIF(G5:Z5,$AG$15),IF($D$5:$D$24=\"3-4 года\",COUNTIF(G5:Z5,$AG$15),IF($D$5:$D$24=\"4-5 лет\",COUNTIF(G5:Z5,$AG$15),IF($D$5:$D$24=\"5-6 лет\",COUNTIF(G5:Z5,$AG$15),IF($D$5:$D$24=\"6-7 лет\",COUNTIF(G5:Z5,$AG$15)))))))","v":2},{"$f":"IF($D$5:$D$24=\"1-2 года\",COUNTIF(G5:Z5,$AG$16),IF($D$5:$D$24=\"2-3 года\",COUNTIF(G5:Z5,$AG$16),IF($D$5:$D$24=\"3-4 года\",COUNTIF(G5:Z5,$AG$16),IF($D$5:$D$24=\"4-5 лет\",COUNTIF(G5:Z5,$AG$16),IF($D$5:$D$24=\"5-6 лет\",COUNTIF(G5:Z5,$AG$16),IF($D$5:$D$24=\"6-7 лет\",COUNTIF(G5:Z5,$AG$16)))))))","v":1},{"$f":"IF($D$5:$D$24=\"1-2 года\",COUNTIF(G5:Z5,$AG$17),IF($D$5:$D$24=\"2-3 года\",COUNTIF(G5:Z5,$AG$17),IF($D$5:$D$24=\"3-4 года\",COUNTIF(G5:Z5,$AG$17),IF($D$5:$D$24=\"4-5 лет\",COUNTIF(G5:Z5,$AG$17),IF($D$5:$D$24=\"5-6 лет\",COUNTIF(G5:Z5,$AG$17),IF($D$5:$D$24=\"6-7 лет\",COUNTIF(G5:Z5,$AG$17)))))))","v":1},null,null,"1-2 года",{"$f":"COUNTIF($D$5:D24,ИКРР!$AG5)","v":0},{"$f":"SUMIF($D$5:$D$24,AG5,$AA$5:$AA$24)","v":0},"ТНР",{"$f":"SUMIF(программа,[1]данные!F2,$AA$5:$AA$24)","v":116},null,{"$f":"MATCH(A5,A5:A24,)","v":1}]
[2,{"$f":"VLOOKUP(A6,[1]!список_детей[#Data],3,1)","v":"КЛ"},{"$f":"VLOOKUP(A6,[1]!список_детей[#Data],5,1)","v":"д"},{"$f":"VLOOKUP(A6,[1]!список_детей[#Data],4,1)","v":"5-6 лет"},{"$f":"VLOOKUP(A6,[1]!список_детей[#Data],2,1)","v":10},{"$f":"VLOOKUP(A6,[1]!индвид[#Data],6,1)","v":"АОП ТНР"},"п",null,null,"п",null,"п",null,null,"п",null,"п",null,null,"п",null,"п",null,null,"п",null,{"$f":"IF($D$5:$D$24=\"1-2 года\",COUNTIF(G6:Z6,$AG$14),IF($D$5:$D$24=\"2-3 года\",COUNTIF(G6:Z6,$AG$14),IF($D$5:$D$24=\"3-4 года\",COUNTIF(G6:Z6,$AG$14),IF($D$5:$D$24=\"4-5 лет\",COUNTIF(G6:Z6,$AG$14),IF($D$5:$D$24=\"5-6 лет\",COUNTIF(G6:Z6,$AG$14),IF($D$5:$D$24=\"6-7 лет\",COUNTIF(G6:Z6,$AG$14)))))))","v":8},0,0,0,null,null,"2-3 года",{"$f":"COUNTIF($D$5:D25,ИКРР!$AG6)","v":0},0,"ЗПР",{"$f":"SUMIF(программа,[1]данные!F3,$AA$5:$AA$24)","v":0}]
[3,{"$f":"VLOOKUP(A7,[1]!список_детей[#Data],3,1)","v":"ББ"},{"$f":"VLOOKUP(A7,[1]!список_детей[#Data],5,1)","v":"м"},{"$f":"VLOOKUP(A7,[1]!список_детей[#Data],4,1)","v":"5-6 лет"},{"$f":"VLOOKUP(A7,[1]!список_детей[#Data],2,1)","v":10},{"$f":"VLOOKUP(A7,[1]!индвид[#Data],6,1)","v":"АОП ТНР"},"п",null,"п",null,null,"н",null,"п",null,"о","п",null,"п",null,null,"н",null,"п",null,null,6,2,0,1,null,null,"3-4 года",{"$f":"COUNTIF($D$5:D26,ИКРР!$AG7)","v":0},0,"ОДА",{"$f":"SUMIF(программа,[1]данные!F4,$AA$5:$AA$24)","v":0}]
[4,{"$f":"VLOOKUP(A8,[1]!список_детей[#Data],3,1)","v":"БХ"},{"$f":"VLOOKUP(A8,[1]!список_детей[#Data],5,1)","v":"м"},{"$f":"VLOOKUP(A8,[1]!список_детей[#Data],4,1)","v":"5-6 лет"},{"$f":"VLOOKUP(A8,[1]!список_детей[#Data],2,1)","v":10},{"$f":"VLOOKUP(A8,[1]!индвид[#Data],6,1)","v":"АОП ТНР"},null,"п",null,null,"п",null,"у",null,"о","п",null,null,null,null,"н",null,"у",null,null,"п",4,1,2,1,null,null,"4-5 лет",{"$f":"COUNTIF($D$5:D27,ИКРР!$AG8)","v":0},0,"НЗ",{"$f":"SUMIF(программа,[1]данные!F5,$AA$5:$AA$24)","v":0}]
[5,{"$f":"VLOOKUP(A9,[1]!список_детей[#Data],3,1)","v":"ЮЧ"},{"$f":"VLOOKUP(A9,[1]!список_детей[#Data],5,1)","v":"м"},{"$f":"VLOOKUP(A9,[1]!список_детей[#Data],4,1)","v":"5-6 лет"},{"$f":"VLOOKUP(A9,[1]!список_детей[#Data],2,1)","v":10},{"$f":"VLOOKUP(A9,[1]!индвид[#Data],6,1)","v":"АОП ТНР"},"п","п",null,null,null,"у","н","о",null,null,"н","п","о",null,null,"п","п",null,null,null,5,2,1,2,null,null,"5-6 лет",{"$f":"COUNTIF($D$5:D28,ИКРР!$AG9)","v":13},77," УО",{"$f":"SUMIF(программа,[1]данные!F6,$AA$5:$AA$24)","v":0}]
[6,{"$f":"VLOOKUP(A10,[1]!список_детей[#Data],3,1)","v":"СЕ"},{"$f":"VLOOKUP(A10,[1]!список_детей[#Data],5,1)","v":"д"},{"$f":"VLOOKUP(A10,[1]!список_детей[#Data],4,1)","v":"5-6 лет"},{"$f":"VLOOKUP(A10,[1]!список_детей[#Data],2,1)","v":10},{"$f":"VLOOKUP(A10,[1]!индвид[#Data],6,1)","v":"АОП ТНР"},"п",null,"п",null,null,"п",null,"п",null,null,"п",null,"н",null,null,"у",null,"у",null,null,5,1,2,0,null,null,"6-7 лет",{"$f":"COUNTIF($D$5:D29,ИКРР!$AG10)","v":7},39,"РАС",{"$f":"SUMIF(программа,[1]данные!F7,$AA$5:$AA$24)","v":0}]
[7,{"$f":"VLOOKUP(A11,[1]!список_детей[#Data],3,1)","v":"БА"},{"$f":"VLOOKUP(A11,[1]!список_детей[#Data],5,1)","v":"д"},{"$f":"VLOOKUP(A11,[1]!список_детей[#Data],4,1)","v":"5-6 лет"},{"$f":"VLOOKUP(A11,[1]!список_детей[#Data],2,1)","v":10},{"$f":"VLOOKUP(A11,[1]!индвид[#Data],6,1)","v":"АОП ТНР"},"п",null,null,"п",null,"п",null,null,"п",null,"п",null,null,"п",null,"п",null,null,"п",null,8,0,0,0,null,null,"ИТОГ",{"$f":"SUM(AH5:AH10)","v":20},{"$f":"SUM(AI5:AI10)","v":116},"НС",{"$f":"SUMIF(программа,[1]данные!F8,$AA$5:$AA$24)","v":0}]
[8,{"$f":"VLOOKUP(A12,[1]!список_детей[#Data],3,1)","v":"КЗ"},{"$f":"VLOOKUP(A12,[1]!список_детей[#Data],5,1)","v":"д"},{"$f":"VLOOKUP(A12,[1]!список_детей[#Data],4,1)","v":"5-6 лет"},{"$f":"VLOOKUP(A12,[1]!список_детей[#Data],2,1)","v":10},{"$f":"VLOOKUP(A12,[1]!индвид[#Data],6,1)","v":"АОП ТНР"},"у",null,"п",null,null,"п",null,"п",null,null,"п",null,"н",null,null,"п",null,"н","о",null,5,2,1,1,null,null,null,null,null,"ОО",{"$f":"SUMIF(программа,[1]данные!F9,$AA$5:$AA$24)","v":0}]
[9,{"$f":"VLOOKUP(A13,[1]!список_детей[#Data],3,1)","v":"ИХ"},{"$f":"VLOOKUP(A13,[1]!список_детей[#Data],5,1)","v":"д"},{"$f":"VLOOKUP(A13,[1]!список_детей[#Data],4,1)","v":"5-6 лет"},{"$f":"VLOOKUP(A13,[1]!список_детей[#Data],2,1)","v":10},{"$f":"VLOOKUP(A13,[1]!индвид[#Data],6,1)","v":"АОП ТНР"},null,"у",null,null,"н",null,"п",null,null,"п",null,"п",null,null,"п",null,"п",null,null,"п",6,1,1,0]
[10,{"$f":"VLOOKUP(A14,[1]!список_детей[#Data],3,1)","v":"ЯК"},{"$f":"VLOOKUP(A14,[1]!список_детей[#Data],5,1)","v":"м"},{"$f":"VLOOKUP(A14,[1]!список_детей[#Data],4,1)","v":"5-6 лет"},{"$f":"VLOOKUP(A14,[1]!список_детей[#Data],2,1)","v":10},{"$f":"VLOOKUP(A14,[1]!индвид[#Data],6,1)","v":"АОП ТНР"},null,"п",null,"п",null,null,"п",null,"п",null,null,"п",null,"у",null,null,"н","о","п",null,6,1,1,1,null,null,"п","присутствовал"]
[11,{"$f":"VLOOKUP(A15,[1]!список_детей[#Data],3,1)","v":"ЯБ"},{"$f":"VLOOKUP(A15,[1]!список_детей[#Data],5,1)","v":"м"},{"$f":"VLOOKUP(A15,[1]!список_детей[#Data],4,1)","v":"5-6 лет"},{"$f":"VLOOKUP(A15,[1]!список_детей[#Data],2,1)","v":10},{"$f":"VLOOKUP(A15,[1]!индвид[#Data],6,1)","v":"АОП ТНР"},null,"п","п",null,null,null,"п","п",null,null,null,"п","п",null,null,null,null,"п",null,null,7,0,0,0,null,null,"н","отсутствовал"]
[12,{"$f":"VLOOKUP(A16,[1]!список_детей[#Data],3,1)","v":"ЕТ"},{"$f":"VLOOKUP(A16,[1]!список_детей[#Data],5,1)","v":"м"},{"$f":"VLOOKUP(A16,[1]!список_детей[#Data],4,1)","v":"5-6 лет"},{"$f":"VLOOKUP(A16,[1]!список_детей[#Data],2,1)","v":10},{"$f":"VLOOKUP(A16,[1]!индвид[#Data],6,1)","v":"АОП ТНР"},"п",null,null,"п",null,"п",null,null,"п",null,"п",null,null,"п",null,"п",null,null,"п",null,8,0,0,0,null,null,"у","уважительная причина"]
[13,{"$f":"VLOOKUP(A17,[1]!список_детей[#Data],3,1)","v":"ЯП"},{"$f":"VLOOKUP(A17,[1]!список_детей[#Data],5,1)","v":"д"},{"$f":"VLOOKUP(A17,[1]!список_детей[#Data],4,1)","v":"5-6 лет"},{"$f":"VLOOKUP(A17,[1]!список_детей[#Data],2,1)","v":10},{"$f":"VLOOKUP(A17,[1]!индвид[#Data],6,1)","v":"АОП ТНР"},"у",null,"н",null,null,"н",null,"у","о",null,"п",null,"п",null,null,"п",null,"п",null,null,4,2,2,1,null,null,"о","отработка"]
[14,{"$f":"VLOOKUP(A18,[1]!список_детей[#Data],3,1)","v":"КЕ"},{"$f":"VLOOKUP(A18,[1]!список_детей[#Data],5,1)","v":"м"},{"$f":"VLOOKUP(A18,[1]!список_детей[#Data],4,1)","v":"6-7 лет"},{"$f":"VLOOKUP(A18,[1]!список_детей[#Data],2,1)","v":15},{"$f":"VLOOKUP(A18,[1]!индвид[#Data],6,1)","v":"АОП ТНР"},null,"н",null,"о","у",null,"у",null,null,"у",null,"п",null,null,"п",null,"п",null,null,"п",4,1,3,1]
[15,{"$f":"VLOOKUP(A19,[1]!список_детей[#Data],3,1)","v":"ЧП"},{"$f":"VLOOKUP(A19,[1]!список_детей[#Data],5,1)","v":"д"},{"$f":"VLOOKUP(A19,[1]!список_детей[#Data],4,1)","v":"6-7 лет"},{"$f":"VLOOKUP(A19,[1]!список_детей[#Data],2,1)","v":15},{"$f":"VLOOKUP(A19,[1]!индвид[#Data],6,1)","v":"АОП ТНР"},"п","п",null,null,null,"п","п",null,null,null,"п","п",null,null,null,"п","п",null,null,null,8,0,0,0,null,null,"д",{"$f":"COUNTIF(C5:C24,AG19)","v":11},{"$f":"TEXT($G$4,\"ММММ\")","v":"Октябрь"}]
[16,{"$f":"VLOOKUP(A20,[1]!список_детей[#Data],3,1)","v":"МР"},{"$f":"VLOOKUP(A20,[1]!список_детей[#Data],5,1)","v":"д"},{"$f":"VLOOKUP(A20,[1]!список_детей[#Data],4,1)","v":"6-7 лет"},{"$f":"VLOOKUP(A20,[1]!список_детей[#Data],2,1)","v":15},{"$f":"VLOOKUP(A20,[1]!индвид[#Data],6,1)","v":"АОП ТНР"},"н",null,"н",null,null,"н",null,"н",null,null,"н",null,"у","о","о","у","о","п",null,null,1,5,2,3,null,null,"м",{"$f":"COUNTIF(C6:C25,AG20)","v":9},{"$f":"TEXT($G$4,\"ММММ\")","v":"Октябрь"}]
[17,{"$f":"VLOOKUP(A21,[1]!список_детей[#Data],3,1)","v":"ЛР"},{"$f":"VLOOKUP(A21,[1]!список_детей[#Data],5,1)","v":"д"},{"$f":"VLOOKUP(A21,[1]!список_детей[#Data],4,1)","v":"6-7 лет"},{"$f":"VLOOKUP(A21,[1]!список_детей[#Data],2,1)","v":15},{"$f":"VLOOKUP(A21,[1]!индвид[#Data],6,1)","v":"АОП ТНР"},"п",null,null,"п",null,"п",null,null,"п",null,"п",null,null,"п",null,"п",null,null,"п",null,8,0,0,0,null,null,null,null,"Октябрь"]
[18,{"$f":"VLOOKUP(A22,[1]!список_детей[#Data],3,1)","v":"ША"},{"$f":"VLOOKUP(A22,[1]!список_детей[#Data],5,1)","v":"м"},{"$f":"VLOOKUP(A22,[1]!список_детей[#Data],4,1)","v":"6-7 лет"},{"$f":"VLOOKUP(A22,[1]!список_детей[#Data],2,1)","v":15},{"$f":"VLOOKUP(A22,[1]!индвид[#Data],6,1)","v":"АОП ТНР"},"п",null,"п",null,null,"п",null,"п",null,null,"п",null,"п",null,null,"п",null,"п",null,null,8,0,0,0,null,null,null,null,"Октябрь"]
[19,{"$f":"VLOOKUP(A23,[1]!список_детей[#Data],3,1)","v":"КМ"},{"$f":"VLOOKUP(A23,[1]!список_детей[#Data],5,1)","v":"д"},{"$f":"VLOOKUP(A23,[1]!список_детей[#Data],4,1)","v":"6-7 лет"},{"$f":"VLOOKUP(A23,[1]!список_детей[#Data],2,1)","v":15},{"$f":"VLOOKUP(A23,[1]!индвид[#Data],6,1)","v":"АОП ТНР"},null,"п",null,null,"н",null,"у",null,null,"у",null,"п",null,null,"п",null,"п",null,null,"п",5,1,2,0,null,null,null,null,"Октябрь"]
[20,{"$f":"VLOOKUP(A24,[1]!список_детей[#Data],3,1)","v":"ЖЕ"},{"$f":"VLOOKUP(A24,[1]!список_детей[#Data],5,1)","v":"м"},{"$f":"VLOOKUP(A24,[1]!список_детей[#Data],4,1)","v":"6-7 лет"},{"$f":"VLOOKUP(A24,[1]!список_детей[#Data],2,1)","v":15},{"$f":"VLOOKUP(A24,[1]!индвид[#Data],6,1)","v":"АОП ТНР"},null,"п",null,"н",null,null,"н",null,"п",null,null,"у",null,"п",null,null,"п","о","п","о",5,2,1,2]
[null,"итого присутствовало",null,null,null,null,{"$f":"COUNTIF(G5:G24,\"п\")","v":9},8,6,5,1,8,5,5,6,2,10,7,5,5,3,9,7,5,6,4,{"$f":"SUM(AA5:AA24)","v":116}]
[null,"итого отсутствовало",null,null,null,null,{"$f":"COUNTIF(G5:G24,\"н\")","v":1},1,2,1,2,3,2,1,0,0,2,1,2,0,1,1,1,2,0,0]
[]
[null,null,null,null,1,{"$f":"VLOOKUP(E28,[1]!список_детей[#Data],3,1)","v":"ЖИ"},"Пн","Пт"]
[null,null,null,null,2,{"$f":"VLOOKUP(E29,[1]!список_детей[#Data],3,1)","v":"КЛ"},"Вт","Чт"]
[null,null,null,null,3,{"$f":"VLOOKUP(E30,[1]!список_детей[#Data],3,1)","v":"ББ"},"Пн","Чт"]
[null,null,null,null,4,{"$f":"VLOOKUP(E31,[1]!список_детей[#Data],3,1)","v":"БХ"},"Ср","Пт"]
[null,null,null,null,5,{"$f":"VLOOKUP(E32,[1]!список_детей[#Data],3,1)","v":"ЮЧ"},"Чт","Пт"]
[null,null,null,null,6,{"$f":"VLOOKUP(E33,[1]!список_детей[#Data],3,1)","v":"СЕ"},"Пн","Чт"]
[null,null,null,null,7,{"$f":"VLOOKUP(E34,[1]!список_детей[#Data],3,1)","v":"БА"},"Вт","Чт"]
[null,null,null,null,8,{"$f":"VLOOKUP(E35,[1]!список_детей[#Data],3,1)","v":"КЗ"},"Пн","Чт"]
[null,null,null,null,9,{"$f":"VLOOKUP(E36,[1]!список_детей[#Data],3,1)","v":"ИХ"},"Ср","Пт"]
[null,null,null,null,10,{"$f":"VLOOKUP(E37,[1]!список_детей[#Data],3,1)","v":"ЯК"},"Вт","ПТ"]
[null,null,null,null,11,{"$f":"VLOOKUP(E38,[1]!список_детей[#Data],3,1)","v":"ЯБ"},"Пн","Пт"]
[null,null,null,null,12,{"$f":"VLOOKUP(E39,[1]!список_детей[#Data],3,1)","v":"ЕТ"},"Вт","Чт"]
[null,null,null,null,13,{"$f":"VLOOKUP(E40,[1]!список_детей[#Data],3,1)","v":"ЯП"},"Пн","Чт"]
[null,null,null,null,14,{"$f":"VLOOKUP(E41,[1]!список_детей[#Data],3,1)","v":"КЕ"},"Ср","Пт"]
[null,null,null,null,15,{"$f":"VLOOKUP(E42,[1]!список_детей[#Data],3,1)","v":"ЧП"},"Чт","Пт"]
[null,null,null,null,16,{"$f":"VLOOKUP(E43,[1]!список_детей[#Data],3,1)","v":"МР"},"Пн","Чт"]
[null,null,null,null,17,{"$f":"VLOOKUP(E44,[1]!список_детей[#Data],3,1)","v":"ЛР"},"Вт","Чт"]
[null,null,null,null,18,{"$f":"VLOOKUP(E45,[1]!список_детей[#Data],3,1)","v":"ША"},"Пн","Чт"]
[null,null,null,null,19,{"$f":"VLOOKUP(E46,[1]!список_детей[#Data],3,1)","v":"КМ"},"Ср","Пт"]
[null,null,null,null,20,{"$f":"VLOOKUP(E47,[1]!список_детей[#Data],3,1)","v":"ЖЕ"},"Вт","ПТ"]
[null,null,null,null,21,{"$f":"VLOOKUP(E48,[1]!список_детей[#Data],3,1)","v":"ИК"},"Пн","Пт"]
[null,null,null,null,22,{"$f":"VLOOKUP(E49,[1]!список_детей[#Data],3,1)","v":"ФБ"},"Вт","Чт"]
[null,null,null,null,23,{"$f":"VLOOKUP(E50,[1]!список_детей[#Data],3,1)","v":"БУ"},"Пн","Чт"]
[null,null,null,null,24,{"$f":"VLOOKUP(E51,[1]!список_детей[#Data],3,1)","v":"БЕ"},"Ср","Пт"]
[null,null,null,null,25,{"$f":"VLOOKUP(E52,[1]!список_детей[#Data],3,1)","v":"АЭ"},"Чт","Пт"]
[null,null,null,null,26,{"$f":"VLOOKUP(E53,[1]!список_детей[#Data],3,1)","v":"БС"},"Пн","Чт"]
[null,null,null,null,27,{"$f":"VLOOKUP(E54,[1]!список_детей[#Data],3,1)","v":"БВ"},"Вт","Чт"]
[null,null,null,null,28,{"$f":"VLOOKUP(E55,[1]!список_детей[#Data],3,1)","v":"НВ"},"Пн","Чт"]
[null,null,null,null,29,{"$f":"VLOOKUP(E56,[1]!список_детей[#Data],3,1)","v":"ЗВ"},"Ср","Пт"]
[null,null,null,null,30,{"$f":"VLOOKUP(E57,[1]!список_детей[#Data],3,1)","v":"КА"},"Вт","ПТ"]
[null,null,null,null,31,{"$f":"VLOOKUP(E58,[1]!список_детей[#Data],3,1)","v":"КН"},"Пн","Пт"]